Date Spend Occurred,Department Incurring Spend,Beneficiary Name,Summary of Purpose of Spend,Gross Amount,Merchant Category
01/07/2021,LEGAL EXPS CH AD ED,5 Pump Court Chambers,Legal Expenses,720.00,Costs
01/07/2021,REIGATE & BD CARE OP,Absolute Care Services Ltd,Home Base Care,965.28,Dom Care - Adults
01/07/2021,LEGAL EXPS CH AD ED,Redacted Personal Data,Legal Expenses,960.00,General Support
01/07/2021,WAVERLEY CARE OP,Astor Care & Nursing Agency,Home Base Care,"2,477.44",Dom Care - Adults
01/07/2021,LEGAL EXPS CH AD ED,Bourne Medicolegal Ltd,Legal Expenses,"1,415.43",Witness & Prof Exp
01/07/2021,YSS YC IMPROVEMENTS,BT UK Business Accounts,New GR/IR Account,388.60,Telecare
01/07/2021,COUNTY HALL,BT UK Business Accounts,Telecommunication Charges,"2,080.24",Telecare
01/07/2021,TANDRIDGE CARE OP,Care Options,Home Base Care,490.00,Dom Care - Adults
01/07/2021,TANDRIDGE CARE PD,Care Options,Home Base Care,257.32,Dom Care - Adults
01/07/2021,TANDRIDGE CARE OP,Care Options,Home Base Care,253.40,Dom Care - Adults
01/07/2021,TANDRIDGE CARE OP,Care Options,Home Base Care,403.20,Dom Care - Adults
01/07/2021,TANDRIDGE CARE OP,Care Options,Home Base Care,282.24,Dom Care - Adults
01/07/2021,TANDRIDGE CARE OP,Care Options,Home Base Care,394.52,Dom Care - Adults
01/07/2021,TANDRIDGE CARE OP,Care Options,Home Base Care,597.80,Dom Care - Adults
01/07/2021,TANDRIDGE CARE OP,Care Options,Home Base Care,597.80,Dom Care - Adults
01/07/2021,TANDRIDGE CARE OP,Care Options,Home Base Care,469.00,Dom Care - Adults
01/07/2021,TANDRIDGE CARE OP,Care Options,Home Base Care,610.12,Dom Care - Adults
01/07/2021,TANDRIDGE CARE OP,Care Options,Home Base Care,938.00,Dom Care - Adults
01/07/2021,WAVERLEY CARE OP,Carers at Home Ltd,Home Base Care,624.72,Dom Care - Adults
01/07/2021,WAVERLEY CARE OP,Carers at Home Ltd,Home Base Care,655.44,Dom Care - Adults
01/07/2021,NULL,CEI Electrical Ltd,NULL,"19,090.39",Highway Maintenance
01/07/2021,NW CARE - LAC,Redacted Personal Data,Compensation and Ex-Gratia,400.00,Non-Staff Expenses
01/07/2021,NULL,Claims Management - OTV BACS,NULL,"1,885.57",NULL
01/07/2021,SURREY HEATH CARE OP,Clarriots Care,Home Base Care,763.98,Dom Care - Adults
01/07/2021,LD-AUTISM CARERS,Clarriots Care,Home Base Care,275.40,Dom Care - Adults
01/07/2021,SURREY HEATH CARE PD,Clarriots Care,Home Base Care,771.12,Dom Care - Adults
01/07/2021,SURREY HEATH CARE OP,Clarriots Care,Home Base Care,"1,727.88",Dom Care - Adults
01/07/2021,SURREY HEATH CARE OP,Clarriots Care,Home Base Care,578.34,Dom Care - Adults
01/07/2021,SURREY HEATH CARE OP,Clarriots Care,Home Base Care,622.72,Dom Care - Adults
01/07/2021,SURREY HEATH CARE OP,Clarriots Care,Home Base Care,276.42,Dom Care - Adults
01/07/2021,SURREY HEATH CARE OP,Clarriots Care,Home Base Care,"1,709.52",Dom Care - Adults
01/07/2021,LD-AUT CNTR TM CARE,Clarriots Care,Home Base Care,570.14,Dom Care - Adults
01/07/2021,SURREY HEATH CARE OP,Clarriots Care,Home Base Care,385.56,Dom Care - Adults
01/07/2021,SURREY HEATH CARE PD,Clarriots Care,Home Base Care,385.56,Dom Care - Adults
01/07/2021,SPELTHORNE CARE OP,Clarriots Care,Home Base Care,456.96,Dom Care - Adults
01/07/2021,SURREY HEATH CARE OP,Clarriots Care,Home Base Care,621.18,Dom Care - Adults
01/07/2021,SPELTHORNE CARE OP,Clarriots Care,Home Base Care,"1,984.92",Dom Care - Adults
01/07/2021,SURREY HEATH CARE OP,Clarriots Care,Home Base Care,306.00,Dom Care - Adults
01/07/2021,SPELTHORNE CARE OP,Clarriots Care,Home Base Care,763.98,Dom Care - Adults
01/07/2021,SURREY HEATH CARE PD,Clarriots Care,Home Base Care,385.56,Dom Care - Adults
01/07/2021,SURREY HEATH CARE OP,Clarriots Care,Home Base Care,428.40,Dom Care - Adults
01/07/2021,SURREY HEATH CARE PD,Clarriots Care,Home Base Care,740.52,Dom Care - Adults
01/07/2021,SPELTHORNE CARE OP,Clarriots Care,Home Base Care,285.60,Dom Care - Adults
01/07/2021,SURREY HEATH CARE OP,Clarriots Care,Home Base Care,"1,627.92",Dom Care - Adults
01/07/2021,SURREY HEATH CARE PD,Clarriots Care,Home Base Care,428.40,Dom Care - Adults
01/07/2021,SPELTHORNE CARE OP,Clarriots Care,Home Base Care,709.41,Dom Care - Adults
01/07/2021,SURREY HEATH CARE OP,Clarriots Care,Home Base Care,438.76,Dom Care - Adults
01/07/2021,SPELTHORNE CARE OP,Clarriots Care,Home Base Care,"1,705.38",Dom Care - Adults
01/07/2021,SURREY HEATH CARE PD,Clarriots Care,Home Base Care,661.98,Dom Care - Adults
01/07/2021,SURREY HEATH CARE PD,Clarriots Care,Home Base Care,428.40,Dom Care - Adults
01/07/2021,SURREY HEATH CARE OP,Clarriots Care,Home Base Care,621.18,Dom Care - Adults
01/07/2021,SURREY HEATH CARE OP,Clarriots Care,Home Base Care,813.96,Dom Care - Adults
01/07/2021,SURREY HEATH CARE OP,Clarriots Care,Home Base Care,261.63,Dom Care - Adults
01/07/2021,SURREY HEATH CARE OP,Clarriots Care,Home Base Care,"1,245.44",Dom Care - Adults
01/07/2021,SURREY HEATH CARE OP,Clarriots Care,Home Base Care,"1,245.44",Dom Care - Adults
01/07/2021,SURREY HEATH CARE OP,Clarriots Care,Home Base Care,763.98,Dom Care - Adults
01/07/2021,SPELTHORNE CARE PD,Clarriots Care,Home Base Care,521.22,Dom Care - Adults
01/07/2021,SE TRANSPORT,Courtesy Cars Redhill,Hire of Vehicles,"2,802.12",Multi-purpose Veh
01/07/2021,TRANSPT M/STRM-PRIM,Courtesy Cars Redhill,Hire of Vehicles,"2,280.00",Multi-purpose Veh
01/07/2021,TRANSPORT C19 GRANT,Courtesy Cars Redhill,Coach Escorts Contracted,"1,026.00",Multi-purpose Veh
01/07/2021,NE TRANSPORT,Courtesy Cars Redhill,Hire of Vehicles,"3,055.20",Multi-purpose Veh
01/07/2021,SE TRANSPORT,Courtesy Cars Redhill,Coach Escorts Contracted,729.60,Multi-purpose Veh
01/07/2021,SE TRANSPORT,Courtesy Cars Redhill,Coach Escorts Contracted,"1,023.72",Multi-purpose Veh
01/07/2021,TRANSPORT C19 GRANT,Courtesy Cars Redhill,Coach Escorts Contracted,601.80,Multi-purpose Veh
01/07/2021,NE TRANSPORT,Courtesy Cars Redhill,Hire of Vehicles,"3,409.20",Multi-purpose Veh
01/07/2021,TRANSPORT C19 GRANT,Courtesy Cars Redhill,Hire of Vehicles,924.00,Multi-purpose Veh
01/07/2021,SE TRANSPORT,Courtesy Cars Redhill,Coach Escorts Contracted,909.72,Multi-purpose Veh
01/07/2021,TRANSPORT C19 GRANT,Courtesy Cars Redhill,Hire of Vehicles,"3,328.80",Multi-purpose Veh
01/07/2021,TRANSPORT C19 GRANT,Courtesy Cars Redhill,Hire of Vehicles,"3,841.80",Multi-purpose Veh
01/07/2021,SE TRANSPORT,Courtesy Cars Redhill,Hire of Vehicles,"3,463.32",Multi-purpose Veh
01/07/2021,SE TRANSPORT,Courtesy Cars Redhill,Hire of Vehicles,"1,812.60",Multi-purpose Veh
01/07/2021,SE TRANSPORT,Courtesy Cars Redhill,Hire of Vehicles,"2,437.32",Multi-purpose Veh
01/07/2021,SE TRANSPORT,Courtesy Cars Redhill,Hire of Vehicles,842.40,Multi-purpose Veh
01/07/2021,SE TRANSPORT,Courtesy Cars Redhill,Coach Escorts Contracted,801.00,Multi-purpose Veh
01/07/2021,TRANSPORT C19 GRANT,Courtesy Cars Redhill,Hire of Vehicles,"2,578.30",Multi-purpose Veh
01/07/2021,SE TRANSPORT,Courtesy Cars Redhill,Hire of Vehicles,"3,921.60",Multi-purpose Veh
01/07/2021,SE TRANSPORT,Courtesy Cars Redhill,Coach Escorts Contracted,"1,345.20",Multi-purpose Veh
01/07/2021,SE TRANSPORT,Courtesy Cars Redhill,Hire of Vehicles,"2,245.80",Multi-purpose Veh
01/07/2021,SE TRANSPORT,Courtesy Cars Redhill,Hire of Vehicles,"1,828.67",Multi-purpose Veh
01/07/2021,SE TRANSPORT,Courtesy Cars Redhill,Hire of Vehicles,"2,690.40",Multi-purpose Veh
01/07/2021,TRANSPORT C19 GRANT,Courtesy Cars Redhill,Hire of Vehicles,"3,334.50",Multi-purpose Veh
01/07/2021,SE TRANSPORT,Courtesy Cars Redhill,Hire of Vehicles,"3,340.20",Multi-purpose Veh
01/07/2021,SE TRANSPORT,Courtesy Cars Redhill,Hire of Vehicles,"2,232.12",Multi-purpose Veh
01/07/2021,TRANSPORT C19 GRANT,Courtesy Cars Redhill,Coach Escorts Contracted,"1,459.20",Multi-purpose Veh
01/07/2021,SE TRANSPORT,Courtesy Cars Redhill,Hire of Vehicles,"1,024.10",Multi-purpose Veh
01/07/2021,TRANSPORT C19 GRANT,Courtesy Cars Redhill,Coach Escorts Contracted,729.60,Multi-purpose Veh
01/07/2021,SE TRANSPORT,Courtesy Cars Redhill,Hire of Vehicles,"2,576.40",Multi-purpose Veh
01/07/2021,SE TRANSPORT,Courtesy Cars Redhill,Coach Escorts Contracted,866.40,Multi-purpose Veh
01/07/2021,TRANSPORT C19 GRANT,Courtesy Cars Redhill,Hire of Vehicles,"1,267.20",Multi-purpose Veh
01/07/2021,TRANSPT M/STRM-SEC,Courtesy Cars Redhill,Hire of Vehicles,"3,842.63",Multi-purpose Veh
01/07/2021,SE TRANSPORT,Courtesy Cars Redhill,Hire of Vehicles,515.89,Multi-purpose Veh
01/07/2021,TRANSPT M/STRM-SEC,Courtesy Cars Redhill,Hire of Vehicles,"2,008.91",Multi-purpose Veh
01/07/2021,TRANSPT M/STRM-SEC,Courtesy Cars Redhill,Hire of Vehicles,"2,508.00",Multi-purpose Veh
01/07/2021,TRANSPORT C19 GRANT,Courtesy Cars Redhill,Hire of Vehicles,"2,289.60",Multi-purpose Veh
01/07/2021,TRANSPORT C19 GRANT,Courtesy Cars Redhill,Hire of Vehicles,"1,621.80",Multi-purpose Veh
01/07/2021,TRANSPORT C19 GRANT,Courtesy Cars Redhill,Coach Escorts Contracted,310.50,Multi-purpose Veh
01/07/2021,ELMBRIDGE CARE PD,Crossroads Care Surrey,Home Base Care,318.60,Dom Care - Adults
01/07/2021,LD-AUT CNTR TM CARE,Crossroads Care Surrey,Home Base Care,566.40,Dom Care - Adults
01/07/2021,LD-AUT CNTR TM CARE,Crossroads Care Surrey,Home Base Care,840.75,Dom Care - Adults
01/07/2021,REIGATE & BD CARE PD,Crossroads Care Surrey,Day Care,584.10,Dom Care - Adults
01/07/2021,WOKING CMHRS CARE,Crowthorne Care Surrey Ltd,Supported Living,"2,288.00",Residential - OP
01/07/2021,WOKING CMHRS CARE,Crowthorne Care Surrey Ltd,Supported Living,"2,288.00",Residential - OP
01/07/2021,PIXHAM LANE DORKING,Cushman & Wakefield LLP,External Service Charges,"181,734.00",Service Charge
01/07/2021,NW TRANSPORT,East Sussex County Council,Hire of Vehicles,"1,628.12",Local Government
01/07/2021,SW TRANSPORT,East Sussex County Council,Hire of Vehicles,"7,497.60",Local Government
01/07/2021,NE TRANSPORT,East Sussex County Council,Hire of Vehicles,"7,588.00",Local Government
01/07/2021,SW TRANSPORT,East Sussex County Council,Coach Escorts Contracted,"2,840.00",Local Government
01/07/2021,LEGAL EXPS CH AD ED,Redacted Personal Data,Legal Expenses,900.00,Individual - NEC
01/07/2021,COVID COMF FUND,Epsom & Ewell Borough Council,Grants-Public Bodies and Statutory Partnerships,"397,375.93",Grants-Member Allocs
01/07/2021,FLT 1A LIB STONELEGH,Epsom & Ewell Borough Council,Rates,363.00,Grants-Member Allocs
01/07/2021,REIGATE & BD CARE PD,Everycare (East Surrey) Ltd,Home Base Care,376.34,Dom Care - Adults
01/07/2021,REIGATE & BD CARE OP,Everycare (East Surrey) Ltd,Home Base Care,256.92,Dom Care - Adults
01/07/2021,REIGATE & BD CARE OP,Everycare (East Surrey) Ltd,Home Base Care,358.31,Dom Care - Adults
01/07/2021,REIGATE & BD CARE OP,Everycare (East Surrey) Ltd,Home Base Care,343.24,Dom Care - Adults
01/07/2021,REIGATE & BD CARE OP,Everycare (East Surrey) Ltd,Home Base Care,"1,484.28",Dom Care - Adults
01/07/2021,REIGATE & BD CARE OP,Everycare (East Surrey) Ltd,Home Base Care,587.16,Dom Care - Adults
01/07/2021,REIGATE & BD CARE OP,Everycare (East Surrey) Ltd,Home Base Care,657.86,Dom Care - Adults
01/07/2021,REIGATE & BD CARE PD,Everycare (East Surrey) Ltd,Home Base Care,300.81,Dom Care - Adults
01/07/2021,REIGATE & BD CARE PD,Everycare (East Surrey) Ltd,Home Base Care,349.24,Dom Care - Adults
01/07/2021,REIGATE & BD CARE OP,Everycare (East Surrey) Ltd,Home Base Care,497.80,Dom Care - Adults
01/07/2021,REIGATE & BD CARE OP,Everycare (East Surrey) Ltd,Home Base Care,"1,236.48",Dom Care - Adults
01/07/2021,REIGATE & BD CARE OP,Everycare (East Surrey) Ltd,Home Base Care,"1,405.04",Dom Care - Adults
01/07/2021,REIGATE & BD CARE OP,Everycare (East Surrey) Ltd,Home Base Care,"1,349.84",Dom Care - Adults
01/07/2021,REIGATE & BD CARE OP,Everycare (East Surrey) Ltd,Home Base Care,"1,315.72",Dom Care - Adults
01/07/2021,REIGATE & BD CARE OP,Everycare (East Surrey) Ltd,Home Base Care,503.30,Dom Care - Adults
01/07/2021,REIGATE & BD CARE PD,Everycare (East Surrey) Ltd,Home Base Care,"1,433.24",Dom Care - Adults
01/07/2021,REIGATE & BD CARE OP,Everycare (East Surrey) Ltd,Home Base Care,393.40,Dom Care - Adults
01/07/2021,REIGATE & BD CARE OP,Everycare (East Surrey) Ltd,Home Base Care,896.70,Dom Care - Adults
01/07/2021,REIGATE & BD CARE OP,Everycare (East Surrey) Ltd,Home Base Care,"1,315.72",Dom Care - Adults
01/07/2021,REIGATE & BD CARE OP,Everycare (East Surrey) Ltd,Home Base Care,675.50,Dom Care - Adults
01/07/2021,REIGATE & BD CARE OP,Everycare (East Surrey) Ltd,Home Base Care,547.96,Dom Care - Adults
01/07/2021,REIGATE & BD CARE PD,Everycare (East Surrey) Ltd,Home Base Care,"1,236.48",Dom Care - Adults
01/07/2021,REIGATE & BD CARE OP,Everycare (East Surrey) Ltd,Home Base Care,500.84,Dom Care - Adults
01/07/2021,REIGATE & BD CARE OP,Everycare (East Surrey) Ltd,Home Base Care,927.36,Dom Care - Adults
01/07/2021,REIGATE & BD CARE OP,Everycare (East Surrey) Ltd,Home Base Care,309.12,Dom Care - Adults
01/07/2021,REIGATE & BD CARE PD,Everycare (East Surrey) Ltd,Home Base Care,274.01,Dom Care - Adults
01/07/2021,REIGATE & BD CARE OP,Everycare (East Surrey) Ltd,Home Base Care,309.12,Dom Care - Adults
01/07/2021,REIGATE & BD CARE OP,Everycare (East Surrey) Ltd,Home Base Care,348.74,Dom Care - Adults
01/07/2021,REIGATE & BD CARE OP,Everycare (East Surrey) Ltd,Home Base Care,"1,772.32",Dom Care - Adults
01/07/2021,REIGATE & BD CARE OP,Everycare (East Surrey) Ltd,Home Base Care,"1,563.52",Dom Care - Adults
01/07/2021,NULL,G E Building Services,NULL,"10,126.34",General Build Maint
01/07/2021,LEGAL EXPS CH AD ED,Redacted Personal Data,Legal Expenses,900.00,Specialist Nature
01/07/2021,LEGAL EXPS CH AD ED,Redacted Personal Data,Legal Expenses,"1,098.00",Specialist Nature
01/07/2021,LEGAL EXPS CH AD ED,Redacted Personal Data,Legal Expenses,780.00,Specialist Nature
01/07/2021,PLD TRANSITION,Grassroots Project,Day Care,306.00,Day Care - PSD
01/07/2021,COVID COMF FUND,Guildford Borough Council,Grants-Public Bodies and Statutory Partnerships,"734,347.29",Grants-Member Allocs
01/07/2021,8 GOSDEN COMMON,Guildford Borough Council - Council,Rates,253.00,Local Government
01/07/2021,HOWFLD PIRBRIGHT LCK,Guildford Borough Council - Council,Rates,332.00,Local Government
01/07/2021,ACTIVE SURREY,Guildford Shakespeare Company,Grants-Third Sector and Voluntary Orgs/Charities,"1,698.40",Grants-Member Allocs
01/07/2021,CAPITAL PROJECTS MAN,Hankinson Duckett Associates,Fees,"8,322.24",M-D (Property)
01/07/2021,WAVERLEY CARE OP,Haslemere Homecare,Home Base Care,782.61,Dom Care - Adults
01/07/2021,WAVERLEY CARE OP,Heywood Carers Ltd,Home Base Care,313.20,Dom Care - Adults
01/07/2021,WAVERLEY CARE OP,Heywood Carers Ltd,Home Base Care,334.80,Dom Care - Adults
01/07/2021,GLYN LF - ACAD,HM Revenue & Customs,External Payroll Re-imbursement to SCC,696.98,Central Government
01/07/2021,GLYN SCHOOL(ACADEMY),HM Revenue & Customs,External Payroll Re-imbursement to SCC,"1,227.35",Central Government
01/07/2021,NULL,HM Revenue & Customs,NULL,"3,023.41",Central Government
01/07/2021,DANETREE JUN (ACAD),HM Revenue & Customs,External Payroll Re-imbursement to SCC,460.59,Central Government
01/07/2021,HOWARD PARTNERSHIP T,HM Revenue & Customs,External Payroll Re-imbursement to SCC,"3,432.13",Central Government
01/07/2021,WEYDON SCHOOL (ACAD),HM Revenue & Customs,External Payroll Re-imbursement to SCC,"2,156.21",Central Government
01/07/2021,SUNBURY MANOR (ACAD),HM Revenue & Customs,External Payroll Re-imbursement to SCC,822.73,Central Government
01/07/2021,WOKING HIGH-ACAD,HM Revenue & Customs,External Payroll Re-imbursement to SCC,"1,196.42",Central Government
01/07/2021,ST CATHERINE'S SCH,HM Revenue & Customs,External Payroll Re-imbursement to SCC,587.74,Central Government
01/07/2021,NULL,HM Revenue & Customs,NULL,"1,297.70",Central Government
01/07/2021,RODBOROUGH (ACAD),HM Revenue & Customs,External Payroll Re-imbursement to SCC,589.12,Central Government
01/07/2021,LUMEN TRUST-ACAD,HM Revenue & Customs,External Payroll Re-imbursement to SCC,963.23,Central Government
01/07/2021,WARLINGHAM ACADEMY,HM Revenue & Customs,External Payroll Re-imbursement to SCC,321.49,Central Government
01/07/2021,NULL,HM Revenue & Customs,NULL,"25,003.86",Central Government
01/07/2021,LEGAL EXPS CH AD ED,Redacted Personal Data,Legal Expenses,"3,984.00",Complexity
01/07/2021,TRANSPT M/STRM-PRIM,Kent County Council,Hire of Vehicles,"1,368.00",School Support Serv
01/07/2021,WAVERLEY CARE OP,Lantern Care Services Ltd,Home Base Care,"1,203.72",Dom Care - Adults
01/07/2021,WAVERLEY CARE PD,Lantern Care Services Ltd,Home Base Care,"2,130.66",Dom Care - Adults
01/07/2021,WAVERLEY CARE OP,Lantern Care Services Ltd,Home Base Care,538.25,Dom Care - Adults
01/07/2021,WAVERLEY CARE OP,Lantern Care Services Ltd,Home Base Care,571.76,Dom Care - Adults
01/07/2021,WAVERLEY CARE OP,Lantern Care Services Ltd,Home Base Care,831.46,Dom Care - Adults
01/07/2021,WAVERLEY CARE OP,Lantern Care Services Ltd,Home Base Care,"1,567.44",Dom Care - Adults
01/07/2021,WAVERLEY CARE PD,Lantern Care Services Ltd,Home Base Care,"1,117.34",Dom Care - Adults
01/07/2021,WAVERLEY CARE PD,Lantern Care Services Ltd,Home Base Care,"1,744.60",Dom Care - Adults
01/07/2021,WAVERLEY CARE OP,Lantern Care Services Ltd,Home Base Care,571.76,Dom Care - Adults
01/07/2021,WAVERLEY CARE OP,Lantern Care Services Ltd,Home Base Care,504.20,Dom Care - Adults
01/07/2021,WAVERLEY CARE OP,Lantern Care Services Ltd,Home Base Care,378.58,Dom Care - Adults
01/07/2021,WAVERLEY CARE PD,Lantern Care Services Ltd,Home Base Care,727.44,Dom Care - Adults
01/07/2021,WAVERLEY CARE OP,Lantern Care Services Ltd,Home Base Care,"1,203.72",Dom Care - Adults
01/07/2021,WAVERLEY CARE OP,Lantern Care Services Ltd,Home Base Care,586.42,Dom Care - Adults
01/07/2021,WAVERLEY CARE OP,Lantern Care Services Ltd,Home Base Care,601.86,Dom Care - Adults
01/07/2021,LEGAL EXPS CH AD ED,Redacted Personal Data,Legal Expenses,"1,080.00",Insuff In-House
01/07/2021,LEGAL EXPS CH AD ED,Redacted Personal Data,Legal Expenses,900.00,General Support
01/07/2021,SE CARE - CPCRT NONL,Redacted Personal Data,Other Community Care - Vol,325.00,Invoicing Plan Req.
01/07/2021,COVID COMF FUND,Mole Valley District Council,Grants-Public Bodies and Statutory Partnerships,"429,993.21",Grants-Member Allocs
01/07/2021,SUNYRIDGE KNLL FM LA,Mole Valley District Council - Tax,Rates,693.00,Local Government
01/07/2021,PERM SURP LAND,Mole Valley District Council - Tax,Rates,495.00,Local Government
01/07/2021,STARHURST SCHOOL,Mole Valley District Council - Tax,Rates,495.00,Local Government
01/07/2021,UNIFIED ACADEMY,Mole Valley District Council - Tax,Rates,315.00,Local Government
01/07/2021,WAVERLEY CARE OP,Novus Care Ltd,Home Base Care,729.56,Dom Care - Adults
01/07/2021,COMMERCIAL MANAGEMEN,Odyssey Markides LLP,Fees,"4,380.00",M-D (Roads)
01/07/2021,NE CARE - CARE LVRS,Redacted Personal Data,Equipment,863.00,Invoicing Plan Req.
01/07/2021,LEGAL EXPS CH AD ED,Redacted Personal Data,Legal Expenses,930.00,Insuff In-House
01/07/2021,ELMBRIDGE CARE OP,Princess Christian Care Centre,Nursing,"1,607.14",Residential - LD
01/07/2021,LD-AUT CNTR TM CARE,Redacted Personal Data,Direct Payments - Independent Sector,736.71,Individual - NEC
01/07/2021,LD-AUT CNTR TM CARE,Redacted Personal Data,Direct Payments - Independent Sector,857.14,Individual - NEC
01/07/2021,LD-AUT CNTR TM CARE,Redacted Personal Data,Direct Payments - Independent Sector,761.27,Individual - NEC
01/07/2021,LD-AUT CNTR TM CARE,Redacted Personal Data,Direct Payments - Independent Sector,761.27,Individual - NEC
01/07/2021,LD-AUT CNTR TM CARE,Redacted Personal Data,Direct Payments - Independent Sector,885.71,Individual - NEC
01/07/2021,LD-AUT CNTR TM CARE,Redacted Personal Data,Direct Payments - Independent Sector,"1,106.40",Adult direct payment
01/07/2021,LD-AUT CNTR TM CARE,Redacted Personal Data,Direct Payments - Independent Sector,885.71,Individual - NEC
01/07/2021,GUILDFORD CARE PD,Redacted Personal Data,Direct Payments - Independent Sector,700.00,CYP Indiv Carers
01/07/2021,LD-AUT CNTR TM CARE,Redacted Personal Data,Direct Payments - Independent Sector,"1,143.28",Adult direct payment
01/07/2021,MOLE VALLEY CARE OP,Redacted Personal Data,Direct Payments - Independent Sector,"4,869.15",Adult direct payment
01/07/2021,NE UASC NRPF 18+ CRE,Redacted Personal Data,Independent Living Placements,"3,515.86",LAC Leaving Care
01/07/2021,SW CWD NON-LAC CARE,Redacted Personal Data,Direct Payments - Carers of Disabled Children,509.04,Adult direct payment
01/07/2021,NE CWD NON-LAC CARE,Redacted Personal Data,Direct Payments - Carers of Disabled Children,889.87,Adult direct payment
01/07/2021,NE UASC NRPF 18+ CRE,Redacted Personal Data,Independent Living Placements,"1,944.00",Invoicing Plan Req.
01/07/2021,NE CWD NON-LAC CARE,Redacted Personal Data,Direct Payments - Carers of Disabled Children,889.87,Adult direct payment
01/07/2021,LEGAL EXPS CH AD ED,Redacted Personal Data,Legal Expenses,"1,155.00",General Support
01/07/2021,LEGAL EXPS CH AD ED,Redacted Personal Data,Legal Expenses,"10,260.00",General Support
01/07/2021,LD-AUT CNTR TM CARE,Redacted Personal Data,Direct Payments - Independent Sector,"9,542.82",Individual - NEC
01/07/2021,LD-AUT CNTR TM CARE,Redacted Personal Data,Direct Payments - Independent Sector,"7,465.35",Individual - NEC
01/07/2021,SPELTHORNE CARE CR,Redacted Personal Data,Direct Payments - Independent Sector,411.42,Individual - NEC
01/07/2021,TRANSPORT C19 GRANT,Redacted Personal Data,Non-Staff Related Transport Costs,463.32,Invoicing Plan Req.
01/07/2021,LEGAL EXPS CH AD ED,Redacted Personal Data,Legal Expenses,660.00,General Support
01/07/2021,LEGAL EXPS CH AD ED,Redacted Personal Data,Legal Expenses,780.00,Witness & Prof Exp
01/07/2021,TANDRIDGE CARE PD,Redacted Personal Data,Direct Payments - Independent Sector,"4,475.41",Individual - NEC
01/07/2021,LEGAL EXPS CH AD ED,Redacted Personal Data,Legal Expenses,486.00,Complexity
01/07/2021,LEGAL EXPS CH AD ED,Redacted Personal Data,Legal Expenses,900.00,Witness & Prof Exp
01/07/2021,LD-AUT CNTR TM CARE,Redacted Personal Data,Direct Payments - Independent Sector,"1,032.64",Adult direct payment
01/07/2021,LEGAL EXPS CH AD ED,Redacted Personal Data,Legal Expenses,660.00,General Support
01/07/2021,LEGAL EXPS CH AD ED,Redacted Personal Data,Legal Expenses,"6,900.00",Prev Case Knowledge
01/07/2021,LEGAL EXPS CH AD ED,Redacted Personal Data,Legal Expenses,"4,740.00",General Support
01/07/2021,LD-AUT CNTR TM CARE,Redacted Personal Data,Direct Payments - Independent Sector,"7,359.28",Individual - NEC
01/07/2021,COVID COMF FUND,Reigate & Banstead Borough Council,Grants-Public Bodies and Statutory Partnerships,"885,558.34",Grants-Member Allocs
01/07/2021,1 ELMWOOD RD REDHILL,Reigate & Banstead Borough Council,Rates,253.00,Local Government
01/07/2021,COVID COMF FUND,Runnymede Borough Council,Grants-Public Bodies and Statutory Partnerships,"440,732.57",Local Government
01/07/2021,BROCKHURST,Runnymede Borough Council,Rates,279.00,Local Government
01/07/2021,LEGAL EXPS CH AD ED,Redacted Personal Data,Legal Expenses,900.00,Insuff In-House
01/07/2021,THE OAKS GRT,Sicuro UK Ltd,Security Alarm Maintenance,468.00,Surveys - Ecological
01/07/2021,WHITE COT 34 KGTN RD,Spelthorne Borough Council,Rates,374.00,Grants-Member Allocs
01/07/2021,WASTE - PLANNING,Spelthorne Borough Council,Rates,442.00,Grants-Member Allocs
01/07/2021,ELMBRIDGE CARE OP,Spring Care Recruitment Ltd,Home Base Care,"4,406.40",Dom Care - Adults
01/07/2021,ELMBRIDGE CARE OP,Spring Care Recruitment Ltd,Home Base Care,"2,570.40",Dom Care - Adults
01/07/2021,C19 HOSP DISCHARGE,Spring Care Recruitment Ltd,Home Base Care,"12,385.71",Dom Care - Adults
01/07/2021,MOLE VALLEY CARE OP,Steady Care Services Ltd,Home Base Care,332.08,Dom Care - Adults
01/07/2021,MOLE VALLEY CARE OP,Steady Care Services Ltd,Home Base Care,"1,414.84",Dom Care - Adults
01/07/2021,MOLE VALLEY CARE OP,Steady Care Services Ltd,Home Base Care,332.08,Dom Care - Adults
01/07/2021,MOLE VALLEY CARE OP,Steady Care Services Ltd,Home Base Care,486.70,Dom Care - Adults
01/07/2021,MOLE VALLEY CARE OP,Steady Care Services Ltd,Home Base Care,996.24,Dom Care - Adults
01/07/2021,MOLE VALLEY CARE OP,Steady Care Services Ltd,Home Base Care,873.46,Dom Care - Adults
01/07/2021,MOLE VALLEY CARE PD,Steady Care Services Ltd,Home Base Care,519.68,Dom Care - Adults
01/07/2021,MOLE VALLEY CARE OP,Steady Care Services Ltd,Home Base Care,665.70,Dom Care - Adults
01/07/2021,MOLE VALLEY CARE OP,Steady Care Services Ltd,Home Base Care,332.08,Dom Care - Adults
01/07/2021,MOLE VALLEY CARE OP,Steady Care Services Ltd,Home Base Care,"1,538.48",Dom Care - Adults
01/07/2021,MOLE VALLEY CARE OP,Steady Care Services Ltd,Home Base Care,707.42,Dom Care - Adults
01/07/2021,MOLE VALLEY CARE PD,Steady Care Services Ltd,Home Base Care,"1,753.22",Dom Care - Adults
01/07/2021,MOLE VALLEY CARE PD,Steady Care Services Ltd,Home Base Care,886.88,Dom Care - Adults
01/07/2021,MOLE VALLEY CARE OP,Steady Care Services Ltd,Home Base Care,707.42,Dom Care - Adults
01/07/2021,MOLE VALLEY CARE OP,Steady Care Services Ltd,Home Base Care,"1,753.22",Dom Care - Adults
01/07/2021,MOLE VALLEY CARE OP,Steady Care Services Ltd,Home Base Care,541.38,Dom Care - Adults
01/07/2021,MOLE VALLEY CARE OP,Steady Care Services Ltd,Home Base Care,332.08,Dom Care - Adults
01/07/2021,MOLE VALLEY CARE PD,Steady Care Services Ltd,Home Base Care,375.34,Dom Care - Adults
01/07/2021,MOLE VALLEY CARE OP,Steady Care Services Ltd,Home Base Care,332.08,Dom Care - Adults
01/07/2021,MOLE VALLEY CARE OP,Steady Care Services Ltd,Home Base Care,"1,418.96",Dom Care - Adults
01/07/2021,MOLE VALLEY CARE OP,Steady Care Services Ltd,Home Base Care,744.54,Dom Care - Adults
01/07/2021,MOLE VALLEY CARE OP,Steady Care Services Ltd,Home Base Care,"1,753.22",Dom Care - Adults
01/07/2021,EPSOM & EWELL CARE O,Steady Care Services Ltd,Home Base Care,377.34,Dom Care - Adults
01/07/2021,MOLE VALLEY CARE PD,Steady Care Services Ltd,Home Base Care,372.28,Dom Care - Adults
01/07/2021,MOLE VALLEY CARE OP,Steady Care Services Ltd,Home Base Care,375.34,Dom Care - Adults
01/07/2021,MOLE VALLEY CARE OP,Steady Care Services Ltd,Home Base Care,498.12,Dom Care - Adults
01/07/2021,MOLE VALLEY CARE OP,Steady Care Services Ltd,Home Base Care,332.08,Dom Care - Adults
01/07/2021,MOLE VALLEY CARE OP,Steady Care Services Ltd,Home Base Care,591.92,Dom Care - Adults
01/07/2021,MOLE VALLEY CARE OP,Steady Care Services Ltd,Home Base Care,375.34,Dom Care - Adults
01/07/2021,MOLE VALLEY CARE OP,Steady Care Services Ltd,Home Base Care,391.38,Dom Care - Adults
01/07/2021,MOLE VALLEY CARE OP,Steady Care Services Ltd,Home Base Care,474.40,Dom Care - Adults
01/07/2021,MOLE VALLEY CARE OP,Steady Care Services Ltd,Home Base Care,"1,328.32",Dom Care - Adults
01/07/2021,MOLE VALLEY CARE OP,Steady Care Services Ltd,Home Base Care,332.08,Dom Care - Adults
01/07/2021,MOLE VALLEY CARE OP,Steady Care Services Ltd,Home Base Care,332.08,Dom Care - Adults
01/07/2021,MOLE VALLEY CARE OP,Steady Care Services Ltd,Home Base Care,609.48,Dom Care - Adults
01/07/2021,MOLE VALLEY CARE OP,Steady Care Services Ltd,Home Base Care,375.34,Dom Care - Adults
01/07/2021,MOLE VALLEY CARE OP,Steady Care Services Ltd,Home Base Care,541.38,Dom Care - Adults
01/07/2021,MOLE VALLEY CARE OP,Steady Care Services Ltd,Home Base Care,498.12,Dom Care - Adults
01/07/2021,MOLE VALLEY CARE OP,Steady Care Services Ltd,Home Base Care,498.12,Dom Care - Adults
01/07/2021,MOLE VALLEY CARE PD,Steady Care Services Ltd,Home Base Care,"1,753.22",Dom Care - Adults
01/07/2021,MOLE VALLEY CARE OP,Steady Care Services Ltd,Home Base Care,332.08,Dom Care - Adults
01/07/2021,LEGAL EXPS CH AD ED,Redacted Personal Data,Legal Expenses,780.00,Individual - NEC
01/07/2021,LEGAL EXPS CH AD ED,Redacted Personal Data,Legal Expenses,780.00,Individual - NEC
01/07/2021,EPS & EW CMHRS CARE,Supported Independence Ltd,Supported Living,"2,180.00",Residential - OP
01/07/2021,CORP INCOME AND EXP,Supportive Link Ltd,Write Offs,"4,760.67",Sup Living Children
01/07/2021,LD-AUT CNTR TM CARE,Surrey Choices Ltd,Supported Living,277.92,Day Care - PSD
01/07/2021,PLD TRANSITION,Surrey Choices Ltd,Supported Living,"2,004.81",Day Care - PSD
01/07/2021,PINEHURST,Surrey Heath Borough Council - Tax,Rates,380.00,Local Government
01/07/2021,WOODLANDS HOUSE,Surrey Heath Borough Council - Tax,Rates,354.00,Local Government
01/07/2021,COVID COMF FUND,Tandridge District Council,Grants-Public Bodies and Statutory Partnerships,"434,350.07",Local Government
01/07/2021,STYCHENS LANE BLETCH,Tandridge District Council,Rates,511.00,Local Government
01/07/2021,ORCHARD,Tandridge District Council,Rates,378.00,Local Government
01/07/2021,NULL,Teachers Pensions,NULL,"23,979.30",Pensions
01/07/2021,NULL,Teachers Pensions,NULL,"33,108.23",Pensions
01/07/2021,NULL,Teachers Pensions,NULL,"4,588.66",Pensions
01/07/2021,NULL,Teachers Pensions,NULL,"3,859.89",Pensions
01/07/2021,NULL,Teachers Pensions,NULL,"14,201.01",Pensions
01/07/2021,NULL,Teachers Pensions,NULL,"7,396.38",Pensions
01/07/2021,NULL,Teachers Pensions,NULL,"30,032.47",Pensions
01/07/2021,NULL,Teachers Pensions,NULL,"20,497.78",Pensions
01/07/2021,NULL,Teachers Pensions,NULL,"7,094.55",Pensions
01/07/2021,NULL,Teachers Pensions,NULL,"32,775.28",Pensions
01/07/2021,NULL,Teachers Pensions,NULL,"2,850.47",Pensions
01/07/2021,NULL,Teachers Pensions,NULL,"4,767.03",Pensions
01/07/2021,NULL,Teachers Pensions,NULL,"2,076.98",Pensions
01/07/2021,NULL,Teachers Pensions,NULL,"6,086.71",Pensions
01/07/2021,NULL,Teachers Pensions,NULL,"3,816.98",Pensions
01/07/2021,NULL,Teachers Pensions,NULL,"3,216.88",Pensions
01/07/2021,NULL,Teachers Pensions,NULL,"10,456.47",Pensions
01/07/2021,NULL,Teachers Pensions,NULL,"5,272.27",Pensions
01/07/2021,NULL,Teachers Pensions,NULL,"2,884.07",Pensions
01/07/2021,NULL,Teachers Pensions,NULL,"30,061.19",Pensions
01/07/2021,NULL,Teachers Pensions,NULL,"39,373.05",Pensions
01/07/2021,NULL,Teachers Pensions,NULL,"6,142.06",Pensions
01/07/2021,NULL,Teachers Pensions,NULL,"5,543.21",Pensions
01/07/2021,NULL,Teachers Pensions,NULL,"5,879.88",Pensions
01/07/2021,NULL,Teachers Pensions,NULL,"1,744.22",Pensions
01/07/2021,NULL,Teachers Pensions,NULL,"4,066.32",Pensions
01/07/2021,NULL,Teachers Pensions,NULL,"2,919.04",Pensions
01/07/2021,NULL,Teachers Pensions,NULL,"3,616.25",Pensions
01/07/2021,NULL,Teachers Pensions,NULL,"11,879.87",Pensions
01/07/2021,NULL,Teachers Pensions,NULL,"2,842.19",Pensions
01/07/2021,NULL,Teachers Pensions,NULL,"3,931.79",Pensions
01/07/2021,NULL,Teachers Pensions,NULL,"2,715.66",Pensions
01/07/2021,NULL,Teachers Pensions,NULL,"25,033.20",Pensions
01/07/2021,NULL,Teachers Pensions,NULL,"22,154.24",Pensions
01/07/2021,NULL,Teachers Pensions,NULL,"27,779.81",Pensions
01/07/2021,NULL,Teachers Pensions,NULL,"2,809.78",Pensions
01/07/2021,NULL,Teachers Pensions,NULL,"2,972.75",Pensions
01/07/2021,NULL,Teachers Pensions,NULL,"20,735.66",Pensions
01/07/2021,NULL,Teachers Pensions,NULL,"2,378.46",Pensions
01/07/2021,NULL,Teachers Pensions,NULL,"12,652.57",Pensions
01/07/2021,NULL,Teachers Pensions,NULL,"98,725.88",Pensions
01/07/2021,NULL,Teachers Pensions,NULL,"58,609.63",Pensions
01/07/2021,NULL,Teachers Pensions,NULL,"71,074.18",Pensions
01/07/2021,NULL,Teachers Pensions,NULL,"8,722.72",Pensions
01/07/2021,NULL,Teachers Pensions,NULL,"9,753.57",Pensions
01/07/2021,NULL,Teachers Pensions,NULL,"11,970.26",Pensions
01/07/2021,NULL,Teachers Pensions,NULL,"7,960.83",Pensions
01/07/2021,NULL,Teachers Pensions,NULL,"18,488.70",Pensions
01/07/2021,NULL,Teachers Pensions,NULL,"63,031.70",Pensions
01/07/2021,NULL,Teachers Pensions,NULL,"5,869.03",Pensions
01/07/2021,NULL,Teachers Pensions,NULL,"12,905.21",Pensions
01/07/2021,NULL,Teachers Pensions,NULL,"75,661.02",Pensions
01/07/2021,NULL,Teachers Pensions,NULL,"5,756.19",Pensions
01/07/2021,NULL,Teachers Pensions,NULL,"1,571.50",Pensions
01/07/2021,NULL,Teachers Pensions,NULL,"81,606.51",Pensions
01/07/2021,NULL,Teachers Pensions,NULL,"7,415.23",Pensions
01/07/2021,NULL,Teachers Pensions,NULL,"17,346.57",Pensions
01/07/2021,NULL,Teachers Pensions,NULL,"32,463.28",Pensions
01/07/2021,NULL,Teachers Pensions,NULL,"9,977.74",Pensions
01/07/2021,NULL,Teachers Pensions,NULL,"24,363.83",Pensions
01/07/2021,NULL,Teachers Pensions,NULL,"25,952.26",Pensions
01/07/2021,NULL,Teachers Pensions,NULL,"7,388.54",Pensions
01/07/2021,NULL,Teachers Pensions,NULL,"18,747.44",Pensions
01/07/2021,NULL,Teachers Pensions,NULL,"14,857.00",Pensions
01/07/2021,NULL,Teachers Pensions,NULL,"7,513.59",Pensions
01/07/2021,NULL,Teachers Pensions,NULL,"9,360.34",Pensions
01/07/2021,NULL,Teachers Pensions,NULL,"2,151.45",Pensions
01/07/2021,NULL,Teachers Pensions,NULL,"12,929.78",Pensions
01/07/2021,NULL,Teachers Pensions,NULL,"5,857.21",Pensions
01/07/2021,NULL,Teachers Pensions,NULL,"19,058.11",Pensions
01/07/2021,NULL,Teachers Pensions,NULL,"18,587.81",Pensions
01/07/2021,NULL,Teachers Pensions,NULL,"8,008.32",Pensions
01/07/2021,NULL,Teachers Pensions,NULL,"14,699.63",Pensions
01/07/2021,NULL,Teachers Pensions,NULL,"14,301.96",Pensions
01/07/2021,NULL,Teachers Pensions,NULL,"5,195.71",Pensions
01/07/2021,NULL,Teachers Pensions,NULL,"7,346.32",Pensions
01/07/2021,NULL,Teachers Pensions,NULL,"9,770.78",Pensions
01/07/2021,NULL,Teachers Pensions,NULL,"8,450.79",Pensions
01/07/2021,NULL,Teachers Pensions,NULL,"79,734.99",Pensions
01/07/2021,NULL,Teachers Pensions,NULL,"59,704.68",Pensions
01/07/2021,NULL,Teachers Pensions,NULL,"6,018.67",Pensions
01/07/2021,NULL,Teachers Pensions,NULL,"13,457.07",Pensions
01/07/2021,NULL,Teachers Pensions,NULL,"25,511.90",Pensions
01/07/2021,NULL,Teachers Pensions,NULL,"39,853.74",Pensions
01/07/2021,NULL,Teachers Pensions,NULL,"7,178.76",Pensions
01/07/2021,NULL,Teachers Pensions,NULL,"7,270.83",Pensions
01/07/2021,NULL,Teachers Pensions,NULL,"56,093.21",Pensions
01/07/2021,NULL,Teachers Pensions,NULL,"2,037.87",Pensions
01/07/2021,NULL,Teachers Pensions,NULL,"7,123.35",Pensions
01/07/2021,NULL,Teachers Pensions,NULL,"23,317.39",Pensions
01/07/2021,NULL,Teachers Pensions,NULL,"20,411.05",Pensions
01/07/2021,NULL,Teachers Pensions,NULL,"14,509.58",Pensions
01/07/2021,NULL,Teachers Pensions,NULL,"1,665.72",Pensions
01/07/2021,NULL,Teachers Pensions,NULL,"17,547.88",Pensions
01/07/2021,NULL,Teachers Pensions,NULL,"21,550.27",Pensions
01/07/2021,NULL,Teachers Pensions,NULL,279.02,Pensions
01/07/2021,NULL,Teachers Pensions,NULL,516.00,Pensions
01/07/2021,NULL,Teachers Pensions,NULL,283.41,Pensions
01/07/2021,NULL,Teachers Pensions,NULL,284.81,Pensions
01/07/2021,NULL,Teachers Pensions,NULL,452.95,Pensions
01/07/2021,NULL,Teachers Pensions,NULL,271.96,Pensions
01/07/2021,NULL,Teachers Pensions,NULL,266.35,Pensions
01/07/2021,NULL,Teachers Pensions,NULL,327.60,Pensions
01/07/2021,NULL,Teachers Pensions,NULL,"4,081.06",Pensions
01/07/2021,NULL,Teachers Pensions,NULL,"10,936.06",Pensions
01/07/2021,NULL,Teachers Pensions,NULL,"24,263.35",Pensions
01/07/2021,NULL,Teachers Pensions,NULL,"39,720.29",Pensions
01/07/2021,NULL,Teachers Pensions,NULL,"28,280.94",Pensions
01/07/2021,NULL,Teachers Pensions,NULL,"36,587.84",Pensions
01/07/2021,NULL,Teachers Pensions,NULL,"13,417.90",Pensions
01/07/2021,NULL,Teachers Pensions,NULL,"22,578.18",Pensions
01/07/2021,NULL,Teachers Pensions,NULL,"24,406.71",Pensions
01/07/2021,NULL,Teachers Pensions,NULL,"3,686.65",Pensions
01/07/2021,NULL,Teachers Pensions,NULL,"12,705.78",Pensions
01/07/2021,NULL,Teachers Pensions,NULL,"19,585.83",Pensions
01/07/2021,NULL,Teachers Pensions,NULL,"7,577.76",Pensions
01/07/2021,NULL,Teachers Pensions,NULL,"25,898.63",Pensions
01/07/2021,NULL,Teachers Pensions,NULL,"2,149.20",Pensions
01/07/2021,NULL,Teachers Pensions,NULL,"5,066.54",Pensions
01/07/2021,NULL,Teachers Pensions,NULL,"19,111.42",Pensions
01/07/2021,NULL,Teachers Pensions,NULL,"22,838.94",Pensions
01/07/2021,NULL,Teachers Pensions,NULL,607.00,Pensions
01/07/2021,NULL,Teachers Pensions,NULL,"3,866.30",Pensions
01/07/2021,NULL,Teachers Pensions,NULL,"24,909.64",Pensions
01/07/2021,NULL,Teachers Pensions,NULL,"3,095.69",Pensions
01/07/2021,NULL,Teachers Pensions,NULL,"32,076.98",Pensions
01/07/2021,NULL,Teachers Pensions,NULL,"3,911.92",Pensions
01/07/2021,NULL,Teachers Pensions,NULL,"2,242.81",Pensions
01/07/2021,NULL,Teachers Pensions,NULL,"3,728.25",Pensions
01/07/2021,NULL,Teachers Pensions,NULL,"10,446.04",Pensions
01/07/2021,NULL,Teachers Pensions,NULL,"6,487.81",Pensions
01/07/2021,NULL,Teachers Pensions,NULL,"6,829.56",Pensions
01/07/2021,NULL,Teachers Pensions,NULL,"5,600.82",Pensions
01/07/2021,NULL,Teachers Pensions,NULL,"5,676.14",Pensions
01/07/2021,NULL,Teachers Pensions,NULL,"6,028.42",Pensions
01/07/2021,NULL,Teachers Pensions,NULL,"3,362.69",Pensions
01/07/2021,NULL,Teachers Pensions,NULL,"3,347.76",Pensions
01/07/2021,NULL,Teachers Pensions,NULL,"10,865.61",Pensions
01/07/2021,NULL,Teachers Pensions,NULL,"32,328.70",Pensions
01/07/2021,NULL,Teachers Pensions,NULL,"6,315.80",Pensions
01/07/2021,NULL,Teachers Pensions,NULL,"5,166.98",Pensions
01/07/2021,NULL,Teachers Pensions,NULL,"23,949.98",Pensions
01/07/2021,NULL,Teachers Pensions,NULL,"4,121.30",Pensions
01/07/2021,NULL,Teachers Pensions,NULL,"5,307.02",Pensions
01/07/2021,NULL,Teachers Pensions,NULL,"16,670.27",Pensions
01/07/2021,NULL,Teachers Pensions,NULL,"2,922.44",Pensions
01/07/2021,NULL,Teachers Pensions,NULL,"7,890.32",Pensions
01/07/2021,NULL,Teachers Pensions,NULL,"23,592.23",Pensions
01/07/2021,NULL,Teachers Pensions,NULL,"29,481.65",Pensions
01/07/2021,NULL,Teachers Pensions,NULL,"3,604.96",Pensions
01/07/2021,NULL,Teachers Pensions,NULL,"6,510.61",Pensions
01/07/2021,NULL,Teachers Pensions,NULL,"6,976.78",Pensions
01/07/2021,NULL,Teachers Pensions,NULL,"4,391.58",Pensions
01/07/2021,NULL,Teachers Pensions,NULL,"2,485.17",Pensions
01/07/2021,NULL,Teachers Pensions,NULL,"3,054.12",Pensions
01/07/2021,NULL,Teachers Pensions,NULL,"5,166.01",Pensions
01/07/2021,NULL,Teachers Pensions,NULL,"3,919.57",Pensions
01/07/2021,NULL,Teachers Pensions,NULL,"13,301.41",Pensions
01/07/2021,NULL,Teachers Pensions,NULL,"2,464.48",Pensions
01/07/2021,NULL,Teachers Pensions,NULL,"3,878.98",Pensions
01/07/2021,NULL,Teachers Pensions,NULL,"5,093.00",Pensions
01/07/2021,NULL,Teachers Pensions,NULL,"9,458.45",Pensions
01/07/2021,NULL,Teachers Pensions,NULL,"7,470.13",Pensions
01/07/2021,NULL,Teachers Pensions,NULL,"5,766.92",Pensions
01/07/2021,NULL,Teachers Pensions,NULL,"8,120.32",Pensions
01/07/2021,NULL,Teachers Pensions,NULL,"5,067.84",Pensions
01/07/2021,NULL,Teachers Pensions,NULL,"3,626.43",Pensions
01/07/2021,NULL,Teachers Pensions,NULL,"1,815.08",Pensions
01/07/2021,NULL,Teachers Pensions,NULL,"4,514.03",Pensions
01/07/2021,NULL,Teachers Pensions,NULL,"38,789.57",Pensions
01/07/2021,NULL,Teachers Pensions,NULL,"6,476.08",Pensions
01/07/2021,NULL,Teachers Pensions,NULL,"2,682.84",Pensions
01/07/2021,NULL,Teachers Pensions,NULL,"2,520.78",Pensions
01/07/2021,NULL,Teachers Pensions,NULL,"4,950.91",Pensions
01/07/2021,NULL,Teachers Pensions,NULL,"5,576.59",Pensions
01/07/2021,NULL,Teachers Pensions,NULL,"32,280.03",Pensions
01/07/2021,NULL,Teachers Pensions,NULL,"5,933.65",Pensions
01/07/2021,NULL,Teachers Pensions,NULL,"8,337.51",Pensions
01/07/2021,NULL,Teachers Pensions,NULL,"79,530.70",Pensions
01/07/2021,NULL,Teachers Pensions,NULL,"62,444.26",Pensions
01/07/2021,NULL,Teachers Pensions,NULL,"32,650.95",Pensions
01/07/2021,NULL,Teachers Pensions,NULL,"23,141.94",Pensions
01/07/2021,NULL,Teachers Pensions,NULL,"55,764.15",Pensions
01/07/2021,NULL,Teachers Pensions,NULL,"59,213.85",Pensions
01/07/2021,NULL,Teachers Pensions,NULL,"64,472.81",Pensions
01/07/2021,NULL,Teachers Pensions,NULL,"16,981.86",Pensions
01/07/2021,NULL,Teachers Pensions,NULL,"10,365.89",Pensions
01/07/2021,NULL,Teachers Pensions,NULL,"10,546.41",Pensions
01/07/2021,NULL,Teachers Pensions,NULL,"11,120.47",Pensions
01/07/2021,NULL,Teachers Pensions,NULL,"5,582.86",Pensions
01/07/2021,NULL,Teachers Pensions,NULL,"3,875.92",Pensions
01/07/2021,NULL,Teachers Pensions,NULL,"4,965.79",Pensions
01/07/2021,NULL,Teachers Pensions,NULL,"27,456.91",Pensions
01/07/2021,NULL,Teachers Pensions,NULL,"6,504.84",Pensions
01/07/2021,NULL,Teachers Pensions,NULL,"5,621.05",Pensions
01/07/2021,NULL,Teachers Pensions,NULL,"7,344.11",Pensions
01/07/2021,NULL,Teachers Pensions,NULL,"10,372.70",Pensions
01/07/2021,NULL,Teachers Pensions,NULL,"1,960.95",Pensions
01/07/2021,NULL,Teachers Pensions,NULL,"2,318.86",Pensions
01/07/2021,NULL,Teachers Pensions,NULL,"6,714.03",Pensions
01/07/2021,NULL,Teachers Pensions,NULL,"5,820.90",Pensions
01/07/2021,NULL,Teachers Pensions,NULL,"2,978.23",Pensions
01/07/2021,NULL,Teachers Pensions,NULL,"12,849.11",Pensions
01/07/2021,NULL,Teachers Pensions,NULL,"3,014.47",Pensions
01/07/2021,NULL,Teachers Pensions,NULL,"14,910.28",Pensions
01/07/2021,NULL,Teachers Pensions,NULL,"4,760.24",Pensions
01/07/2021,NULL,Teachers Pensions,NULL,"7,097.41",Pensions
01/07/2021,NULL,Teachers Pensions,NULL,"23,164.00",Pensions
01/07/2021,NULL,Teachers Pensions,NULL,"2,893.57",Pensions
01/07/2021,NULL,Teachers Pensions,NULL,"25,356.39",Pensions
01/07/2021,NULL,Teachers Pensions,NULL,"8,688.27",Pensions
01/07/2021,NULL,Teachers Pensions,NULL,737.96,Pensions
01/07/2021,NULL,Teachers Pensions,NULL,"5,550.24",Pensions
01/07/2021,NULL,Teachers Pensions,NULL,"4,027.07",Pensions
01/07/2021,NULL,Teachers Pensions,NULL,"9,307.38",Pensions
01/07/2021,NULL,Teachers Pensions,NULL,"4,795.76",Pensions
01/07/2021,NULL,Teachers Pensions,NULL,"6,986.13",Pensions
01/07/2021,NULL,Teachers Pensions,NULL,"27,840.22",Pensions
01/07/2021,NULL,Teachers Pensions,NULL,"66,799.76",Pensions
01/07/2021,NULL,Teachers Pensions,NULL,"89,375.46",Pensions
01/07/2021,NULL,Teachers Pensions,NULL,"6,200.06",Pensions
01/07/2021,NULL,Teachers Pensions,NULL,"22,712.89",Pensions
01/07/2021,NULL,Teachers Pensions,NULL,"47,757.58",Pensions
01/07/2021,NULL,Teachers Pensions,NULL,"55,604.42",Pensions
01/07/2021,NULL,Teachers Pensions,NULL,"108,446.95",Pensions
01/07/2021,NULL,Teachers Pensions,NULL,"10,135.83",Pensions
01/07/2021,NULL,Teachers Pensions,NULL,"5,598.25",Pensions
01/07/2021,NULL,Teachers Pensions,NULL,"11,391.70",Pensions
01/07/2021,NULL,Teachers Pensions,NULL,"6,731.62",Pensions
01/07/2021,NULL,Teachers Pensions,NULL,"35,462.06",Pensions
01/07/2021,NULL,Teachers Pensions,NULL,"19,593.53",Pensions
01/07/2021,NULL,Teachers Pensions,NULL,"10,323.39",Pensions
01/07/2021,NULL,Teachers Pensions,NULL,"15,510.22",Pensions
01/07/2021,NULL,Teachers Pensions,NULL,"63,853.11",Pensions
01/07/2021,NULL,Teachers Pensions,NULL,"7,855.70",Pensions
01/07/2021,NULL,Teachers Pensions,NULL,"14,502.28",Pensions
01/07/2021,NULL,Teachers Pensions,NULL,"66,656.89",Pensions
01/07/2021,NULL,Teachers Pensions,NULL,"81,366.47",Pensions
01/07/2021,NULL,Teachers Pensions,NULL,"10,066.24",Pensions
01/07/2021,NULL,Teachers Pensions,NULL,"95,126.73",Pensions
01/07/2021,NULL,Teachers Pensions,NULL,"16,614.90",Pensions
01/07/2021,NULL,Teachers Pensions,NULL,"14,368.96",Pensions
01/07/2021,NULL,Teachers Pensions,NULL,"14,165.18",Pensions
01/07/2021,NULL,Teachers Pensions,NULL,"9,649.35",Pensions
01/07/2021,NULL,Teachers Pensions,NULL,"16,841.12",Pensions
01/07/2021,NULL,Teachers Pensions,NULL,"5,284.15",Pensions
01/07/2021,NULL,Teachers Pensions,NULL,"16,976.97",Pensions
01/07/2021,NULL,Teachers Pensions,NULL,"8,252.39",Pensions
01/07/2021,NULL,Teachers Pensions,NULL,"6,474.51",Pensions
01/07/2021,NULL,Teachers Pensions,NULL,"13,706.80",Pensions
01/07/2021,NULL,Teachers Pensions,NULL,"21,217.43",Pensions
01/07/2021,NULL,Teachers Pensions,NULL,"26,950.26",Pensions
01/07/2021,NULL,Teachers Pensions,NULL,"28,108.68",Pensions
01/07/2021,NULL,Teachers Pensions,NULL,"56,486.59",Pensions
01/07/2021,NULL,Teachers Pensions,NULL,"9,981.49",Pensions
01/07/2021,NULL,Teachers Pensions,NULL,"17,398.65",Pensions
01/07/2021,NULL,Teachers Pensions,NULL,"17,149.41",Pensions
01/07/2021,NULL,Teachers Pensions,NULL,"15,530.00",Pensions
01/07/2021,NULL,Teachers Pensions,NULL,"14,660.97",Pensions
01/07/2021,NULL,Teachers Pensions,NULL,"16,189.55",Pensions
01/07/2021,NULL,Teachers Pensions,NULL,"4,514.60",Pensions
01/07/2021,NULL,Teachers Pensions,NULL,"9,535.91",Pensions
01/07/2021,NULL,Teachers Pensions,NULL,"28,066.69",Pensions
01/07/2021,NULL,Teachers Pensions,NULL,"36,045.59",Pensions
01/07/2021,NULL,Teachers Pensions,NULL,"10,289.74",Pensions
01/07/2021,NULL,Teachers Pensions,NULL,"7,841.55",Pensions
01/07/2021,NULL,Teachers Pensions,NULL,"12,725.15",Pensions
01/07/2021,NULL,Teachers Pensions,NULL,"14,737.88",Pensions
01/07/2021,NULL,Teachers Pensions,NULL,"87,795.07",Pensions
01/07/2021,NULL,Teachers Pensions,NULL,"7,634.27",Pensions
01/07/2021,NULL,Teachers Pensions,NULL,"31,476.22",Pensions
01/07/2021,NULL,Teachers Pensions,NULL,"7,750.38",Pensions
01/07/2021,NULL,Teachers Pensions,NULL,"4,112.50",Pensions
01/07/2021,NULL,Teachers Pensions,NULL,"15,487.62",Pensions
01/07/2021,NULL,Teachers Pensions,NULL,"6,779.54",Pensions
01/07/2021,NULL,Teachers Pensions,NULL,"12,328.65",Pensions
01/07/2021,NULL,Teachers Pensions,NULL,"8,192.23",Pensions
01/07/2021,NULL,Teachers Pensions,NULL,"20,853.08",Pensions
01/07/2021,NULL,Teachers Pensions,NULL,"13,977.75",Pensions
01/07/2021,NULL,Teachers Pensions,NULL,"6,169.48",Pensions
01/07/2021,NULL,Teachers Pensions,NULL,"12,571.88",Pensions
01/07/2021,NULL,Teachers Pensions,NULL,658.49,Pensions
01/07/2021,NULL,Teachers Pensions,NULL,279.00,Pensions
01/07/2021,NULL,Teachers Pensions,NULL,432.68,Pensions
01/07/2021,NULL,Teachers Pensions,NULL,561.00,Pensions
01/07/2021,NULL,Teachers Pensions,NULL,414.70,Pensions
01/07/2021,NULL,Teachers Pensions,NULL,"8,723.10",Pensions
01/07/2021,NULL,Teachers Pensions,NULL,"96,759.31",Pensions
01/07/2021,NULL,Teachers Pensions,NULL,"62,291.19",Pensions
01/07/2021,NULL,Teachers Pensions,NULL,"10,057.67",Pensions
01/07/2021,NULL,Teachers Pensions,NULL,"84,980.43",Pensions
01/07/2021,NULL,Teachers Pensions,NULL,"15,038.83",Pensions
01/07/2021,NULL,Teachers Pensions,NULL,"70,151.20",Pensions
01/07/2021,NULL,Teachers Pensions,NULL,"15,020.74",Pensions
01/07/2021,NULL,Teachers Pensions,NULL,"18,579.15",Pensions
01/07/2021,NULL,Teachers Pensions,NULL,569.92,Pensions
01/07/2021,NULL,Teachers Pensions,NULL,658.71,Pensions
01/07/2021,NULL,Teachers Pensions,NULL,292.32,Pensions
01/07/2021,NULL,Teachers Pensions,NULL,303.64,Pensions
01/07/2021,NULL,Teachers Pensions,NULL,289.80,Pensions
01/07/2021,NULL,Teachers Pensions,NULL,"18,811.23",Pensions
01/07/2021,NULL,Teachers Pensions,NULL,"37,091.26",Pensions
01/07/2021,NULL,Teachers Pensions,NULL,"9,143.20",Pensions
01/07/2021,NULL,Teachers Pensions,NULL,"25,937.71",Pensions
01/07/2021,NULL,Teachers Pensions,NULL,"7,579.51",Pensions
01/07/2021,NULL,Teachers Pensions,NULL,"2,381.94",Pensions
01/07/2021,NULL,Teachers Pensions,NULL,"4,017.73",Pensions
01/07/2021,NULL,Teachers Pensions,NULL,"9,004.01",Pensions
01/07/2021,NULL,Teachers Pensions,NULL,"2,110.90",Pensions
01/07/2021,NULL,Teachers Pensions,NULL,"43,726.09",Pensions
01/07/2021,NULL,Teachers Pensions,NULL,"6,762.06",Pensions
01/07/2021,NULL,Teachers Pensions,NULL,"4,966.98",Pensions
01/07/2021,NULL,Teachers Pensions,NULL,"3,973.65",Pensions
01/07/2021,NULL,Teachers Pensions,NULL,"2,716.17",Pensions
01/07/2021,NULL,Teachers Pensions,NULL,"2,904.80",Pensions
01/07/2021,NULL,Teachers Pensions,NULL,823.28,Pensions
01/07/2021,NULL,Teachers Pensions,NULL,"23,348.01",Pensions
01/07/2021,NULL,Teachers Pensions,NULL,"6,862.77",Pensions
01/07/2021,NULL,Teachers Pensions,NULL,"7,152.11",Pensions
01/07/2021,NULL,Teachers Pensions,NULL,"3,121.74",Pensions
01/07/2021,NULL,Teachers Pensions,NULL,"3,709.03",Pensions
01/07/2021,NULL,Teachers Pensions,NULL,"5,538.72",Pensions
01/07/2021,NULL,Teachers Pensions,NULL,"1,944.02",Pensions
01/07/2021,NULL,Teachers Pensions,NULL,"8,114.52",Pensions
01/07/2021,NULL,Teachers Pensions,NULL,"35,622.58",Pensions
01/07/2021,NULL,Teachers Pensions,NULL,"2,721.23",Pensions
01/07/2021,NULL,Teachers Pensions,NULL,"3,890.75",Pensions
01/07/2021,NULL,Teachers Pensions,NULL,"2,334.80",Pensions
01/07/2021,NULL,Teachers Pensions,NULL,"3,480.23",Pensions
01/07/2021,NULL,Teachers Pensions,NULL,"3,522.17",Pensions
01/07/2021,NULL,Teachers Pensions,NULL,"5,763.28",Pensions
01/07/2021,NULL,Teachers Pensions,NULL,"4,693.00",Pensions
01/07/2021,NULL,Teachers Pensions,NULL,917.65,Pensions
01/07/2021,NULL,Teachers Pensions,NULL,"6,106.18",Pensions
01/07/2021,NULL,Teachers Pensions,NULL,"8,818.13",Pensions
01/07/2021,NULL,Teachers Pensions,NULL,"8,279.47",Pensions
01/07/2021,NULL,Teachers Pensions,NULL,"28,451.22",Pensions
01/07/2021,NULL,Teachers Pensions,NULL,"3,157.00",Pensions
01/07/2021,NULL,Teachers Pensions,NULL,"5,713.65",Pensions
01/07/2021,NULL,Teachers Pensions,NULL,"7,648.95",Pensions
01/07/2021,NULL,Teachers Pensions,NULL,"45,833.22",Pensions
01/07/2021,NULL,Teachers Pensions,NULL,"57,937.44",Pensions
01/07/2021,NULL,Teachers Pensions,NULL,"89,759.48",Pensions
01/07/2021,NULL,Teachers Pensions,NULL,"20,256.48",Pensions
01/07/2021,NULL,Teachers Pensions,NULL,"31,290.74",Pensions
01/07/2021,NULL,Teachers Pensions,NULL,"17,491.35",Pensions
01/07/2021,NULL,Teachers Pensions,NULL,"50,997.75",Pensions
01/07/2021,NULL,Teachers Pensions,NULL,"9,463.68",Pensions
01/07/2021,NULL,Teachers Pensions,NULL,"13,779.49",Pensions
01/07/2021,NULL,Teachers Pensions,NULL,"50,520.98",Pensions
01/07/2021,NULL,Teachers Pensions,NULL,"17,396.55",Pensions
01/07/2021,NULL,Teachers Pensions,NULL,"12,229.94",Pensions
01/07/2021,NULL,Teachers Pensions,NULL,"12,671.92",Pensions
01/07/2021,NULL,Teachers Pensions,NULL,"10,444.75",Pensions
01/07/2021,NULL,Teachers Pensions,NULL,"10,197.07",Pensions
01/07/2021,NULL,Teachers Pensions,NULL,"13,457.64",Pensions
01/07/2021,NULL,Teachers Pensions,NULL,"7,434.59",Pensions
01/07/2021,NULL,Teachers Pensions,NULL,"13,315.74",Pensions
01/07/2021,NULL,Teachers Pensions,NULL,"74,456.76",Pensions
01/07/2021,NULL,Teachers Pensions,NULL,"10,487.46",Pensions
01/07/2021,NULL,Teachers Pensions,NULL,"25,067.36",Pensions
01/07/2021,NULL,Teachers Pensions,NULL,"24,789.50",Pensions
01/07/2021,NULL,Teachers Pensions,NULL,"17,553.07",Pensions
01/07/2021,NULL,Teachers Pensions,NULL,"14,060.22",Pensions
01/07/2021,NULL,Teachers Pensions,NULL,"5,761.01",Pensions
01/07/2021,NULL,Teachers Pensions,NULL,"8,493.64",Pensions
01/07/2021,NULL,Teachers Pensions,NULL,"16,115.25",Pensions
01/07/2021,NULL,Teachers Pensions,NULL,"7,839.59",Pensions
01/07/2021,NULL,Teachers Pensions,NULL,"13,633.39",Pensions
01/07/2021,NULL,Teachers Pensions,NULL,"6,911.45",Pensions
01/07/2021,NULL,Teachers Pensions,NULL,"9,748.32",Pensions
01/07/2021,NULL,Teachers Pensions,NULL,"9,797.27",Pensions
01/07/2021,NULL,Teachers Pensions,NULL,"19,014.88",Pensions
01/07/2021,NULL,Teachers Pensions,NULL,"9,164.15",Pensions
01/07/2021,NULL,Teachers Pensions,NULL,"18,782.37",Pensions
01/07/2021,NULL,Teachers Pensions,NULL,"10,279.74",Pensions
01/07/2021,NULL,Teachers Pensions,NULL,"16,434.71",Pensions
01/07/2021,NULL,Teachers Pensions,NULL,"55,251.61",Pensions
01/07/2021,NULL,Teachers Pensions,NULL,"7,113.92",Pensions
01/07/2021,NULL,Teachers Pensions,NULL,"12,824.96",Pensions
01/07/2021,NULL,Teachers Pensions,NULL,"68,081.57",Pensions
01/07/2021,NULL,Teachers Pensions,NULL,"65,135.57",Pensions
01/07/2021,NULL,Teachers Pensions,NULL,"15,270.49",Pensions
01/07/2021,NULL,Teachers Pensions,NULL,"50,822.59",Pensions
01/07/2021,NULL,Teachers Pensions,NULL,"24,990.05",Pensions
01/07/2021,NULL,Teachers Pensions,NULL,"7,876.23",Pensions
01/07/2021,NULL,Teachers Pensions,NULL,336.04,Pensions
01/07/2021,NULL,Teachers Pensions,NULL,888.59,Pensions
01/07/2021,LEGAL EXPS CH AD ED,The Expert Witness Panel Ltd,Legal Expenses,"1,235.50",Witness & Prof Exp
01/07/2021,LD-AUT CNTR TM CARE,The Firefly Club,Supported Living,"1,664.00",Residential - OP
01/07/2021,LD-AUT CNTR TM CARE,The Grange Centre,Day Care,632.64,Grants-Member Allocs
01/07/2021,LD-AUT CNTR TM CARE,The Grange Centre,Day Care,"1,265.28",Grants-Member Allocs
01/07/2021,LD-AUT CNTR TM CARE,The Grange Centre,Day Care,"1,265.28",Grants-Member Allocs
01/07/2021,LD-AUT CNTR TM CARE,The Grange Centre,Day Care,948.96,Grants-Member Allocs
01/07/2021,LD-AUT CNTR TM CARE,The Grange Centre,Day Care,"1,265.28",Grants-Member Allocs
01/07/2021,LD-AUT CNTR TM CARE,The Grange Centre,Day Care,840.36,Grants-Member Allocs
01/07/2021,LD-AUT CNTR TM CARE,The Grange Centre,Day Care,474.48,Grants-Member Allocs
01/07/2021,LD-AUT CNTR TM CARE,The Grange Centre,Day Care,"1,265.28",Grants-Member Allocs
01/07/2021,LD-AUT CNTR TM CARE,The Grange Centre,Day Care,"1,265.28",Grants-Member Allocs
01/07/2021,LD-AUT CNTR TM CARE,The Grange Centre,Day Care,632.64,Grants-Member Allocs
01/07/2021,LD-AUT CNTR TM CARE,The Grange Centre,Day Care,926.12,Grants-Member Allocs
01/07/2021,LD-AUT CNTR TM CARE,The Grange Centre,Day Care,632.64,Grants-Member Allocs
01/07/2021,LD-AUT CNTR TM CARE,The Grange Centre,Day Care,632.64,Grants-Member Allocs
01/07/2021,LD-AUT CNTR TM CARE,The Grange Centre,Day Care,790.80,Grants-Member Allocs
01/07/2021,LD-AUT CNTR TM CARE,The Grange Centre,Day Care,492.60,Grants-Member Allocs
01/07/2021,WAVERLEY CARE PD,The Grange Centre,Day Care,"1,265.28",Grants-Member Allocs
01/07/2021,PLD TRANSITION,THF Care Estates Ltd,Day Care,250.80,Residential - MH
01/07/2021,C19 HOSP DISCHARGE,Transform Housing & Support Ltd,Home Base Care,"2,612.00",Psychiatric Therapy
01/07/2021,LD-AUT CNTR TM CARE,Transform Housing & Support Ltd,Supported Living,"3,977.18",Psychiatric Therapy
01/07/2021,REIGATE & BD CARE PD,Triple Care Healthcare Services,Home Base Care,"1,270.08",Dom Care - Adults
01/07/2021,MOLE VALLEY CARE OP,Triple Care Healthcare Services,Home Base Care,807.93,Dom Care - Adults
01/07/2021,MOLE VALLEY CARE OP,Triple Care Healthcare Services,Home Base Care,476.28,Dom Care - Adults
01/07/2021,REIGATE & BD CARE OP,Triple Care Healthcare Services,Home Base Care,562.80,Dom Care - Adults
01/07/2021,REIGATE & BD CARE OP,Triple Care Healthcare Services,Home Base Care,"1,753.22",Dom Care - Adults
01/07/2021,MOLE VALLEY CARE OP,Triple Care Healthcare Services,Home Base Care,807.93,Dom Care - Adults
01/07/2021,MOLE VALLEY CARE OP,Triple Care Healthcare Services,Home Base Care,306.18,Dom Care - Adults
01/07/2021,REIGATE & BD CARE OP,Triple Care Healthcare Services,Home Base Care,562.80,Dom Care - Adults
01/07/2021,MOLE VALLEY CARE PD,Triple Care Healthcare Services,Home Base Care,603.00,Dom Care - Adults
01/07/2021,MOLE VALLEY CARE PD,Triple Care Healthcare Services,Home Base Care,511.32,Dom Care - Adults
01/07/2021,REIGATE & BD CARE OP,Triple Care Healthcare Services,Home Base Care,"3,506.44",Dom Care - Adults
01/07/2021,REIGATE & BD CARE OP,Triple Care Healthcare Services,Home Base Care,"1,213.38",Dom Care - Adults
01/07/2021,MOLE VALLEY CARE PD,Triple Care Healthcare Services,Home Base Care,603.00,Dom Care - Adults
01/07/2021,REIGATE & BD CARE OP,Triple Care Healthcare Services,Home Base Care,"3,493.28",Dom Care - Adults
01/07/2021,REIGATE & BD CARE OP,Triple Care Healthcare Services,Home Base Care,"1,270.08",Dom Care - Adults
01/07/2021,MOLE VALLEY CARE OP,Triple Care Healthcare Services,Home Base Care,"1,753.22",Dom Care - Adults
01/07/2021,GUILDFORD CARE OP,Triple Care Healthcare Services,Home Base Care,"1,001.84",Dom Care - Adults
01/07/2021,GUILDFORD CARE OP,Triple Care Healthcare Services,Home Base Care,"1,001.84",Dom Care - Adults
01/07/2021,GUILDFORD CARE OP,Triple Care Healthcare Services,Home Base Care,431.90,Dom Care - Adults
01/07/2021,MOLE VALLEY CARE OP,Triple Care Healthcare Services,Home Base Care,526.82,Dom Care - Adults
01/07/2021,GUILDFORD CARE OP,Triple Care Healthcare Services,Home Base Care,431.90,Dom Care - Adults
01/07/2021,MOLE VALLEY CARE OP,Triple Care Healthcare Services,Home Base Care,"1,053.64",Dom Care - Adults
01/07/2021,MOLE VALLEY CARE OP,Triple Care Healthcare Services,Home Base Care,476.28,Dom Care - Adults
01/07/2021,REIGATE & BD CARE OP,Triple Care Healthcare Services,Home Base Care,"1,753.22",Dom Care - Adults
01/07/2021,MOLE VALLEY CARE OP,Triple Care Healthcare Services,Home Base Care,"1,753.22",Dom Care - Adults
01/07/2021,MOLE VALLEY CARE PD,Triple Care Healthcare Services,Home Base Care,556.68,Dom Care - Adults
01/07/2021,MOLE VALLEY CARE OP,Triple Care Healthcare Services,Home Base Care,"1,515.36",Dom Care - Adults
01/07/2021,MOLE VALLEY CARE OP,Triple Care Healthcare Services,Home Base Care,"1,753.22",Dom Care - Adults
01/07/2021,MOLE VALLEY CARE OP,Triple Care Healthcare Services,Home Base Care,"1,042.30",Dom Care - Adults
01/07/2021,MOLE VALLEY CARE OP,Triple Care Healthcare Services,Home Base Care,526.82,Dom Care - Adults
01/07/2021,REIGATE & BD CARE PD,Triple Care Healthcare Services,Home Base Care,"1,270.08",Dom Care - Adults
01/07/2021,MOLE VALLEY CARE OP,Triple Care Healthcare Services,Home Base Care,493.80,Dom Care - Adults
01/07/2021,MOLE VALLEY CARE OP,Triple Care Healthcare Services,Home Base Care,493.80,Dom Care - Adults
01/07/2021,MOLE VALLEY CARE OP,Triple Care Healthcare Services,Home Base Care,317.52,Dom Care - Adults
01/07/2021,MOLE VALLEY CARE OP,Triple Care Healthcare Services,Home Base Care,"1,753.22",Dom Care - Adults
01/07/2021,TANDRIDGE CARE OP,Triple Care Healthcare Services,Home Base Care,"1,252.30",Dom Care - Adults
01/07/2021,REIGATE & BD CARE OP,Triple Care Healthcare Services,Home Base Care,"3,506.44",Dom Care - Adults
01/07/2021,REIGATE & BD CARE OP,Triple Care Healthcare Services,Home Base Care,"3,493.28",Dom Care - Adults
01/07/2021,MOLE VALLEY CARE OP,Triple Care Healthcare Services,Home Base Care,"1,515.36",Dom Care - Adults
01/07/2021,REIGATE & BD CARE OP,Triple Care Healthcare Services,Home Base Care,674.24,Dom Care - Adults
01/07/2021,REIGATE & BD CARE OP,Triple Care Healthcare Services,Home Base Care,685.58,Dom Care - Adults
01/07/2021,GUILDFORD CARE OP,Triple Care Healthcare Services,Home Base Care,431.90,Dom Care - Adults
01/07/2021,GUILDFORD CARE OP,Triple Care Healthcare Services,Home Base Care,431.90,Dom Care - Adults
01/07/2021,GUILDFORD CARE OP,Triple Care Healthcare Services,Home Base Care,"1,001.84",Dom Care - Adults
01/07/2021,GUILDFORD CARE OP,Triple Care Healthcare Services,Home Base Care,"1,001.84",Dom Care - Adults
01/07/2021,LINDEN FARM,Waverley Borough Council,Rates,503.00,Grants-Member Allocs
01/07/2021,LINDEN FARM,Waverley Borough Council,Rates,300.00,Grants-Member Allocs
01/07/2021,LONGFIELD,Waverley Borough Council,Rates,"1,259.00",Grants-Member Allocs
01/07/2021,ASHFORD CEP,Wilks Head & Eve,Rates,572.00,Individual - NEC
01/07/2021,ASHFORD PARK PRY,Wilks Head & Eve,Rates,"4,864.00",Individual - NEC
01/07/2021,ASHFORD LIB,Wilks Head & Eve,Rates,"1,487.00",Individual - NEC
01/07/2021,BARNETT WOOD INF,Wilks Head & Eve,Rates,"1,102.00",Individual - NEC
01/07/2021,BAGSHOT LIB,Wilks Head & Eve,Rates,254.00,Individual - NEC
01/07/2021,BAGSHOT DEPOT,Wilks Head & Eve,Rates,383.00,Individual - NEC
01/07/2021,FRIMLEY GREEN YC,Wilks Head & Eve,Rates,426.00,Individual - NEC
01/07/2021,AUDLEY PRY,Wilks Head & Eve,Rates,"1,591.00",Individual - NEC
01/07/2021,PERM SURP LAND,Wilks Head & Eve,Rates,457.00,Individual - NEC
01/07/2021,CHERTSEY NURSERY,Wilks Head & Eve,Rates,"3,925.00",Individual - NEC
01/07/2021,MEADOWCROFT CI,Wilks Head & Eve,Rates,699.00,Individual - NEC
01/07/2021,CRANLEIGH LIB,Wilks Head & Eve,Rates,"1,008.00",Individual - NEC
01/07/2021,GATWICK DIAMOND PH 1,Wilks Head & Eve,Rates,"7,936.00",Individual - NEC
01/07/2021,MOLE VALLEY FAM CNTR,Wilks Head & Eve,Rates,"1,216.00",Individual - NEC
01/07/2021,ST JOSEPHS CTH PRY D,Wilks Head & Eve,Rates,256.00,Individual - NEC
01/07/2021,THE DORKING CENTRE,Wilks Head & Eve,Rates,341.00,Individual - NEC
01/07/2021,MALTHOUSE YC D'KING,Wilks Head & Eve,Rates,416.00,Individual - NEC
01/07/2021,CHANDLERS FIELD PRY,Wilks Head & Eve,Rates,"1,118.00",Individual - NEC
01/07/2021,ST LAWRENCE CE E MOL,Wilks Head & Eve,Rates,939.00,Individual - NEC
01/07/2021,KINGFISHER HOUSE,Wilks Head & Eve,Rates,"2,005.00",Individual - NEC
01/07/2021,EGHAM YOUTH CENTRE,Wilks Head & Eve,Rates,374.00,Individual - NEC
01/07/2021,ST CUTHBERTS CATH PR,Wilks Head & Eve,Rates,412.00,Individual - NEC
01/07/2021,THORPE CE PRIMARY,Wilks Head & Eve,Rates,444.00,Individual - NEC
01/07/2021,EPSOM PRY,Wilks Head & Eve,Rates,"3,349.00",Individual - NEC
01/07/2021,EWELL GROVE PRIMARY,Wilks Head & Eve,Rates,"1,611.00",Individual - NEC
01/07/2021,EWELL COURT LIB,Wilks Head & Eve,Rates,509.00,Individual - NEC
01/07/2021,MEAD INF,Wilks Head & Eve,Rates,"2,901.00",Individual - NEC
01/07/2021,ST JOSEPHS CTH PRY E,Wilks Head & Eve,Rates,768.00,Individual - NEC
01/07/2021,EBBISHAM - EPSOM LIB,Wilks Head & Eve,Rates,"5,205.00",Individual - NEC
01/07/2021,BUSBRIDGE INF,Wilks Head & Eve,Rates,262.00,Individual - NEC
01/07/2021,CHANDLER CEJ,Wilks Head & Eve,Rates,619.00,Individual - NEC
01/07/2021,MILFORD SCHOOL,Wilks Head & Eve,Rates,288.00,Individual - NEC
01/07/2021,GUILDFORD AEI,Wilks Head & Eve,Rates,"2,539.00",Individual - NEC
01/07/2021,GUILDFORD LIB,Wilks Head & Eve,Rates,"4,693.00",Individual - NEC
01/07/2021,GOMSHALL FIRE STN,Wilks Head & Eve,Rates,908.50,Individual - NEC
01/07/2021,DISCOVERY CTR GFORD,Wilks Head & Eve,Rates,258.00,Individual - NEC
01/07/2021,GUILDFORD CHILDS CTR,Wilks Head & Eve,Rates,"1,757.00",Individual - NEC
01/07/2021,ST JOSEPHS CTH PRY G,Wilks Head & Eve,Rates,"1,749.00",Individual - NEC
01/07/2021,TILLINGBOURNE JUN,Wilks Head & Eve,Rates,"2,944.00",Individual - NEC
01/07/2021,WALSH MEMORIAL CEI,Wilks Head & Eve,Rates,"1,216.00",Individual - NEC
01/07/2021,WALSH CEJ ASH,Wilks Head & Eve,Rates,"3,179.00",Individual - NEC
01/07/2021,HASLEMERE FIRE STN,Wilks Head & Eve,Rates,"1,819.00",Individual - NEC
01/07/2021,CHARLWOOD VILL INF,Wilks Head & Eve,Rates,530.00,Individual - NEC
01/07/2021,LANGSHOTT PRIMARY,Wilks Head & Eve,Rates,"3,904.00",Individual - NEC
01/07/2021,FMR HORLEY LIBRARY,Wilks Head & Eve,Rates,"1,549.00",Individual - NEC
01/07/2021,MEATH GREEN JUN,Wilks Head & Eve,Rates,"3,072.00",Individual - NEC
01/07/2021,MEATH GREEN INF,Wilks Head & Eve,Rates,"1,549.00",Individual - NEC
01/07/2021,TRINITY OAKS CE PRIM,Wilks Head & Eve,Rates,399.00,Individual - NEC
01/07/2021,POLESDEN LACEY INF,Wilks Head & Eve,Rates,"1,081.00",Individual - NEC
01/07/2021,ST ANDREWS CATH LHD,Wilks Head & Eve,Rates,"1,536.00",Individual - NEC
01/07/2021,BOOKHAM LIB (NEW),Wilks Head & Eve,Rates,457.00,Individual - NEC
01/07/2021,OXTED FIRE STATION,Wilks Head & Eve,Rates,"1,164.00",Individual - NEC
01/07/2021,LIMPSFIELD CEI,Wilks Head & Eve,Rates,294.00,Individual - NEC
01/07/2021,EARLSWOOD INF&JUN,Wilks Head & Eve,Rates,"1,892.00",Individual - NEC
01/07/2021,LONGMEAD CTR REDHILL,Wilks Head & Eve,Rates,"1,902.00",Individual - NEC
01/07/2021,ST BEDES SCHOOL,Wilks Head & Eve,Rates,"4,523.00",Individual - NEC
01/07/2021,REDHILL FAMILY CTR,Wilks Head & Eve,Rates,"4,821.00",Individual - NEC
01/07/2021,REIGATE LIB,Wilks Head & Eve,Rates,"1,383.00",Individual - NEC
01/07/2021,REIGATE LIB,Wilks Head & Eve,Rates,447.00,Individual - NEC
01/07/2021,ROYAL ALEX & ALBERT,Wilks Head & Eve,Rates,"1,937.00",Individual - NEC
01/07/2021,HYTHE SCHOOL,Wilks Head & Eve,Rates,"4,096.00",Individual - NEC
01/07/2021,STAINES LIB,Wilks Head & Eve,Rates,"2,923.00",Individual - NEC
01/07/2021,KNWL GRN STAINES LOC,Wilks Head & Eve,Rates,"2,027.00",Individual - NEC
01/07/2021,STAINES FIRE STATION,Wilks Head & Eve,Rates,"2,411.00",Individual - NEC
01/07/2021,THE AVENUE SUNBURY,Wilks Head & Eve,Rates,"1,424.00",Individual - NEC
01/07/2021,BEAUCLERC CHENNESTON,Wilks Head & Eve,Rates,"1,185.00",Individual - NEC
01/07/2021,DITTONS LIB,Wilks Head & Eve,Rates,759.00,Individual - NEC
01/07/2021,LONG D ST MARYS CEJ,Wilks Head & Eve,Rates,361.00,Individual - NEC
01/07/2021,ST PAULS CATH PRY TD,Wilks Head & Eve,Rates,751.00,Individual - NEC
01/07/2021,THAMES DITTON JUN,Wilks Head & Eve,Rates,905.00,Individual - NEC
01/07/2021,VIRGINIA WATER LIB,Wilks Head & Eve,Rates,399.00,Individual - NEC
01/07/2021,BURHILL PRIMARY SCH,Wilks Head & Eve,Rates,"1,181.00",Individual - NEC
01/07/2021,WALTON YOUTH CENTRE,Wilks Head & Eve,Rates,437.00,Individual - NEC
01/07/2021,WALTON FIRE STATION,Wilks Head & Eve,Rates,"3,462.00",Individual - NEC
01/07/2021,BYFLEET LIB,Wilks Head & Eve,Rates,686.00,Individual - NEC
01/07/2021,WEST BYFLEET LIB,Wilks Head & Eve,Rates,489.00,Individual - NEC
01/07/2021,ONGAR PLACE PRIMARY,Wilks Head & Eve,Rates,"2,069.00",Individual - NEC
01/07/2021,PUBLIC LIB OFFS WEYB,Wilks Head & Eve,Rates,603.00,Individual - NEC
01/07/2021,GREVILLE PRY,Wilks Head & Eve,Rates,"5,632.00",Individual - NEC
01/07/2021,BAGSHOT INF,Wilks Head & Eve,Rates,"1,767.00",Individual - NEC
01/07/2021,NORTH DOWNS PRY,Wilks Head & Eve,Rates,"2,261.00",Individual - NEC
01/07/2021,CAMBERLEY LIB,Wilks Head & Eve,Rates,"2,176.00",Individual - NEC
01/07/2021,PRIOR HEATH CI,Wilks Head & Eve,Rates,"1,663.00",Individual - NEC
01/07/2021,FRIMLEY GRN LIB,Wilks Head & Eve,Rates,728.00,Individual - NEC
01/07/2021,OLD DEAN YC CAMBERLE,Wilks Head & Eve,Rates,308.00,Individual - NEC
01/07/2021,CATERHAM VALLEY LBRY,Wilks Head & Eve,Rates,"1,726.00",Individual - NEC
01/07/2021,ST MARYS CEP BYF,Wilks Head & Eve,Rates,"3,136.00",Individual - NEC
01/07/2021,ST LAWRENCE CEJ CHOB,Wilks Head & Eve,Rates,529.00,Individual - NEC
01/07/2021,WOKING CORONER CT,Wilks Head & Eve,Rates,925.00,Individual - NEC
01/07/2021,WOKING LIB,Wilks Head & Eve,Rates,"7,381.00",Individual - NEC
01/07/2021,LAKERS YC WOKING,Wilks Head & Eve,Rates,403.00,Individual - NEC
01/07/2021,QUADRANT CT WOKING,Wilks Head & Eve,Rates,"43,093.00",Individual - NEC
01/07/2021,SHAW FC,Wilks Head & Eve,Rates,250.00,Individual - NEC
01/07/2021,NW SURREY SSS,Wilks Head & Eve,Rates,308.00,Individual - NEC
01/07/2021,WOKING FIRE STATION,Wilks Head & Eve,Rates,"6,485.00",Individual - NEC
01/07/2021,FORDBRIDGE FIRE STN,Wilks Head & Eve,Rates,"6,656.00",Individual - NEC
01/07/2021,WOODHATCH,Wilks Head & Eve,Rates,"74,667.00",Individual - NEC
01/07/2021,CLARENDON PRY,Wilks Head & Eve,Rates,"2,017.00",Individual - NEC
01/07/2021,ST MICHAEL RCP ASHFD,Wilks Head & Eve,Rates,649.00,Individual - NEC
01/07/2021,ASHTEAD YOUTH CENTRE,Wilks Head & Eve,Rates,333.00,Individual - NEC
01/07/2021,BAGSHOT DEPOT,Wilks Head & Eve,Rates,"2,731.00",Individual - NEC
01/07/2021,BANSTEAD YOUTH CTR,Wilks Head & Eve,Rates,353.00,Individual - NEC
01/07/2021,FRANCE HILL HOUSE,Wilks Head & Eve,Rates,"2,389.00",Individual - NEC
01/07/2021,CAMBERLEY FIRE STN,Wilks Head & Eve,Rates,"3,861.00",Individual - NEC
01/07/2021,SHBC OFFICE ACCOMM,Wilks Head & Eve,Rates,"2,100.00",Individual - NEC
01/07/2021,CHERTSEY LIB,Wilks Head & Eve,Rates,852.00,Individual - NEC
01/07/2021,LYNE & LONG CROSS CE,Wilks Head & Eve,Rates,542.00,Individual - NEC
01/07/2021,CRANLEIGH CE VC PRIM,Wilks Head & Eve,Rates,361.00,Individual - NEC
01/07/2021,GLEBELANDS,Wilks Head & Eve,Rates,"8,619.00",Individual - NEC
01/07/2021,DRILL HALL DORKING,Wilks Head & Eve,Rates,"1,798.00",Individual - NEC
01/07/2021,DORKING NURSERY,Wilks Head & Eve,Rates,"4,651.00",Individual - NEC
01/07/2021,DORKING FIRE STATION,Wilks Head & Eve,Rates,"1,965.00",Individual - NEC
01/07/2021,ST MARTINS CEP DORK,Wilks Head & Eve,Rates,"2,100.00",Individual - NEC
01/07/2021,TATTENHAM LIB,Wilks Head & Eve,Rates,520.00,Individual - NEC
01/07/2021,ST CLEMENTS CATH PRY,Wilks Head & Eve,Rates,439.00,Individual - NEC
01/07/2021,ST MARTINS SCHS(FED),Wilks Head & Eve,Rates,572.00,Individual - NEC
01/07/2021,STONELEIGH LIB,Wilks Head & Eve,Rates,977.00,Individual - NEC
01/07/2021,ESHER GREEN ESHER,Wilks Head & Eve,Rates,956.00,Individual - NEC
01/07/2021,ESHER FIRE STATION,Wilks Head & Eve,Rates,"2,581.00",Individual - NEC
01/07/2021,RENTWOOD,Wilks Head & Eve,Rates,"1,037.00",Individual - NEC
01/07/2021,RENTWOOD,Wilks Head & Eve,Rates,314.00,Individual - NEC
01/07/2021,MOSS LANE SCHOOL,Wilks Head & Eve,Rates,894.00,Individual - NEC
01/07/2021,ST JAMES CEP ELSTEAD,Wilks Head & Eve,Rates,448.00,Individual - NEC
01/07/2021,ST MARYS CEI SHACKFD,Wilks Head & Eve,Rates,416.00,Individual - NEC
01/07/2021,WITLEY CEI,Wilks Head & Eve,Rates,728.00,Individual - NEC
01/07/2021,HAYES BRIDGE BC-BUS,Wilks Head & Eve,Rates,260.00,Individual - NEC
01/07/2021,GODSTONE FIRE STN,Wilks Head & Eve,Rates,"2,585.00",Individual - NEC
01/07/2021,GUILDFORD CHILDS CTR,Wilks Head & Eve,Rates,"3,584.00",Individual - NEC
01/07/2021,ASH SSC ASH LIBRARY,Wilks Head & Eve,Rates,624.00,Individual - NEC
01/07/2021,STEPGATES COMM SCH,Wilks Head & Eve,Rates,"1,715.00",Individual - NEC
01/07/2021,DORKING LIB (NEW),Wilks Head & Eve,Rates,"3,627.00",Individual - NEC
01/07/2021,POWELL-CORDEROY PRY,Wilks Head & Eve,Rates,"2,517.00",Individual - NEC
01/07/2021,PRIORY CE SCHOOL,Wilks Head & Eve,Rates,"2,539.00",Individual - NEC
01/07/2021,MOLESEY LIB,Wilks Head & Eve,Rates,821.00,Individual - NEC
01/07/2021,EGHAM FIRE STATION,Wilks Head & Eve,Rates,"3,072.00",Individual - NEC
01/07/2021,MANORCROFT PRY,Wilks Head & Eve,Rates,"3,072.00",Individual - NEC
01/07/2021,EPSOM FIRE STATION,Wilks Head & Eve,Rates,"3,221.00",Individual - NEC
01/07/2021,FOCUS YOUTH CENTRE,Wilks Head & Eve,Rates,489.00,Individual - NEC
01/07/2021,SHAWLEY CP EPSOM,Wilks Head & Eve,Rates,"2,304.00",Individual - NEC
01/07/2021,ST MARTINS SCHS(FED),Wilks Head & Eve,Rates,382.00,Individual - NEC
01/07/2021,STAMFORD GREEN PRY,Wilks Head & Eve,Rates,"4,437.00",Individual - NEC
01/07/2021,WEST PARK FARMHOUSE,Wilks Head & Eve,Rates,509.00,Individual - NEC
01/07/2021,ESHER LOCAL OFFICE,Wilks Head & Eve,Rates,"8,277.00",Individual - NEC
01/07/2021,BADSHOT LEA VILL INF,Wilks Head & Eve,Rates,"1,424.00",Individual - NEC
01/07/2021,ST PETERS CEP WRECC,Wilks Head & Eve,Rates,886.00,Individual - NEC
01/07/2021,FARNHAM LIB,Wilks Head & Eve,Rates,"2,539.00",Individual - NEC
01/07/2021,FARNHAM AEI WEST ST,Wilks Head & Eve,Rates,"1,601.00",Individual - NEC
01/07/2021,WILLIAM COBBETT JUN,Wilks Head & Eve,Rates,"5,376.00",Individual - NEC
01/07/2021,GODALMING SSC,Wilks Head & Eve,Rates,"1,225.00",Individual - NEC
01/07/2021,BUSBRIDGE CEJ,Wilks Head & Eve,Rates,390.00,Individual - NEC
01/07/2021,GODALMING JUN,Wilks Head & Eve,Rates,252.00,Individual - NEC
01/07/2021,DUNSFOLD FIRE STN,Wilks Head & Eve,Rates,520.00,Individual - NEC
01/07/2021,WHARF NURSERY,Wilks Head & Eve,Rates,"4,864.00",Individual - NEC
01/07/2021,GODSTONE DEPOT,Wilks Head & Eve,Rates,"5,120.00",Individual - NEC
01/07/2021,ASH SSC ASH LIBRARY,Wilks Head & Eve,Rates,"1,591.00",Individual - NEC
01/07/2021,WEST HOUSE COMPLEX,Wilks Head & Eve,Rates,"1,019.00",Individual - NEC
01/07/2021,BRAMLEY LIB,Wilks Head & Eve,Rates,863.00,Individual - NEC
01/07/2021,ONSLOW INF,Wilks Head & Eve,Rates,"1,549.00",Individual - NEC
01/07/2021,SHAWFIELD PRY,Wilks Head & Eve,Rates,"1,747.00",Individual - NEC
01/07/2021,SW SURREY FANILY CTR,Wilks Head & Eve,Rates,"2,731.00",Individual - NEC
01/07/2021,WORPLESDON PRY,Wilks Head & Eve,Rates,"4,736.00",Individual - NEC
01/07/2021,PT FMR FIR ALBERT RD,Wilks Head & Eve,Rates,250.00,Individual - NEC
01/07/2021,OAKWOOD  HORLEY,Wilks Head & Eve,Rates,"14,187.00",Individual - NEC
01/07/2021,DAWNAY SCHOOL,Wilks Head & Eve,Rates,"2,219.00",Individual - NEC
01/07/2021,FAIRMOUNT HOUSE,Wilks Head & Eve,Rates,"22,400.00",Individual - NEC
01/07/2021,WEST HOUSE COMPLEX,Wilks Head & Eve,Rates,"9,515.00",Individual - NEC
01/07/2021,ARTINGTON HOUSE,Wilks Head & Eve,Rates,"2,006.00",Individual - NEC
01/07/2021,DR DATA CTR UNIT 10,Wilks Head & Eve,Rates,"2,603.00",Individual - NEC
01/07/2021,WONERSH&SHAM GN CEP,Wilks Head & Eve,Rates,262.00,Individual - NEC
01/07/2021,WOOD STREET INF,Wilks Head & Eve,Rates,998.00,Individual - NEC
01/07/2021,SHOTTERMILL INF,Wilks Head & Eve,Rates,"1,653.00",Individual - NEC
01/07/2021,ST BARTHOLOMEWS CEP,Wilks Head & Eve,Rates,713.00,Individual - NEC
01/07/2021,BEACON HILL COMM,Wilks Head & Eve,Rates,304.00,Individual - NEC
01/07/2021,BEACON HILL COMM,Wilks Head & Eve,Rates,"2,240.00",Individual - NEC
01/07/2021,FETCHAM VILLAGE INF,Wilks Head & Eve,Rates,"1,320.00",Individual - NEC
01/07/2021,ST FAITHS FC,Wilks Head & Eve,Rates,"1,674.00",Individual - NEC
01/07/2021,THE MANSION L'HEAD,Wilks Head & Eve,Rates,"1,788.00",Individual - NEC
01/07/2021,DORMANSLAND PRY,Wilks Head & Eve,Rates,"2,100.00",Individual - NEC
01/07/2021,LINGFIELD PRY,Wilks Head & Eve,Rates,"3,712.00",Individual - NEC
01/07/2021,EARLSWOOD INF&JUN,Wilks Head & Eve,Rates,"2,709.00",Individual - NEC
01/07/2021,FURZEFIELD  CP,Wilks Head & Eve,Rates,"4,224.00",Individual - NEC
01/07/2021,PRIMARY DATA CENTRE,Wilks Head & Eve,Rates,"1,216.00",Individual - NEC
01/07/2021,PERM SURPLUS NON-RES,Wilks Head & Eve,Rates,"1,195.00",Individual - NEC
01/07/2021,REIGATE FIRE STATION,Wilks Head & Eve,Rates,"19,733.00",Individual - NEC
01/07/2021,ST NICHOLAS CEP SHEP,Wilks Head & Eve,Rates,772.00,Individual - NEC
01/07/2021,61 STAINES HIGH ST,Wilks Head & Eve,Rates,619.00,Individual - NEC
01/07/2021,61 STAINES HIGH ST,Wilks Head & Eve,Rates,361.00,Individual - NEC
01/07/2021,OUR LADY ROSARY RCP,Wilks Head & Eve,Rates,538.00,Individual - NEC
01/07/2021,OAKFIELD JUN,Wilks Head & Eve,Rates,"2,475.00",Individual - NEC
01/07/2021,THE BRIDGE,Wilks Head & Eve,Rates,341.00,Individual - NEC
01/07/2021,THE MANSION L'HEAD,Wilks Head & Eve,Rates,"3,285.00",Individual - NEC
01/07/2021,OXTED LIB,Wilks Head & Eve,Rates,"2,219.00",Individual - NEC
01/07/2021,REDHILL LIB (NEW),Wilks Head & Eve,Rates,"4,693.00",Individual - NEC
01/07/2021,PRIMARY DATA CENTRE,Wilks Head & Eve,Rates,"1,289.00",Individual - NEC
01/07/2021,SALFORDS FIRE STATIO,Wilks Head & Eve,Rates,"5,547.00",Individual - NEC
01/07/2021,PERM SURPLUS NON-RES,Wilks Head & Eve,Rates,322.00,Individual - NEC
01/07/2021,REIGATE PRIORY SCH,Wilks Head & Eve,Rates,"3,968.00",Individual - NEC
01/07/2021,BUCKLAND PRIMARY SCH,Wilks Head & Eve,Rates,"3,264.00",Individual - NEC
01/07/2021,FAIRWAYS,Wilks Head & Eve,Rates,"3,115.00",Individual - NEC
01/07/2021,TOWN FARM PRY,Wilks Head & Eve,Rates,764.00,Individual - NEC
01/07/2021,STAINES YTH SPTS CTR,Wilks Head & Eve,Rates,634.00,Individual - NEC
01/07/2021,SUNBURY-ON-T LIB,Wilks Head & Eve,Rates,"1,455.00",Individual - NEC
01/07/2021,EPSOM DOWNS PRY,Wilks Head & Eve,Rates,"3,264.00",Individual - NEC
01/07/2021,PHOENIX YC TADWORTH,Wilks Head & Eve,Rates,582.00,Individual - NEC
01/07/2021,THAMES DITTON INF,Wilks Head & Eve,Rates,414.00,Individual - NEC
01/07/2021,BELL FARM -PRIMARY,Wilks Head & Eve,Rates,"3,413.00",Individual - NEC
01/07/2021,FMR FIRE ELM GROVE,Wilks Head & Eve,Rates,414.00,Individual - NEC
01/07/2021,WARLINGHAM LIB,Wilks Head & Eve,Rates,358.00,Individual - NEC
01/07/2021,HENRIETTA PARKER CTR,Wilks Head & Eve,Rates,"3,072.00",Individual - NEC
01/07/2021,HURST PARK PRY,Wilks Head & Eve,Rates,"5,760.00",Individual - NEC
01/07/2021,MANBY LODGE INF,Wilks Head & Eve,Rates,"3,221.00",Individual - NEC
01/07/2021,BEAUCLERC CHENNESTON,Wilks Head & Eve,Rates,"2,475.00",Individual - NEC
01/07/2021,LONG DITTON INF,Wilks Head & Eve,Rates,279.00,Individual - NEC
01/07/2021,KINGSWOOD PRY,Wilks Head & Eve,Rates,"1,476.00",Individual - NEC
01/07/2021,STANWELL YOUTH CTRE,Wilks Head & Eve,Rates,287.00,Individual - NEC
01/07/2021,ST ANNS HEATH JUN,Wilks Head & Eve,Rates,"2,517.00",Individual - NEC
01/07/2021,GROVELANDS PRI&NUR,Wilks Head & Eve,Rates,"3,029.00",Individual - NEC
01/07/2021,PUBLIC LIB OFFS WEYB,Wilks Head & Eve,Rates,274.00,Individual - NEC
01/07/2021,PUBLIC LIB OFFS WEYB,Wilks Head & Eve,Rates,749.00,Individual - NEC
01/07/2021,KNAPHILL LIBRARY-NEW,Wilks Head & Eve,Rates,"2,058.00",Individual - NEC
01/07/2021,WOKING CORONER CT,Wilks Head & Eve,Rates,"10,069.00",Individual - NEC
01/07/2021,MAYFORD CENTRE-BUS,Wilks Head & Eve,Rates,256.00,Individual - NEC
01/07/2021,OATLANDS SCHOOL,Wilks Head & Eve,Rates,"2,496.00",Individual - NEC
01/07/2021,RYLSTON WEYBRIDGE,Wilks Head & Eve,Rates,"2,688.00",Individual - NEC
01/07/2021,BISLEY CEP,Wilks Head & Eve,Rates,435.00,Individual - NEC
01/07/2021,CHOBHAM RETAINED STN,Wilks Head & Eve,Rates,707.00,Individual - NEC
01/07/2021,HORSELL CEJ,Wilks Head & Eve,Rates,640.00,Individual - NEC
01/07/2021,PERM SURPLUS NON-RES,Wilks Head & Eve,Rates,"2,304.00",Individual - NEC
01/07/2021,ASHLEY PARK HOUSE,Wilks Head & Eve,Rates,"2,944.00",Individual - NEC
01/07/2021,BOOKHAM YOUTH CENTRE,Wilks Head & Eve,Rates,367.00,Individual - NEC
01/07/2021,DAKOTA,Wilks Head & Eve,Rates,"21,760.00",Individual - NEC
01/07/2021,MERSTHAM HUB,Wilks Head & Eve,Rates,"1,372.00",Individual - NEC
01/07/2021,ASHLEY PARK HOUSE,Wilks Head & Eve,Rates,"4,949.00",Individual - NEC
01/07/2021,ASHLEY PARK HOUSE,Wilks Head & Eve,Rates,"1,611.00",Individual - NEC
01/07/2021,CONSORT HOUSE,Wilks Head & Eve,Rates,728.00,Individual - NEC
01/07/2021,ADDLESTONE LIB (NEW),Wilks Head & Eve,Rates,"1,424.00",Individual - NEC
01/07/2021,ASHTEAD LIB,Wilks Head & Eve,Rates,624.00,Individual - NEC
01/07/2021,ST GILES CEI ASHTD,Wilks Head & Eve,Rates,269.00,Individual - NEC
01/07/2021,WEST ASHTEAD PRY,Wilks Head & Eve,Rates,"3,264.00",Individual - NEC
01/07/2021,BANSTEAD JUN,Wilks Head & Eve,Rates,"2,560.00",Individual - NEC
01/07/2021,BANSTEAD LIB,Wilks Head & Eve,Rates,"2,901.00",Individual - NEC
01/07/2021,ST ANNES CATH PRY BA,Wilks Head & Eve,Rates,832.00,Individual - NEC
01/07/2021,NORTH DOWNS PRY,Wilks Head & Eve,Rates,485.00,Individual - NEC
01/07/2021,HEATHER RIDGE INF,Wilks Head & Eve,Rates,"1,923.00",Individual - NEC
01/07/2021,CATERHAM LIB,Wilks Head & Eve,Rates,645.00,Individual - NEC
01/07/2021,ST FRANCIS CTH PRY C,Wilks Head & Eve,Rates,474.00,Individual - NEC
01/07/2021,ST JOHNS CEJ CATERHM,Wilks Head & Eve,Rates,841.00,Individual - NEC
01/07/2021,PAINSHILL FIRE STN,Wilks Head & Eve,Rates,"2,368.00",Individual - NEC
01/07/2021,CRANLEIGH FIRE STN,Wilks Head & Eve,Rates,800.00,Individual - NEC
01/07/2021,CRANLEIGH CE VC PRIM,Wilks Head & Eve,Rates,"1,071.00",Individual - NEC
01/07/2021,GATWICK DIAMOND PH 1,Wilks Head & Eve,Rates,"11,627.00",Individual - NEC
01/07/2021,ST PAULS CEP DORK,Wilks Head & Eve,Rates,713.00,Individual - NEC
01/07/2021,FELBRIDGE PRY,Wilks Head & Eve,Rates,"2,517.00",Individual - NEC
01/07/2021,ORCHARD SCHOOL,Wilks Head & Eve,Rates,457.00,Individual - NEC
01/07/2021,ENGLEFIELD GREEN CI,Wilks Head & Eve,Rates,"1,518.00",Individual - NEC
01/07/2021,KINGFISHER HOUSE,Wilks Head & Eve,Rates,"1,589.00",Individual - NEC
01/07/2021,EGHAM LIB,Wilks Head & Eve,Rates,"1,019.00",Individual - NEC
01/07/2021,ST JUDES CE SCHOOL,Wilks Head & Eve,Rates,546.00,Individual - NEC
01/07/2021,THORPE LEA PRY,Wilks Head & Eve,Rates,"1,934.00",Individual - NEC
01/07/2021,RIVERVIEW CEP,Wilks Head & Eve,Rates,384.00,Individual - NEC
01/07/2021,SOUTHFIELD PARK,Wilks Head & Eve,Rates,"3,179.00",Individual - NEC
01/07/2021,CLAYGATE PRY,Wilks Head & Eve,Rates,772.00,Individual - NEC
01/07/2021,CRANMERE PRY ESHER,Wilks Head & Eve,Rates,"6,101.00",Individual - NEC
01/07/2021,ESHER LIB,Wilks Head & Eve,Rates,"1,476.00",Individual - NEC
01/07/2021,FARNHAM FIRE STATION,Wilks Head & Eve,Rates,"3,733.00",Individual - NEC
01/07/2021,FOLLY HILL INF,Wilks Head & Eve,Rates,925.00,Individual - NEC
01/07/2021,ST PAULS CEI TONG,Wilks Head & Eve,Rates,"1,060.00",Individual - NEC
01/07/2021,GODALMING SSC,Wilks Head & Eve,Rates,"1,507.00",Individual - NEC
01/07/2021,FARNCOMBE CEI,Wilks Head & Eve,Rates,"1,092.00",Individual - NEC
01/07/2021,GODALMING FIRE STN,Wilks Head & Eve,Rates,884.00,Individual - NEC
01/07/2021,WITLEY DEPOT,Wilks Head & Eve,Rates,"2,688.00",Individual - NEC
01/07/2021,ASH MANOR SCHOOL,Wilks Head & Eve,Rates,"10,773.00",Individual - NEC
01/07/2021,GUILDFORD FIRE STN,Wilks Head & Eve,Rates,"17,984.00",Individual - NEC
01/07/2021,MERROW CEI,Wilks Head & Eve,Rates,"1,362.00",Individual - NEC
01/07/2021,PARK HOUSE SHALFORD,Wilks Head & Eve,Rates,"2,197.00",Individual - NEC
01/07/2021,14 THE PINES,Wilks Head & Eve,Rates,"3,413.00",Individual - NEC
01/07/2021,WEST HOUSE COMPLEX,Wilks Head & Eve,Rates,"6,571.00",Individual - NEC
01/07/2021,GRAYSWOOD CE PRIMARY,Wilks Head & Eve,Rates,439.00,Individual - NEC
01/07/2021,HASLEMERE LIB,Wilks Head & Eve,Rates,769.00,Individual - NEC
01/07/2021,SHOTTERMILL JUN,Wilks Head & Eve,Rates,"2,731.00",Individual - NEC
01/07/2021,HORLEY INF,Wilks Head & Eve,Rates,"2,240.00",Individual - NEC
01/07/2021,FMR HORLEY LIBRARY,Wilks Head & Eve,Rates,998.00,Individual - NEC
01/07/2021,MANORFIELD P&N SCH,Wilks Head & Eve,Rates,"2,709.00",Individual - NEC
01/07/2021,LEATHERHEAD FIRE STN,Wilks Head & Eve,Rates,"3,477.00",Individual - NEC
01/07/2021,HORSLEY LIB,Wilks Head & Eve,Rates,811.00,Individual - NEC
01/07/2021,UNIT 4 LEATHERHEAD,Wilks Head & Eve,Rates,"3,776.00",Individual - NEC
01/07/2021,ROYAL KENT CEP,Wilks Head & Eve,Rates,"2,100.00",Individual - NEC
01/07/2021,ST PETERS CATH PRY L,Wilks Head & Eve,Rates,390.00,Individual - NEC
01/07/2021,THE MANSION L'HEAD,Wilks Head & Eve,Rates,"1,154.00",Individual - NEC
01/07/2021,LINGFIELD FIRE STN,Wilks Head & Eve,Rates,702.00,Individual - NEC
01/07/2021,OXTED LIB,Wilks Head & Eve,Rates,"1,081.00",Individual - NEC
01/07/2021,HOLLAND JUN,Wilks Head & Eve,Rates,"2,240.00",Individual - NEC
01/07/2021,HURST GREEN SCHOOL,Wilks Head & Eve,Rates,"1,331.00",Individual - NEC
01/07/2021,CONSORT HOUSE,Wilks Head & Eve,Rates,"24,533.00",Individual - NEC
01/07/2021,NUTFIELD CHURCH CEP,Wilks Head & Eve,Rates,369.00,Individual - NEC
01/07/2021,PRIMARY DATA CENTRE,Wilks Head & Eve,Rates,"1,248.00",Individual - NEC
01/07/2021,ST JOSEPHS CTH PRY R,Wilks Head & Eve,Rates,764.00,Individual - NEC
01/07/2021,NORTH DOWNS PRY,Wilks Head & Eve,Rates,489.00,Individual - NEC
01/07/2021,REIGATE PARISH CHUR,Wilks Head & Eve,Rates,444.00,Individual - NEC
01/07/2021,THAMES YG MARINERS,Wilks Head & Eve,Rates,"1,591.00",Individual - NEC
01/07/2021,SHEPPERTON YOUTH CTR,Wilks Head & Eve,Rates,337.00,Individual - NEC
01/07/2021,SHEPPERTON LIB,Wilks Head & Eve,Rates,447.00,Individual - NEC
01/07/2021,61 STAINES HIGH ST,Wilks Head & Eve,Rates,"1,067.00",Individual - NEC
01/07/2021,LALEHAM CEP,Wilks Head & Eve,Rates,533.00,Individual - NEC
01/07/2021,STANWELL LIB (NEW),Wilks Head & Eve,Rates,541.00,Individual - NEC
01/07/2021,NE SHORT STAY SCH,Wilks Head & Eve,Rates,517.00,Individual - NEC
01/07/2021,STAINES LIB,Wilks Head & Eve,Rates,266.00,Individual - NEC
01/07/2021,ST IGNATIUS RCP,Wilks Head & Eve,Rates,636.00,Individual - NEC
01/07/2021,HIGH ASHURST OEC,Wilks Head & Eve,Rates,"1,371.00",Individual - NEC
01/07/2021,WALTON ON HILL PRY,Wilks Head & Eve,Rates,"1,445.00",Individual - NEC
01/07/2021,TRUMPS GREEN INF,Wilks Head & Eve,Rates,"1,653.00",Individual - NEC
01/07/2021,HERSHAM LIB,Wilks Head & Eve,Rates,572.00,Individual - NEC
01/07/2021,NE SHORT STAY SCH,Wilks Head & Eve,Rates,"1,060.00",Individual - NEC
01/07/2021,WALTON-ON-T LIB(NEW),Wilks Head & Eve,Rates,"4,181.00",Individual - NEC
01/07/2021,GRANGE CI,Wilks Head & Eve,Rates,"1,871.00",Individual - NEC
01/07/2021,CHERTSEY FIRE STN,Wilks Head & Eve,Rates,"3,770.00",Individual - NEC
01/07/2021,WEST BYFLEET CI,Wilks Head & Eve,Rates,"2,783.89",Individual - NEC
01/07/2021,WEST BYFLEET JUN,Wilks Head & Eve,Rates,"1,909.11",Individual - NEC
01/07/2021,PUBLIC LIB OFFS WEYB,Wilks Head & Eve,Rates,"2,987.00",Individual - NEC
01/07/2021,ST JAMES CEP WEYB,Wilks Head & Eve,Rates,"4,160.00",Individual - NEC
01/07/2021,MAYFORD CENTRE-BUS,Wilks Head & Eve,Rates,509.00,Individual - NEC
01/07/2021,ST DUNSTANS CATH PRY,Wilks Head & Eve,Rates,751.00,Individual - NEC
01/07/2021,SURREY HISTORY CTR,Wilks Head & Eve,Rates,"21,333.00",Individual - NEC
01/07/2021,VALLEY END CEI,Wilks Head & Eve,Rates,"1,611.00",Individual - NEC
01/07/2021,MERSTHAM HUB,Wilks Head & Eve,Rates,"1,882.00",Individual - NEC
01/07/2021,SUNBURY & SHEP SS,Wilks Head & Eve,Rates,"1,760.00",Individual - NEC
01/07/2021,OAKLANDS BALFOUR AVE,Woking Borough Council,Rates,904.00,Grants-Member Allocs
01/07/2021,MAYFORD CENTRE-BUS,Woking Borough Council,Rates,255.00,Grants-Member Allocs
01/07/2021,OAKLANDS BALFOUR AVE,Woking Borough Council,Rates,255.00,Grants-Member Allocs
02/07/2021,WAVERLEY CARE OP,Agincare Live In Care South East Lt,Home Base Care,"1,753.22",Dom Care - Adults
02/07/2021,LD-AUT CNTR TM CARE,Alabare Christian Care & Support,Supported Living,"2,376.00",Supp Living - MH
02/07/2021,LD-AUT CNTR TM CARE,Alabare Christian Care & Support,Supported Living,616.00,Supp Living - MH
02/07/2021,LD-AUT CNTR TM CARE,Alabare Christian Care & Support,Supported Living,616.00,Supp Living - MH
02/07/2021,LD-AUT CNTR TM CARE,Alabare Christian Care & Support,Day Care,360.00,Supp Living - MH
02/07/2021,LD-AUT CNTR TM CARE,Alabare Christian Care & Support,Supported Living,"2,376.00",Supp Living - MH
02/07/2021,ELMBRIDGE CARE OP,Alina Homecare Walton on Thames,Home Base Care,410.34,Dom Care - Adults
02/07/2021,SPELTHORNE CARE OP,Alina Homecare Walton on Thames,Home Base Care,554.96,Dom Care - Adults
02/07/2021,SPELTHORNE CARE OP,Alina Homecare Walton on Thames,Home Base Care,"1,242.22",Dom Care - Adults
02/07/2021,SPELTHORNE CARE OP,Alina Homecare Walton on Thames,Home Base Care,450.19,Dom Care - Adults
02/07/2021,WAVERLEY CARE OP,Allied Healthcare,Home Base Care,349.04,Residential - LD
02/07/2021,WOKING CARE OP,Alpenbest Ltd,Home Base Care,269.10,Dom Care - Adults
02/07/2021,ELMBRIDGE CMHRS CARE,Alpha Extreme Services Ltd,Other Community Care,408.00,Dom Cleaning Serv
02/07/2021,NULL,Bilfinger Europa Facility,NULL,"20,237.36",Edu Establishments
02/07/2021,HQ PYMNT OF INS CLMS,Bond Turner Ltd,Ins Claims Other Insured Paid,"10,514.00",Insurance Services
02/07/2021,LD-AUT CNTR TM CARE,Boyce Care Ltd,Non-Staff Related Transport Costs,"1,200.00",Supp Living - MH
02/07/2021,LD-AUT CNTR TM CARE,Boyce Care Ltd,Other Community Care,"1,093.20",Supp Living - MH
02/07/2021,LD-AUT CNTR TM CARE,Boyce Care Ltd,Other Community Care,874.56,Supp Living - MH
02/07/2021,LD-AUT CNTR TM CARE,Boyce Care Ltd,Other Community Care,619.48,Supp Living - MH
02/07/2021,LD-AUT CNTR TM CARE,Boyce Care Ltd,Other Community Care,619.48,Supp Living - MH
02/07/2021,LD-AUT CNTR TM CARE,Boyce Care Ltd,Other Community Care,728.80,Supp Living - MH
02/07/2021,LD-AUT CNTR TM CARE,Boyce Care Ltd,Other Community Care,"1,457.60",Supp Living - MH
02/07/2021,LD-AUT CNTR TM CARE,Boyce Care Ltd,Other Community Care,"1,238.96",Supp Living - MH
02/07/2021,NULL,Breyer Group Plc,NULL,"33,097.25",General Build Maint
02/07/2021,WAVERLEY CARE OP,Brownscombe House Nursing Home,Nursing Respite,983.57,Residential - PSD
02/07/2021,WAVERLEY CARE OP,Carers at Home Ltd,Home Base Care,428.80,Dom Care - Adults
02/07/2021,WAVERLEY CARE OP,Carers at Home Ltd,Home Base Care,675.95,Dom Care - Adults
02/07/2021,NULL,Colours Decorating Ltd,NULL,"33,891.83","Comm, Res & Inv Prop"
02/07/2021,TANDRIDGE CARE OP,Coombe Dingle Nursing Home,Nursing,"1,639.29",Residential - LD
02/07/2021,LD-AUT CNTR TM CARE,County Care Independent Living Ltd,Other Community Care,274.24,Dom Care - Adults
02/07/2021,NULL,Dell Corporation Ltd,NULL,"6,489.60",Hardware - Sys
02/07/2021,GUILDFORD CARE OP,Doves Healthcare Ltd,Home Base Care,924.34,Dom Care - Adults
02/07/2021,GUILDFORD CARE OP,Doves Healthcare Ltd,Home Base Care,407.82,Dom Care - Adults
02/07/2021,GUILDFORD CARE OP,Doves Healthcare Ltd,Home Base Care,783.02,Dom Care - Adults
02/07/2021,GUILDFORD CARE OP,Doves Healthcare Ltd,Home Base Care,407.82,Dom Care - Adults
02/07/2021,GUILDFORD CARE OP,Doves Healthcare Ltd,Home Base Care,793.52,Dom Care - Adults
02/07/2021,GUILDFORD CARE OP,Doves Healthcare Ltd,Home Base Care,793.52,Dom Care - Adults
02/07/2021,GUILDFORD CARE OP,Doves Healthcare Ltd,Home Base Care,631.38,Dom Care - Adults
02/07/2021,GUILDFORD CARE OP,Doves Healthcare Ltd,Home Base Care,783.02,Dom Care - Adults
02/07/2021,GUILDFORD CARE OP,Doves Healthcare Ltd,Home Base Care,783.02,Dom Care - Adults
02/07/2021,NULL,E W Beard Ltd,NULL,"689,863.24",General Build Maint
02/07/2021,WAVERLEY CARE OP,Eastlake Residential Home,Respite Residential,"2,557.29",Residential - OP
02/07/2021,RUNNYMEDE CARE OP,Enterprise Care Support Ltd,Home Base Care,"1,212.68",Dom Care - Adults
02/07/2021,RUNNYMEDE CARE OP,Enterprise Care Support Ltd,Home Base Care,"1,212.68",Dom Care - Adults
02/07/2021,LD-AUT CNTR TM CARE,Focus Support Ltd,Supported Living,"5,906.92",Residential - LD
02/07/2021,NULL,G E Building Services,NULL,"29,549.94",General Build Maint
02/07/2021,NULL,Geometric Results International,NULL,"47,796.65",Soc Care OM Cover
02/07/2021,LD-AUT CNTR TM CARE,Hartwig Care Ltd,Home Base Care,"1,142.68",Sup Living Children
02/07/2021,ELMBRIDGE CARE OP,Hartwig Care Ltd,Home Base Care,"1,497.26",Sup Living Children
02/07/2021,RUNNYMEDE CARE OP,Hartwig Care Ltd,Home Base Care,420.52,Sup Living Children
02/07/2021,RUNNYMEDE CARE PD,Hartwig Care Ltd,Home Base Care,804.54,Sup Living Children
02/07/2021,ELMBRIDGE CARE PD,Hartwig Care Ltd,Home Base Care,"1,168.00",Sup Living Children
02/07/2021,RUNNYMEDE CARE OP,Hartwig Care Ltd,Home Base Care,"1,508.82",Sup Living Children
02/07/2021,ELMBRIDGE CARE OP,Hartwig Care Ltd,Home Base Care,428.68,Sup Living Children
02/07/2021,RUNNYMEDE CARE OP,Hartwig Care Ltd,Home Base Care,601.86,Sup Living Children
02/07/2021,RUNNYMEDE CARE PD,Hartwig Care Ltd,Home Base Care,665.56,Sup Living Children
02/07/2021,RUNNYMEDE CARE OP,Hartwig Care Ltd,Home Base Care,"1,121.40",Sup Living Children
02/07/2021,ELMBRIDGE CARE PD,Hartwig Care Ltd,Home Base Care,255.50,Sup Living Children
02/07/2021,RUNNYMEDE CARE PD,Hartwig Care Ltd,Home Base Care,255.50,Sup Living Children
02/07/2021,WAVERLEY CARE PD,Haslemere Homecare,Home Base Care,847.50,Dom Care - Adults
02/07/2021,WAVERLEY CARE OP,Haslemere Homecare,Home Base Care,511.48,Dom Care - Adults
02/07/2021,WAVERLEY CARE PD,Haslemere Homecare,Home Base Care,840.64,Dom Care - Adults
02/07/2021,WAVERLEY CARE OP,Haslemere Homecare,Home Base Care,860.22,Dom Care - Adults
02/07/2021,WOKING CMHRS CARE,Islad Ltd,Supported Living,346.50,Extra Care
02/07/2021,WOKING CMHRS CARE,Islad Ltd,Supported Living,"2,574.00",Extra Care
02/07/2021,WOKING CMHRS CARE,Islad Ltd,Supported Living,"2,227.50",Extra Care
02/07/2021,NULL,Kinnarps (UK) Ltd,NULL,"4,243.07",Furniture - Office
02/07/2021,MENTAL HEALTH,Let's Link,New GR/IR Account,"18,000.00",Grants - Community
02/07/2021,ENSEMBLES,Redacted Personal Data,New GR/IR Account,681.50,Performing Arts
02/07/2021,WAVERLEY CARE OP,Longdene Homecare,Home Base Care,789.04,Dom Care - Adults
02/07/2021,LD-AUT CNTR TM CARE,Morley House,Supported Living,800.42,Dom Care - Adults
02/07/2021,GUILDFORD CARE OP,Nobilis Care Ltd,Home Base Care,498.82,Dom Care - Adults
02/07/2021,SURREY HEATH CARE OP,Nobilis Care Ltd,Home Base Care,"1,644.30",Dom Care - Adults
02/07/2021,GUILDFORD CARE OP,Nobilis Care Ltd,Home Base Care,711.76,Dom Care - Adults
02/07/2021,SURREY HEATH CARE OP,Nobilis Care Ltd,Home Base Care,498.82,Dom Care - Adults
02/07/2021,GUILDFORD CARE OP,Nobilis Care Ltd,Home Base Care,285.88,Dom Care - Adults
02/07/2021,GUILDFORD CARE PD,Nobilis Care Ltd,Home Base Care,333.03,Dom Care - Adults
02/07/2021,GUILDFORD CARE OP,Nobilis Care Ltd,Home Base Care,425.88,Dom Care - Adults
02/07/2021,SURREY HEATH CARE OP,Nobilis Care Ltd,Home Base Care,355.94,Dom Care - Adults
02/07/2021,WAVERLEY CARE PD,Novus Care Ltd,Home Base Care,944.84,Dom Care - Adults
02/07/2021,Schools Projects Rev,Pelling LLP,Consultants,"105,431.04",M-D (Property)
02/07/2021,Schools Projects Rev,Pelling LLP,Consultants,"10,764.00",M-D (Property)
02/07/2021,NULL,Potter Raper Partnership,NULL,"2,112.00",Edu Establishments
02/07/2021,NULL,Potter Raper Partnership,NULL,"2,112.00",Edu Establishments
02/07/2021,NE CARE - CARE LVRS,Redacted Personal Data,Other Community Care - Vol,450.00,Invoicing Plan Req.
02/07/2021,NE CARE - CARE LVRS,Redacted Personal Data,Equipment,400.00,Invoicing Plan Req.
02/07/2021,NE CWD NON-LAC CARE,Redacted Personal Data,Direct Payments - Carers of Disabled Children,"3,156.42",Adult direct payment
02/07/2021,SW UASC NRPF 18+ CRE,Redacted Personal Data,Equipment,400.00,Invoicing Plan Req.
02/07/2021,NW CWD NON-LAC CARE,Redacted Personal Data,Direct Payments - Carers of Disabled Children,948.87,Individual - NEC
02/07/2021,SW CWD NON-LAC CARE,Redacted Personal Data,Direct Payments - Carers of Disabled Children,"3,585.16",Individual - NEC
02/07/2021,NW NRPF FAM CARE,Redacted Personal Data,Other Community Care - Vol,250.00,Adult direct payment
02/07/2021,SW CARE - CARE LVRS,Redacted Personal Data,Children Act Sec 24 Payments,360.00,Invoicing Plan Req.
02/07/2021,NE S17 CARE,Redacted Personal Data,Other Community Care - Vol,400.00,Invoicing Plan Req.
02/07/2021,NULL,Redacted Personal Data,NULL,"2,691.00",Non-Staff Expenses
02/07/2021,CHILD ARRANGE ORDERS,Redacted Personal Data,Special Guardianship Orders,517.50,Invoicing Plan Req.
02/07/2021,COVID COMF FUND,Reigate & Banstead Borough Council,Grants-Public Bodies and Statutory Partnerships,"45,075.68",Grants-Member Allocs
02/07/2021,LD-AUT CNTR TM CARE,Royal Mencap Society,Supported Living,"1,555.56",Residential - MH
02/07/2021,LD-AUT CNTR TM CARE,Royal Mencap Society,Supported Living,264.42,Residential - MH
02/07/2021,LD-AUT CNTR TM CARE,Royal Mencap Society,Supported Living,622.22,Residential - MH
02/07/2021,LD-AUT CNTR TM CARE,Royal Mencap Society,Supported Living,"1,851.08",Residential - MH
02/07/2021,LD-AUT CNTR TM CARE,Royal Mencap Society,Supported Living,740.44,Residential - MH
02/07/2021,COVID COMF FUND,Runnymede Borough Council,Grants-Public Bodies and Statutory Partnerships,"27,098.50",Local Government
02/07/2021,KALIMA GRT,Sicuro UK Ltd,Security Alarm Maintenance,494.00,Surveys - Ecological
02/07/2021,EPSOM & EWELL CARE O,Significant (UK) Ltd,Other Community Care,340.80,Networking - WAN
02/07/2021,SPLTN - MEMBS ALLOCS,Staines Lammas Football Club,Grants-Third Sector and Voluntary Orgs/Charities,750.00,Grants-Member Allocs
02/07/2021,COVID COMF FUND,Surrey Heath Borough Council,Grants-Public Bodies and Statutory Partnerships,"27,062.44",Grants-Member Allocs
02/07/2021,TANDRIDGE CARE OP,Surrey Social Care Professionals Lt,Home Base Care,396.80,Dom Care - Adults
02/07/2021,TANDRIDGE CARE OP,Surrey Social Care Professionals Lt,Home Base Care,416.64,Dom Care - Adults
02/07/2021,TANDRIDGE CARE OP,Surrey Social Care Professionals Lt,Home Base Care,"1,111.04",Dom Care - Adults
02/07/2021,TANDRIDGE CARE PD,Surrey Social Care Professionals Lt,Home Base Care,714.24,Dom Care - Adults
02/07/2021,TANDRIDGE CARE OP,Surrey Social Care Professionals Lt,Home Base Care,624.96,Dom Care - Adults
02/07/2021,TANDRIDGE CARE PD,Surrey Social Care Professionals Lt,Home Base Care,833.28,Dom Care - Adults
02/07/2021,TANDRIDGE CARE OP,Surrey Social Care Professionals Lt,Home Base Care,357.12,Dom Care - Adults
02/07/2021,TANDRIDGE CARE OP,Surrey Social Care Professionals Lt,Home Base Care,486.08,Dom Care - Adults
02/07/2021,TANDRIDGE CARE OP,Surrey Social Care Professionals Lt,Home Base Care,"1,111.04",Dom Care - Adults
02/07/2021,REIGATE & BD CARE OP,Surrey Social Care Professionals Lt,Home Base Care,347.20,Dom Care - Adults
02/07/2021,TANDRIDGE CARE OP,Surrey Social Care Professionals Lt,Home Base Care,555.52,Dom Care - Adults
02/07/2021,REIGATE & BD CARE OP,Surrey Social Care Professionals Lt,Home Base Care,307.52,Dom Care - Adults
02/07/2021,REIGATE & BD CARE OP,Surrey Social Care Professionals Lt,Home Base Care,416.64,Dom Care - Adults
02/07/2021,TANDRIDGE CARE OP,Surrey Social Care Professionals Lt,Home Base Care,"1,249.92",Dom Care - Adults
02/07/2021,TANDRIDGE CARE OP,Surrey Social Care Professionals Lt,Home Base Care,347.20,Dom Care - Adults
02/07/2021,TANDRIDGE CARE OP,Surrey Social Care Professionals Lt,Home Base Care,"1,249.92",Dom Care - Adults
02/07/2021,REIGATE & BD CARE OP,Surrey Social Care Professionals Lt,Home Base Care,287.68,Dom Care - Adults
02/07/2021,REIGATE & BD CARE OP,Surrey Social Care Professionals Lt,Home Base Care,347.20,Dom Care - Adults
02/07/2021,REIGATE & BD CARE OP,Surrey Social Care Professionals Lt,Home Base Care,"1,111.04",Dom Care - Adults
02/07/2021,REIGATE & BD CARE PD,Surrey Social Care Professionals Lt,Home Base Care,327.36,Dom Care - Adults
02/07/2021,REIGATE & BD CARE OP,Surrey Social Care Professionals Lt,Home Base Care,277.76,Dom Care - Adults
02/07/2021,REIGATE & BD CARE OP,Surrey Social Care Professionals Lt,Home Base Care,456.32,Dom Care - Adults
02/07/2021,REIGATE & BD CARE OP,Surrey Social Care Professionals Lt,Home Base Care,347.20,Dom Care - Adults
02/07/2021,REIGATE & BD CARE OP,Surrey Social Care Professionals Lt,Home Base Care,486.08,Dom Care - Adults
02/07/2021,REIGATE & BD CARE PD,Surrey Social Care Professionals Lt,Home Base Care,486.08,Dom Care - Adults
02/07/2021,REIGATE & BD CARE OP,Surrey Social Care Professionals Lt,Home Base Care,357.12,Dom Care - Adults
02/07/2021,REIGATE & BD CARE OP,Surrey Social Care Professionals Lt,Home Base Care,982.08,Dom Care - Adults
02/07/2021,REIGATE & BD CARE OP,Surrey Social Care Professionals Lt,Home Base Care,"1,111.04",Dom Care - Adults
02/07/2021,REIGATE & BD CARE PD,Surrey Social Care Professionals Lt,Home Base Care,347.20,Dom Care - Adults
02/07/2021,REIGATE & BD CARE OP,Surrey Social Care Professionals Lt,Home Base Care,496.00,Dom Care - Adults
02/07/2021,REIGATE & BD CARE OP,Surrey Social Care Professionals Lt,Home Base Care,421.60,Dom Care - Adults
02/07/2021,REIGATE & BD CARE OP,Surrey Social Care Professionals Lt,Home Base Care,833.28,Dom Care - Adults
02/07/2021,REIGATE & BD CARE PD,Surrey Social Care Professionals Lt,Home Base Care,347.20,Dom Care - Adults
02/07/2021,REIGATE & BD CARE PD,Surrey Social Care Professionals Lt,Home Base Care,381.92,Dom Care - Adults
02/07/2021,REIGATE & BD CARE OP,Surrey Social Care Professionals Lt,Home Base Care,416.64,Dom Care - Adults
02/07/2021,REIGATE & BD CARE OP,Surrey Social Care Professionals Lt,Home Base Care,277.76,Dom Care - Adults
02/07/2021,RHILL&BTD CMHRS CARE,Surrey Social Care Professionals Lt,Home Base Care,277.76,Dom Care - Adults
02/07/2021,LD-AUT CNTR TM CARE,Sussex Empowered Living Ltd,Supported Living,"4,087.60",Sup Living Children
02/07/2021,NULL,Teachers Pensions,NULL,"27,583.83",Pensions
02/07/2021,NULL,Teachers Pensions,NULL,"6,105.69",Pensions
02/07/2021,NULL,Teachers Pensions,NULL,"5,693.34",Pensions
02/07/2021,NULL,Teachers Pensions,NULL,"30,453.11",Pensions
02/07/2021,NULL,Teachers Pensions,NULL,"6,888.43",Pensions
02/07/2021,NULL,Teachers Pensions,NULL,"802,181.91",Pensions
02/07/2021,NULL,Teachers Pensions,NULL,"69,259.45",Pensions
02/07/2021,NULL,Teachers Pensions,NULL,"17,355.99",Pensions
02/07/2021,NULL,Teachers Pensions,NULL,"2,049,473.18",Pensions
02/07/2021,NULL,Teachers Pensions,NULL,"14,712.11",Pensions
02/07/2021,NULL,Teachers Pensions,NULL,"2,175.48",Pensions
02/07/2021,NULL,Teachers Pensions,NULL,"3,947.76",Pensions
02/07/2021,NULL,Teachers Pensions,NULL,"6,046.65",Pensions
02/07/2021,NULL,Teachers Pensions,NULL,"58,622.71",Pensions
02/07/2021,NULL,Teachers Pensions,NULL,"3,845.98",Pensions
02/07/2021,NULL,Teachers Pensions,NULL,"36,769.28",Pensions
02/07/2021,NULL,Teachers Pensions,NULL,"13,865.00",Pensions
02/07/2021,NULL,Teachers Pensions,NULL,"14,685.00",Pensions
02/07/2021,NULL,Teachers Pensions,NULL,"14,423.42",Pensions
02/07/2021,NULL,Teachers Pensions,NULL,"9,494.74",Pensions
02/07/2021,NULL,Teachers Pensions,NULL,"23,245.21",Pensions
02/07/2021,NULL,Teachers Pensions,NULL,"61,994.04",Pensions
02/07/2021,NULL,Teachers Pensions,NULL,"10,307.92",Pensions
02/07/2021,NULL,Teachers Pensions,NULL,985.60,Pensions
02/07/2021,NULL,Teachers Pensions,NULL,"1,169.37",Pensions
02/07/2021,NULL,Teachers Pensions,NULL,"5,343.41",Pensions
02/07/2021,NULL,Teachers Pensions,NULL,"5,490.36",Pensions
02/07/2021,NULL,Teachers Pensions,NULL,"3,647.79",Pensions
02/07/2021,NULL,Teachers Pensions,NULL,"25,656.25",Pensions
02/07/2021,NULL,Teachers Pensions,NULL,"9,198.49",Pensions
02/07/2021,NULL,Teachers Pensions,NULL,"25,040.48",Pensions
02/07/2021,NULL,Teachers Pensions,NULL,"10,650.62",Pensions
02/07/2021,NULL,Teachers Pensions,NULL,"5,837.90",Pensions
02/07/2021,NULL,Teachers Pensions,NULL,"15,542.09",Pensions
02/07/2021,NULL,Teachers Pensions,NULL,"10,103.71",Pensions
02/07/2021,NULL,Teachers Pensions,NULL,"76,128.01",Pensions
02/07/2021,NULL,Teachers Pensions,NULL,"162,794.95",Pensions
02/07/2021,NULL,Teachers Pensions,NULL,"69,265.73",Pensions
02/07/2021,NULL,Teachers Pensions,NULL,"6,716.92",Pensions
02/07/2021,NULL,Teachers Pensions,NULL,"1,201.31",Pensions
02/07/2021,NULL,Teachers Pensions,NULL,253.40,Pensions
02/07/2021,NULL,Teachers Pensions,NULL,"3,174.03",Pensions
02/07/2021,NULL,Teachers Pensions,NULL,"4,261.57",Pensions
02/07/2021,NULL,Teachers Pensions,NULL,"5,376.94",Pensions
02/07/2021,NULL,Teachers Pensions,NULL,"6,745.69",Pensions
02/07/2021,NULL,Teachers Pensions,NULL,"36,336.02",Pensions
02/07/2021,NULL,Teachers Pensions,NULL,"28,022.24",Pensions
02/07/2021,NULL,Teachers Pensions,NULL,"2,620.56",Pensions
02/07/2021,NULL,Teachers Pensions,NULL,"4,023.92",Pensions
02/07/2021,NULL,Teachers Pensions,NULL,"15,307.92",Pensions
02/07/2021,NULL,Teachers Pensions,NULL,"14,186.95",Pensions
02/07/2021,NULL,Teachers Pensions,NULL,"62,905.04",Pensions
02/07/2021,NULL,Teachers Pensions,NULL,"90,270.74",Pensions
02/07/2021,NULL,Teachers Pensions,NULL,"16,991.75",Pensions
02/07/2021,NULL,Teachers Pensions,NULL,"9,959.19",Pensions
02/07/2021,NULL,Teachers Pensions,NULL,307.08,Pensions
02/07/2021,LD-AUT CNTR TM CARE,The Grange Centre,Day Care,912.76,Grants-Member Allocs
02/07/2021,LD-AUT CNTR TM CARE,The Grange Centre,Day Care,766.93,Grants-Member Allocs
02/07/2021,LD-AUT CNTR TM CARE,The Grange Centre,Day Care,531.57,Grants-Member Allocs
02/07/2021,LD-AUT CNTR TM CARE,The Grange Centre,Day Care,"1,070.92",Grants-Member Allocs
02/07/2021,LD-AUT CNTR TM CARE,The Grange Centre,Day Care,"1,107.12",Grants-Member Allocs
02/07/2021,LD-AUT CNTR TM CARE,The Grange Centre,Day Care,632.64,Grants-Member Allocs
02/07/2021,LD-AUT CNTR TM CARE,The Grange Centre,Day Care,632.64,Grants-Member Allocs
02/07/2021,NULL,The McAvoy Group Ltd,NULL,"73,272.53",Edu Establishments
02/07/2021,SPELTHORNE CARE OP,The Peaches Healthcare Ltd,Home Base Care,714.42,Dom Care - Adults
02/07/2021,SPELTHORNE CARE OP,The Peaches Healthcare Ltd,Home Base Care,262.90,Dom Care - Adults
02/07/2021,SPELTHORNE CARE OP,The Peaches Healthcare Ltd,Home Base Care,533.70,Dom Care - Adults
02/07/2021,SPELTHORNE CARE OP,The Peaches Healthcare Ltd,Home Base Care,685.58,Dom Care - Adults
02/07/2021,SPELTHORNE CARE OP,The Peaches Healthcare Ltd,Home Base Care,533.70,Dom Care - Adults
02/07/2021,LD-AUT CNTR TM CARE,THF Care Estates Ltd,Day Care,"1,053.50",Residential - MH
02/07/2021,LD-AUT CNTR TM CARE,THF Care Estates Ltd,Day Care,275.97,Residential - MH
02/07/2021,LD-AUT CNTR TM CARE,Time For You PA Services,Supported Living,"2,754.00",Supp Living - LD
02/07/2021,PERM SURP LAND,UK Power Networks Ltd,Fees,"1,390.80",Utilities - Gas
02/07/2021,FEASIBILITY FUNDING,Vail Williams LLP - SCC Client Depo,Fees,"12,600.00",M-D (Property)
02/07/2021,RHILL&BTD CMHRS CARE,Venture-People Ltd,Supported Living,"1,479.18",Residential - OP
02/07/2021,NULL,Weightmans LLP,NULL,"1,094.50",Insurance Services
02/07/2021,REIGATE & BD CARE OP,Your Quality Care Services Ltd,Home Base Care,"1,290.52",Residential - MH
02/07/2021,EPSOM & EWELL CARE O,Your Quality Care Services Ltd,Home Base Care,446.04,Residential - MH
02/07/2021,EPSOM & EWELL CARE O,Your Quality Care Services Ltd,Home Base Care,993.16,Residential - MH
02/07/2021,EPSOM & EWELL CARE O,Your Quality Care Services Ltd,Home Base Care,368.32,Residential - MH
02/07/2021,REIGATE & BD CARE OP,Your Quality Care Services Ltd,Home Base Care,483.56,Residential - MH
02/07/2021,REIGATE & BD CARE OP,Your Quality Care Services Ltd,Home Base Care,483.56,Residential - MH
02/07/2021,EPSOM & EWELL CARE O,Your Quality Care Services Ltd,Home Base Care,446.04,Residential - MH
02/07/2021,EPSOM & EWELL CARE O,Your Quality Care Services Ltd,Home Base Care,993.16,Residential - MH
02/07/2021,EPSOM & EWELL CARE O,Your Quality Care Services Ltd,Home Base Care,368.32,Residential - MH
02/07/2021,EPSOM & EWELL CARE O,Your Quality Care Services Ltd,Home Base Care,617.85,Residential - MH
02/07/2021,REIGATE & BD CARE OP,Your Quality Care Services Ltd,Home Base Care,"1,290.52",Residential - MH
05/07/2021,PAINSHILL FIRE STN,3C Environmental Technology,Term Contract Works,250.13,General Build Maint
05/07/2021,HENRIETTA PARKER CTR,3C Environmental Technology,Term Contract Works,375.36,General Build Maint
05/07/2021,FAIRWAYS,3C Environmental Technology,Corporate Responsive Maintenance,640.80,General Build Maint
05/07/2021,FAIRWAYS,3C Environmental Technology,Term Contract Works,"1,789.18",General Build Maint
05/07/2021,NULL,All Hallows Catholic School,NULL,"61,393.98",Schools
05/07/2021,WOKING CMHRS CARE,Alpha Extreme Services Ltd,Other Community Care,408.00,Dom Cleaning Serv
05/07/2021,SY HEATH CMHRS CARE,Alpha Extreme Services Ltd,Other Community Care,408.00,Dom Cleaning Serv
05/07/2021,GUILDFORD CMHRS CARE,Alpha Extreme Services Ltd,Other Community Care,"1,308.00",Dom Cleaning Serv
05/07/2021,RUNNYMEDE CARE OP,Amily Homecare,Home Base Care,760.50,Dom Care - Adults
05/07/2021,ELMBRIDGE CARE OP,Amily Homecare,Home Base Care,586.04,Dom Care - Adults
05/07/2021,ELMBRIDGE CARE PD,Amily Homecare,Home Base Care,605.87,Dom Care - Adults
05/07/2021,ELMBRIDGE CARE OP,Amily Homecare,Home Base Care,"1,711.64",Dom Care - Adults
05/07/2021,NW CARE - CPCRT NONL,Angel Cars Woking,Hire of Vehicles,624.00,Taxi Hire (SEN Only)
05/07/2021,SURREY HEATH CARE PD,Around The Clock Care Agency Ltd,Home Base Care,"7,112.56",Residential - OP
05/07/2021,GUILDFORD CARE PD,Around The Clock Care Agency Ltd,Home Base Care,867.02,Residential - OP
05/07/2021,GUILDFORD CARE OP,Around The Clock Care Agency Ltd,Home Base Care,721.84,Residential - OP
05/07/2021,WAVERLEY CARE OP,Around The Clock Care Agency Ltd,Home Base Care,"1,734.04",Residential - OP
05/07/2021,MOLE VALLEY CARE PD,Around The Clock Care Agency Ltd,Home Base Care,371.16,Residential - OP
05/07/2021,GUILDFORD CARE OP,Around The Clock Care Agency Ltd,Home Base Care,867.02,Residential - OP
05/07/2021,SURREY HEATH CARE OP,Around The Clock Care Agency Ltd,Home Base Care,"1,114.74",Residential - OP
05/07/2021,GUILDFORD CARE OP,Around The Clock Care Agency Ltd,Home Base Care,649.74,Residential - OP
05/07/2021,WAVERLEY CARE OP,Around The Clock Care Agency Ltd,Home Base Care,"1,734.04",Residential - OP
05/07/2021,GUILDFORD CARE OP,Around The Clock Care Agency Ltd,Home Base Care,"1,472.52",Residential - OP
05/07/2021,GUILDFORD CARE OP,Around The Clock Care Agency Ltd,Home Base Care,577.36,Residential - OP
05/07/2021,MOLE VALLEY CARE PD,Around The Clock Care Agency Ltd,Home Base Care,"1,734.04",Residential - OP
05/07/2021,SURREY HEATH CARE OP,Around The Clock Care Agency Ltd,Home Base Care,365.66,Residential - OP
05/07/2021,GUILDFORD CARE OP,Around The Clock Care Agency Ltd,Home Base Care,"1,732.64",Residential - OP
05/07/2021,GUILDFORD CARE OP,Around The Clock Care Agency Ltd,Home Base Care,"3,790.78",Residential - OP
05/07/2021,GUILDFORD CARE OP,Around The Clock Care Agency Ltd,Home Base Care,"1,734.04",Residential - OP
05/07/2021,GUILDFORD CARE OP,Around The Clock Care Agency Ltd,Home Base Care,"1,734.04",Residential - OP
05/07/2021,GUILDFORD CARE OP,Around The Clock Care Agency Ltd,Home Base Care,"1,734.04",Residential - OP
05/07/2021,SURREY HEATH CARE OP,Around The Clock Care Agency Ltd,Home Base Care,"1,140.58",Residential - OP
05/07/2021,GUILDFORD CARE OP,Around The Clock Care Agency Ltd,Home Base Care,"1,734.04",Residential - OP
05/07/2021,SURREY HEATH CARE OP,Around The Clock Care Agency Ltd,Home Base Care,"1,465.32",Residential - OP
05/07/2021,SURREY HEATH CARE OP,Around The Clock Care Agency Ltd,Home Base Care,"1,992.20",Residential - OP
05/07/2021,WAVERLEY CARE OP,Around The Clock Care Agency Ltd,Home Base Care,577.36,Residential - OP
05/07/2021,GUILDFORD CARE OP,Around The Clock Care Agency Ltd,Home Base Care,315.36,Residential - OP
05/07/2021,SURREY HEATH CARE OP,Around The Clock Care Agency Ltd,Home Base Care,"1,790.32",Residential - OP
05/07/2021,GUILDFORD CARE OP,Around The Clock Care Agency Ltd,Home Base Care,967.26,Residential - OP
05/07/2021,GUILDFORD CARE OP,Around The Clock Care Agency Ltd,Home Base Care,288.68,Residential - OP
05/07/2021,SURREY HEATH CARE PD,Around The Clock Care Agency Ltd,Home Base Care,"2,021.04",Residential - OP
05/07/2021,REIGATE & BD CARE OP,Ashcroft Operations Ltd,Other Community Care,"2,934.84",Residential - OP
05/07/2021,LD-AUT CNTR TM CARE,Ashcroft Operations Ltd,Other Community Care,634.56,Residential - OP
05/07/2021,LD-AUT CNTR TM CARE,Ashcroft Operations Ltd,Other Community Care,525.50,Residential - OP
05/07/2021,WAVERLEY CARE OP,Astor Care & Nursing Agency,Home Base Care,460.60,Dom Care - Adults
05/07/2021,GUILDFORD CARE PD,Astor Care & Nursing Agency,Home Base Care,533.28,Dom Care - Adults
05/07/2021,WAVERLEY CARE OP,Astor Care & Nursing Agency,Home Base Care,448.48,Dom Care - Adults
05/07/2021,WAVERLEY CARE OP,Astor Care & Nursing Agency,Home Base Care,"1,599.92",Dom Care - Adults
05/07/2021,SY HEATH CMHRS CARE,Astor Care & Nursing Agency,Home Base Care,685.74,Dom Care - Adults
05/07/2021,GUILDFORD CARE OP,Astor Care & Nursing Agency,Home Base Care,765.38,Dom Care - Adults
05/07/2021,WAVERLEY CARE OP,Astor Care & Nursing Agency,Home Base Care,"1,007.62",Dom Care - Adults
05/07/2021,WOKING CARE OP,Astor Care & Nursing Agency,Home Base Care,736.61,Dom Care - Adults
05/07/2021,WOKING CARE OP,Astor Care & Nursing Agency,Home Base Care,745.78,Dom Care - Adults
05/07/2021,WAVERLEY CARE OP,Astor Care & Nursing Agency,Home Base Care,563.98,Dom Care - Adults
05/07/2021,GUILDFORD CARE OP,Astor Care & Nursing Agency,Home Base Care,682.68,Dom Care - Adults
05/07/2021,GUILDFORD CARE OP,Astor Care & Nursing Agency,Home Base Care,489.54,Dom Care - Adults
05/07/2021,WAVERLEY CARE OP,Astor Care & Nursing Agency,Home Base Care,512.52,Dom Care - Adults
05/07/2021,GUILDFORD CARE OP,Astor Care & Nursing Agency,Home Base Care,700.78,Dom Care - Adults
05/07/2021,RUNNYMEDE CARE PD,Astor Care & Nursing Agency,Home Base Care,"1,552.20",Dom Care - Adults
05/07/2021,WAVERLEY CARE OP,Astor Care & Nursing Agency,Home Base Care,576.10,Dom Care - Adults
05/07/2021,WOKING CARE OP,Astor Care & Nursing Agency,Home Base Care,"2,477.44",Dom Care - Adults
05/07/2021,WAVERLEY CARE OP,Astor Care & Nursing Agency,Home Base Care,509.04,Dom Care - Adults
05/07/2021,WAVERLEY CARE OP,Astor Care & Nursing Agency,Home Base Care,"1,369.44",Dom Care - Adults
05/07/2021,WAVERLEY CARE OP,Astor Care & Nursing Agency,Home Base Care,576.10,Dom Care - Adults
05/07/2021,WAVERLEY CARE OP,Astor Care & Nursing Agency,Home Base Care,630.28,Dom Care - Adults
05/07/2021,LD-AUT CNTR TM CARE,Astor Care & Nursing Agency,Home Base Care,286.04,Dom Care - Adults
05/07/2021,WAVERLEY CARE OP,Astor Care & Nursing Agency,Home Base Care,745.78,Dom Care - Adults
05/07/2021,WAVERLEY CARE OP,Astor Care & Nursing Agency,Home Base Care,"1,271.02",Dom Care - Adults
05/07/2021,WOKING CARE OP,Astor Care & Nursing Agency,Home Base Care,796.00,Dom Care - Adults
05/07/2021,SURREY HEATH CARE OP,Astor Care & Nursing Agency,Home Base Care,489.54,Dom Care - Adults
05/07/2021,GUILDFORD CARE OP,Astor Care & Nursing Agency,Home Base Care,315.12,Dom Care - Adults
05/07/2021,WAVERLEY CARE OP,Astor Care & Nursing Agency,Home Base Care,339.36,Dom Care - Adults
05/07/2021,WAVERLEY CARE OP,Astor Care & Nursing Agency,Home Base Care,406.42,Dom Care - Adults
05/07/2021,WAVERLEY CARE OP,Astor Care & Nursing Agency,Home Base Care,382.18,Dom Care - Adults
05/07/2021,WAVERLEY CARE OP,Astor Care & Nursing Agency,Home Base Care,509.04,Dom Care - Adults
05/07/2021,WAVERLEY CARE OP,Astor Care & Nursing Agency,Home Base Care,576.10,Dom Care - Adults
05/07/2021,GUILDFORD CARE OP,Astor Care & Nursing Agency,Home Base Care,721.54,Dom Care - Adults
05/07/2021,WOKING CARE OP,Astor Care & Nursing Agency,Home Base Care,339.36,Dom Care - Adults
05/07/2021,WAVERLEY CARE OP,Astor Care & Nursing Agency,Home Base Care,626.32,Dom Care - Adults
05/07/2021,WAVERLEY CARE OP,Astor Care & Nursing Agency,Home Base Care,509.04,Dom Care - Adults
05/07/2021,WAVERLEY CARE PD,Astor Care & Nursing Agency,Home Base Care,"1,264.76",Dom Care - Adults
05/07/2021,WOKING CMHRS CARE,Astor Care & Nursing Agency,Home Base Care,415.60,Dom Care - Adults
05/07/2021,WAVERLEY CARE PD,Astor Care & Nursing Agency,Home Base Care,"1,909.72",Dom Care - Adults
05/07/2021,GUILDFORD CARE OP,Astor Care & Nursing Agency,Home Base Care,251.00,Dom Care - Adults
05/07/2021,WAVERLEY CARE OP,Astor Care & Nursing Agency,Home Base Care,406.42,Dom Care - Adults
05/07/2021,LD-AUT CNTR TM CARE,Astor Care & Nursing Agency,Home Base Care,290.92,Dom Care - Adults
05/07/2021,WOKING CARE PD,Astor Care & Nursing Agency,Home Base Care,380.92,Dom Care - Adults
05/07/2021,WAVERLEY CARE OP,Astor Care & Nursing Agency,Home Base Care,643.16,Dom Care - Adults
05/07/2021,LD-AUT CNTR TM CARE,Astor Care & Nursing Agency,Home Base Care,543.72,Dom Care - Adults
05/07/2021,WAVERLEY CARE PD,Astor Care & Nursing Agency,Home Base Care,"1,709.75",Dom Care - Adults
05/07/2021,RUNNYMEDE CARE OP,Astor Care & Nursing Agency,Home Base Care,518.62,Dom Care - Adults
05/07/2021,LD-AUT CNTR TM CARE,Astor Care & Nursing Agency,Home Base Care,332.48,Dom Care - Adults
05/07/2021,GUILDFORD CARE OP,Astor Care & Nursing Agency,Home Base Care,290.92,Dom Care - Adults
05/07/2021,WAVERLEY CARE OP,Astor Care & Nursing Agency,Home Base Care,"1,260.56",Dom Care - Adults
05/07/2021,GUILDFORD CARE OP,Astor Care & Nursing Agency,Home Base Care,576.10,Dom Care - Adults
05/07/2021,WAVERLEY CARE OP,Astor Care & Nursing Agency,Home Base Care,"1,599.92",Dom Care - Adults
05/07/2021,WAVERLEY CARE OP,Astor Care & Nursing Agency,Home Base Care,415.60,Dom Care - Adults
05/07/2021,WAVERLEY CARE OP,Astor Care & Nursing Agency,Home Base Care,757.90,Dom Care - Adults
05/07/2021,GUILDFORD CARE OP,Astor Care & Nursing Agency,Home Base Care,274.62,Dom Care - Adults
05/07/2021,GUILDFORD CARE OP,Astor Care & Nursing Agency,Home Base Care,"2,477.44",Dom Care - Adults
05/07/2021,GUILDFORD CARE PD,Astor Care & Nursing Agency,Home Base Care,356.22,Dom Care - Adults
05/07/2021,WAVERLEY CARE PD,Astor Care & Nursing Agency,Home Base Care,742.34,Dom Care - Adults
05/07/2021,LD-AUT CNTR TM CARE,Astor Care & Nursing Agency,Home Base Care,"2,477.44",Dom Care - Adults
05/07/2021,WAVERLEY CARE OP,Berkeley Home Health,Home Base Care,892.00,Dom Care - Adults
05/07/2021,WAVERLEY CARE OP,Berkeley Home Health,Home Base Care,"1,154.50",Dom Care - Adults
05/07/2021,NULL,Burhill Primary School,NULL,"70,931.57",Schools
05/07/2021,NULL,Burpham Foundation Primary School,NULL,"31,873.34",Schools
05/07/2021,NULL,Bushy Hill Junior School,NULL,"5,350.70",Schools
05/07/2021,EPSOM & EWELL CARE O,Care More Ltd,Home Base Care,927.80,Residential - OP
05/07/2021,EPSOM & EWELL CARE O,Care More Ltd,Home Base Care,608.25,Residential - OP
05/07/2021,REIGATE & BD CARE PD,Care More Ltd,Home Base Care,295.94,Residential - OP
05/07/2021,EPSOM & EWELL CARE P,Care More Ltd,Home Base Care,779.52,Residential - OP
05/07/2021,EPSOM & EWELL CARE O,Care More Ltd,Home Base Care,591.76,Residential - OP
05/07/2021,EPSOM & EWELL CARE O,Care More Ltd,Home Base Care,346.36,Residential - OP
05/07/2021,EPSOM & EWELL CARE O,Care More Ltd,Home Base Care,519.54,Residential - OP
05/07/2021,EPSOM & EWELL CARE O,Care More Ltd,Home Base Care,793.80,Residential - OP
05/07/2021,EPSOM & EWELL CARE O,Care More Ltd,Home Base Care,924.00,Residential - OP
05/07/2021,EPSOM & EWELL CARE O,Care More Ltd,Home Base Care,519.54,Residential - OP
05/07/2021,EPSOM & EWELL CARE O,Care More Ltd,Home Base Care,562.94,Residential - OP
05/07/2021,EPSOM & EWELL CARE O,Care More Ltd,Home Base Care,"1,472.24",Residential - OP
05/07/2021,EPSOM & EWELL CARE P,Care More Ltd,Home Base Care,266.06,Residential - OP
05/07/2021,REIGATE & BD CARE OP,Care More Ltd,Home Base Care,736.12,Residential - OP
05/07/2021,EPSOM & EWELL CARE O,Care More Ltd,Home Base Care,352.62,Residential - OP
05/07/2021,EPSOM & EWELL CARE O,Care More Ltd,Home Base Care,736.12,Residential - OP
05/07/2021,EPSOM & EWELL CARE O,Care More Ltd,Home Base Care,736.12,Residential - OP
05/07/2021,EPSOM & EWELL CARE P,Care More Ltd,Home Base Care,905.50,Residential - OP
05/07/2021,EPSOM & EWELL CARE P,Care More Ltd,Home Base Care,837.20,Residential - OP
05/07/2021,EPSOM & EWELL CARE O,Care More Ltd,Home Base Care,"1,039.08",Residential - OP
05/07/2021,EPSOM & EWELL CARE O,Care More Ltd,Home Base Care,"1,310.46",Residential - OP
05/07/2021,EPSOM & EWELL CARE O,Care More Ltd,Home Base Care,389.73,Residential - OP
05/07/2021,EPSOM & EWELL CARE O,Care More Ltd,Home Base Care,"1,385.44",Residential - OP
05/07/2021,EPSOM & EWELL CARE O,Care More Ltd,Home Base Care,628.90,Residential - OP
05/07/2021,EPSOM & EWELL CARE O,Care More Ltd,Home Base Care,389.76,Residential - OP
05/07/2021,SURREY HEATH CARE OP,Cherrydale Residential Home,Respite Residential Dementia,"1,000.00",Residential - OP
05/07/2021,SURREY HEATH CARE OP,Cherrydale Residential Home,Respite Residential Dementia,400.00,Residential - OP
05/07/2021,RUNNYMEDE CARE OP,Church View Care Home,Respite Residential,"2,040.00",Residential - LD
05/07/2021,NULL,Clarendon County Primary School,NULL,"46,281.37",Nurseries
05/07/2021,NULL,Clarendon County Primary School,NULL,"32,277.64",Nurseries
05/07/2021,ELMBRIDGE CARE PD,Clarendon Home Care,Home Base Care,"1,084.72",Dom Care - Adults
05/07/2021,ELMBRIDGE CARE PD,Clarendon Home Care,Home Base Care,"1,340.60",Dom Care - Adults
05/07/2021,ELMBRIDGE CARE OP,Clarendon Home Care,Home Base Care,509.46,Dom Care - Adults
05/07/2021,ELMBRIDGE CARE OP,Clarendon Home Care,Home Base Care,466.20,Dom Care - Adults
05/07/2021,ELMBRIDGE CARE OP,Clarendon Home Care,Home Base Care,575.62,Dom Care - Adults
05/07/2021,NULL,Colours Decorating Ltd,NULL,"5,832.14","Comm, Res & Inv Prop"
05/07/2021,LD-AUT CNTR TM CARE,Cornerstones Supported Living,Supported Living,"9,940.56",Residential - MH
05/07/2021,NULL,Cosmur Construction (London) Ltd,NULL,"9,547.18",Edu Establishments
05/07/2021,SE TRANSPORT,Courtesy Cars Redhill,Hire of Vehicles,"4,489.32",Multi-purpose Veh
05/07/2021,SE TRANSPORT,Courtesy Cars Redhill,Hire of Vehicles,"4,012.80",Multi-purpose Veh
05/07/2021,SE TRANSPORT,Courtesy Cars Redhill,Hire of Vehicles,"3,980.03",Multi-purpose Veh
05/07/2021,SE TRANSPORT,Courtesy Cars Redhill,Coach Escorts Contracted,"1,254.00",Multi-purpose Veh
05/07/2021,SE TRANSPORT,Courtesy Cars Redhill,Coach Escorts Contracted,"1,114.92",Multi-purpose Veh
05/07/2021,SE TRANSPORT,Courtesy Cars Redhill,Hire of Vehicles,"1,805.05",Multi-purpose Veh
05/07/2021,SE TRANSPORT,Courtesy Cars Redhill,Hire of Vehicles,"2,040.60",Multi-purpose Veh
05/07/2021,SW TRANSPORT,Courtesy Cars Redhill,Hire of Vehicles,557.17,Multi-purpose Veh
05/07/2021,NE TRANSPORT,Courtesy Cars Redhill,Hire of Vehicles,"1,402.07",Multi-purpose Veh
05/07/2021,SE TRANSPORT,Courtesy Cars Redhill,Hire of Vehicles,"4,240.93",Multi-purpose Veh
05/07/2021,SE TRANSPORT,Courtesy Cars Redhill,Hire of Vehicles,"4,920.24",Multi-purpose Veh
05/07/2021,SE TRANSPORT,Courtesy Cars Redhill,Coach Escorts Contracted,"1,926.60",Multi-purpose Veh
05/07/2021,SE TRANSPORT,Courtesy Cars Redhill,Hire of Vehicles,"3,669.96",Multi-purpose Veh
05/07/2021,SE TRANSPORT,Courtesy Cars Redhill,Hire of Vehicles,"3,582.00",Multi-purpose Veh
05/07/2021,SE TRANSPORT,Courtesy Cars Redhill,Coach Escorts Contracted,475.48,Multi-purpose Veh
05/07/2021,NE TRANSPORT,Courtesy Cars Redhill,Coach Escorts Contracted,475.48,Multi-purpose Veh
05/07/2021,SE TRANSPORT,Courtesy Cars Redhill,Coach Escorts Contracted,"1,322.40",Multi-purpose Veh
05/07/2021,SE TRANSPORT,Courtesy Cars Redhill,Hire of Vehicles,"3,146.40",Multi-purpose Veh
05/07/2021,SE TRANSPORT,Courtesy Cars Redhill,Coach Escorts Contracted,820.80,Multi-purpose Veh
05/07/2021,SE TRANSPORT,Courtesy Cars Redhill,Coach Escorts Contracted,"1,242.60",Multi-purpose Veh
05/07/2021,NE TRANSPORT,Courtesy Cars Redhill,Hire of Vehicles,"2,268.00",Multi-purpose Veh
05/07/2021,TRANSPORT C19 GRANT,Courtesy Cars Redhill,Hire of Vehicles,"5,151.60",Multi-purpose Veh
05/07/2021,TRANSPORT C19 GRANT,Courtesy Cars Redhill,Coach Escorts Contracted,"1,768.80",Multi-purpose Veh
05/07/2021,SE TRANSPORT,Courtesy Cars Redhill,Hire of Vehicles,"3,172.75",Multi-purpose Veh
05/07/2021,NE TRANSPORT,Courtesy Cars Redhill,Hire of Vehicles,"1,177.54",Multi-purpose Veh
05/07/2021,SE TRANSPORT,Courtesy Cars Redhill,Hire of Vehicles,"3,317.40",Multi-purpose Veh
05/07/2021,SE TRANSPORT,Courtesy Cars Redhill,Coach Escorts Contracted,"1,242.60",Multi-purpose Veh
05/07/2021,SE TRANSPORT,Courtesy Cars Redhill,Coach Escorts Contracted,909.72,Multi-purpose Veh
05/07/2021,SE TRANSPORT,Courtesy Cars Redhill,Hire of Vehicles,"2,732.06",Multi-purpose Veh
05/07/2021,SE TRANSPORT,Courtesy Cars Redhill,Coach Escorts Contracted,"1,173.00",Multi-purpose Veh
05/07/2021,SE TRANSPORT,Courtesy Cars Redhill,Coach Escorts Contracted,"1,101.00",Multi-purpose Veh
05/07/2021,TRANSPORT C19 GRANT,Courtesy Cars Redhill,Hire of Vehicles,"5,204.04",Multi-purpose Veh
05/07/2021,TRANSPORT C19 GRANT,Courtesy Cars Redhill,Hire of Vehicles,400.39,Multi-purpose Veh
05/07/2021,SW TRANSPORT,Courtesy Cars Redhill,Hire of Vehicles,908.15,Multi-purpose Veh
05/07/2021,NE TRANSPORT,Courtesy Cars Redhill,Hire of Vehicles,"1,622.74",Multi-purpose Veh
05/07/2021,SE TRANSPORT,Courtesy Cars Redhill,Hire of Vehicles,"3,853.20",Multi-purpose Veh
05/07/2021,SE TRANSPORT,Courtesy Cars Redhill,Coach Escorts Contracted,889.20,Multi-purpose Veh
05/07/2021,SE TRANSPORT,Courtesy Cars Redhill,Hire of Vehicles,"4,545.12",Multi-purpose Veh
05/07/2021,SE TRANSPORT,Courtesy Cars Redhill,Coach Escorts Contracted,"1,135.80",Multi-purpose Veh
05/07/2021,SE TRANSPORT,Courtesy Cars Redhill,Hire of Vehicles,"4,607.88",Multi-purpose Veh
05/07/2021,NE TRANSPORT,Courtesy Cars Redhill,Coach Escorts Contracted,842.40,Multi-purpose Veh
05/07/2021,TRANSPORT C19 GRANT,Courtesy Cars Redhill,Coach Escorts Contracted,"1,331.40",Multi-purpose Veh
05/07/2021,TRANSPORT C19 GRANT,Courtesy Cars Redhill,Coach Escorts Contracted,475.48,Multi-purpose Veh
05/07/2021,PLD TRANSITION,David Howard Ltd,Other Community Care,326.76,Extra Care
05/07/2021,EPSOM & EWELL CARE O,Day & Nite Services Ltd,Home Base Care,305.34,Dom Care - Adults
05/07/2021,EPSOM & EWELL CARE O,Day & Nite Services Ltd,Home Base Care,305.34,Dom Care - Adults
05/07/2021,EPSOM & EWELL CARE O,Day & Nite Services Ltd,Home Base Care,610.68,Dom Care - Adults
05/07/2021,EPSOM & EWELL CARE O,Day & Nite Services Ltd,Home Base Care,610.68,Dom Care - Adults
05/07/2021,EPS & EW CMHRS CARE,Dulverton Court,Supported Living,"7,800.00",Residential - OP
05/07/2021,EPS & EW CMHRS CARE,Dulverton Court,Supported Living,"10,920.00",Residential - OP
05/07/2021,SEN TRANSPORT,East Sussex County Council,Hire of Vehicles,"11,040.00",Local Government
05/07/2021,SEN TRANSPORT,East Sussex County Council,Hire of Vehicles,"8,640.00",Local Government
05/07/2021,TANDRIDGE CARE OP,Evergood Medicals Ltd,Home Base Care,844.56,Dom Care - Adults
05/07/2021,ELMBRIDGE CARE PD,Extra Help Surrey,Other Community Care,576.00,Dom Care - Adults
05/07/2021,ACTIVE SURREY,Farnham Heath End School,Grants-Public Bodies and Statutory Partnerships,988.00,Schools
05/07/2021,NULL,G E Building Services,NULL,"50,301.40",General Build Maint
05/07/2021,NULL,Godstone Village School,NULL,"50,486.39",Schools
05/07/2021,LD-AUT CNTR TM CARE,Grassroots Project,Day Care,306.00,Day Care - PSD
05/07/2021,LD-AUT CNTR TM CARE,Grassroots Project,Day Care,306.00,Day Care - PSD
05/07/2021,NULL,Grovelands Primary School,NULL,"35,337.65",Venue Hire
05/07/2021,NULL,Guildford Children's Centre,NULL,"46,566.25",Grants-Member Allocs
05/07/2021,NULL,Hawkedale Infants School,NULL,"24,199.68",Schools
05/07/2021,LD-AUT CNTR TM CARE,HCL Chauffeurs UK Ltd,Hire of Vehicles,840.00,Multi-purpose Veh
05/07/2021,NULL,Heather Ridge Infant School,NULL,"70,285.58",Grants-Member Allocs
05/07/2021,FEASIBILITY FUNDING,HLM Architects,Fees,480.00,M-D (Property)
05/07/2021,NULL,Holy Trinity COE (A) Junior School,NULL,"27,834.46",Schools
05/07/2021,WAVERLEY CARE OP,Jaysh Care Services,Home Base Care,"1,736.00",Dom Care - Adults
05/07/2021,WAVERLEY CARE OP,Jaysh Care Services,Home Base Care,"1,736.00",Dom Care - Adults
05/07/2021,NULL,Kings International College,NULL,"215,905.00",Grants-Member Allocs
05/07/2021,ACTIVE SURREY,Kings International College,Grants-Public Bodies and Statutory Partnerships,"10,278.00",Grants-Member Allocs
05/07/2021,NULL,Leatherhead Trinity School & Childr,NULL,"106,492.01",Health Visiting
05/07/2021,WAVERLEY CARE OP,Lillyfields Care Ltd,Home Base Care,"1,616.10",Residential - OP
05/07/2021,WAVERLEY CARE OP,Lillyfields Care Ltd,Home Base Care,991.70,Residential - OP
05/07/2021,NULL,Littleton COE Nursery & Infant Scho,NULL,"23,928.04",Grants-Member Allocs
05/07/2021,NULL,Long Ditton St Marys COE Junior Sch,NULL,"86,439.19",Schools
05/07/2021,ELMBRIDGE CARE OP,Longdene Homecare,Home Base Care,789.04,Dom Care - Adults
05/07/2021,ELMBRIDGE CARE OP,Longdene Homecare,Home Base Care,584.64,Dom Care - Adults
05/07/2021,ELMBRIDGE CARE OP,Longdene Homecare,Home Base Care,789.04,Dom Care - Adults
05/07/2021,ELMBRIDGE CARE PD,Longdene Homecare,Home Base Care,383.64,Dom Care - Adults
05/07/2021,ELMBRIDGE CARE PD,Longdene Homecare,Home Base Care,346.94,Dom Care - Adults
05/07/2021,ELMBRIDGE CARE OP,Longdene Homecare,Home Base Care,629.74,Dom Care - Adults
05/07/2021,ELMBRIDGE CARE OP,Longdene Homecare,Home Base Care,594.16,Dom Care - Adults
05/07/2021,ELMBRIDGE CARE OP,Longdene Homecare,Home Base Care,"1,667.40",Dom Care - Adults
05/07/2021,TANDRIDGE CARE OP,Longmead House,Respite Residential Dementia,"2,800.00",Residential - OP
05/07/2021,TANDRIDGE CARE OP,Longmead House,Respite Residential Dementia,"1,400.00",Residential - OP
05/07/2021,TANDRIDGE CARE OP,Longmead House,Respite Residential Dementia,"2,800.00",Residential - OP
05/07/2021,LD-AUT CNTR TM CARE,Mayfair Homecare,Home Base Care,361.72,Dom Care - Adults
05/07/2021,SURREY HEATH CARE PD,Mayfair Homecare,Home Base Care,281.12,Dom Care - Adults
05/07/2021,SURREY HEATH CARE OP,Mayfair Homecare,Home Base Care,517.16,Dom Care - Adults
05/07/2021,WOKING CARE OP,Mayfair Homecare,Home Base Care,592.62,Dom Care - Adults
05/07/2021,WOKING CARE PD,Mayfair Homecare,Home Base Care,281.12,Dom Care - Adults
05/07/2021,WOKING CARE PD,Mayfair Homecare,Home Base Care,282.80,Dom Care - Adults
05/07/2021,SURREY HEATH CARE OP,Mayfair Homecare,Home Base Care,692.86,Dom Care - Adults
05/07/2021,GUILDFORD CARE OP,Mayfair Homecare,Home Base Care,436.24,Dom Care - Adults
05/07/2021,GUILDFORD CARE PD,Mayfair Homecare,Home Base Care,922.04,Dom Care - Adults
05/07/2021,WOKING CARE OP,Mayfair Homecare,Home Base Care,835.68,Dom Care - Adults
05/07/2021,GUILDFORD CARE OP,Mayfair Homecare,Home Base Care,693.28,Dom Care - Adults
05/07/2021,GUILDFORD CARE OP,Mayfair Homecare,Home Base Care,351.68,Dom Care - Adults
05/07/2021,GUILDFORD CARE PD,Mayfair Homecare,Home Base Care,421.96,Dom Care - Adults
05/07/2021,SURREY HEATH CARE OP,Mayfair Homecare,Home Base Care,798.28,Dom Care - Adults
05/07/2021,WOKING CARE OP,Mayfair Homecare,Home Base Care,838.60,Dom Care - Adults
05/07/2021,LD-AUT CNTR TM CARE,Mayfair Homecare,Home Base Care,281.76,Dom Care - Adults
05/07/2021,SURREY HEATH CARE OP,Mayfair Homecare,Home Base Care,360.78,Dom Care - Adults
05/07/2021,SURREY HEATH CARE OP,Mayfair Homecare,Home Base Care,601.02,Dom Care - Adults
05/07/2021,SURREY HEATH CARE OP,Mayfair Homecare,Home Base Care,383.04,Dom Care - Adults
05/07/2021,WOKING CARE OP,Mayfair Homecare,Home Base Care,766.57,Dom Care - Adults
05/07/2021,LD-AUT CNTR TM CARE,Mayfair Homecare,Supported Living,"1,029.57",Dom Care - Adults
05/07/2021,SURREY HEATH CARE OP,Mayfair Homecare,Home Base Care,502.42,Dom Care - Adults
05/07/2021,GUILDFORD CARE OP,Mayfair Homecare,Home Base Care,"1,266.16",Dom Care - Adults
05/07/2021,GUILDFORD CARE OP,Mayfair Homecare,Home Base Care,381.74,Dom Care - Adults
05/07/2021,LD-AUT CNTR TM CARE,Mayfair Homecare,Home Base Care,271.08,Dom Care - Adults
05/07/2021,SURREY HEATH CARE OP,Mayfair Homecare,Home Base Care,663.19,Dom Care - Adults
05/07/2021,GUILDFORD CARE OP,Mayfair Homecare,Home Base Care,"1,687.56",Dom Care - Adults
05/07/2021,WOKING CARE OP,Mayfair Homecare,Home Base Care,671.60,Dom Care - Adults
05/07/2021,SY HEATH CMHRS CARE,Mayfair Homecare,Home Base Care,367.22,Dom Care - Adults
05/07/2021,GUILDFORD CARE OP,Mayfair Homecare,Home Base Care,429.22,Dom Care - Adults
05/07/2021,SURREY HEATH CARE PD,Mayfair Homecare,Home Base Care,346.64,Dom Care - Adults
05/07/2021,WOKING CARE OP,Mayfair Homecare,Home Base Care,"1,483.16",Dom Care - Adults
05/07/2021,SURREY HEATH CARE OP,Mayfair Homecare,Home Base Care,281.12,Dom Care - Adults
05/07/2021,SURREY HEATH CARE OP,Mayfair Homecare,Home Base Care,487.20,Dom Care - Adults
05/07/2021,WOKING CARE OP,Mayfair Homecare,Home Base Care,636.16,Dom Care - Adults
05/07/2021,WOKING CARE OP,Mayfair Homecare,Home Base Care,346.64,Dom Care - Adults
05/07/2021,GUILDFORD CARE PD,Mayfair Homecare,Home Base Care,321.88,Dom Care - Adults
05/07/2021,WOKING CARE OP,Mayfair Homecare,Home Base Care,441.56,Dom Care - Adults
05/07/2021,WOKING CARE OP,Mayfair Homecare,Home Base Care,"1,386.56",Dom Care - Adults
05/07/2021,WOKING CARE OP,Mayfair Homecare,Home Base Care,"1,386.56",Dom Care - Adults
05/07/2021,LD-AUT CNTR TM CARE,Mayfair Homecare,Home Base Care,363.02,Dom Care - Adults
05/07/2021,SURREY HEATH CARE OP,Mayfair Homecare,Home Base Care,346.64,Dom Care - Adults
05/07/2021,SURREY HEATH CARE OP,Mayfair Homecare,Home Base Care,482.02,Dom Care - Adults
05/07/2021,SURREY HEATH CARE OP,Mayfair Homecare,Home Base Care,446.88,Dom Care - Adults
05/07/2021,SURREY HEATH CARE OP,Mayfair Homecare,Home Base Care,320.46,Dom Care - Adults
05/07/2021,SURREY HEATH CARE OP,Mayfair Homecare,Home Base Care,644.56,Dom Care - Adults
05/07/2021,WOKING CARE OP,Mayfair Homecare,Home Base Care,"1,386.56",Dom Care - Adults
05/07/2021,WOKING CARE OP,Mayfair Homecare,Home Base Care,990.40,Dom Care - Adults
05/07/2021,WOKING CARE OP,Mayfair Homecare,Home Base Care,441.56,Dom Care - Adults
05/07/2021,WOKING CARE OP,Mayfair Homecare,Home Base Care,"1,386.56",Dom Care - Adults
05/07/2021,WOKING CARE OP,Mayfair Homecare,Home Base Care,"1,386.56",Dom Care - Adults
05/07/2021,SURREY HEATH CARE OP,Mayfair Homecare,Home Base Care,548.80,Dom Care - Adults
05/07/2021,WOKING CARE OP,Mayfair Homecare,Home Base Care,"1,289.12",Dom Care - Adults
05/07/2021,SURREY HEATH CARE OP,Mayfair Homecare,Home Base Care,297.92,Dom Care - Adults
05/07/2021,WOKING CARE OP,Mayfair Homecare,Home Base Care,"1,386.56",Dom Care - Adults
05/07/2021,WOKING CARE OP,Mayfair Homecare,Home Base Care,396.16,Dom Care - Adults
05/07/2021,WOKING CARE OP,Mayfair Homecare,Home Base Care,"1,386.56",Dom Care - Adults
05/07/2021,WOKING CARE OP,Mayfair Homecare,Home Base Care,"1,386.56",Dom Care - Adults
05/07/2021,ACTIVE SURREY,MYTI Club Ltd,Grants-Third Sector and Voluntary Orgs/Charities,725.00,Non Trade
05/07/2021,NULL,North West Surrey Short Stay School,NULL,"31,869.05",After School Clubs
05/07/2021,NULL,Oatlands School,NULL,"78,730.04",Grants-Member Allocs
05/07/2021,LD-AUT CNTR TM CARE,Optalis,Day Care,590.80,Day Care - PSD
05/07/2021,ACTIVE SURREY,Our Time Youth Agency CIC,Grants-Third Sector and Voluntary Orgs/Charities,"1,627.96",Non Trade
05/07/2021,NULL,Park Mead Primary School,NULL,"15,526.06",Schools
05/07/2021,NULL,Pewley Down Infant School,NULL,"9,394.35",Schools
05/07/2021,REIGATE & BD CARE OP,Platinum Ambulance Service Ltd,Non-Staff Related Transport Costs,300.00,Specialist Serv
05/07/2021,NE IPSB - ACADEMIES,Pyrcroft Grange Primary School,Agency Placement Expenditure,"22,500.00",Schools
05/07/2021,NW IPSB - ACADEMIES,Pyrcroft Grange Primary School,Agency Placement Expenditure,"22,500.00",Schools
05/07/2021,PLD TRANSITION,Redacted Personal Data,Direct Payments - Independent Sector,"1,987.44",Adult direct payment
05/07/2021,WOKING CARE OP,Redacted Personal Data,Direct Payments - Independent Sector,377.86,Individual - NEC
05/07/2021,PLD TRANSITION,Redacted Personal Data,Direct Payments - Independent Sector,586.82,Adult direct payment
05/07/2021,PLD TRANSITION,Redacted Personal Data,Direct Payments - Independent Sector,416.50,Adult direct payment
05/07/2021,PLD TRANSITION,Redacted Personal Data,Direct Payments - Independent Sector,"1,385.33",Adult direct payment
05/07/2021,NE CARE - CPCRT NONL,Redacted Personal Data,Non-Staff Related Transport Costs,337.92,Invoicing Plan Req.
05/07/2021,CWD CONTRACTS/SLA'S,Redacted Personal Data,Direct Payments - Carers of Disabled Children,300.00,Invoicing Plan Req.
05/07/2021,NW CARE - LAC,Redacted Personal Data,Other Community Care - Vol,300.00,CYP Indiv Foster Car
05/07/2021,CWD CONTRACTS/SLA'S,Redacted Personal Data,Direct Payments - Carers of Disabled Children,275.00,Invoicing Plan Req.
05/07/2021,CWD CONTRACTS/SLA'S,Redacted Personal Data,Direct Payments - Carers of Disabled Children,300.00,Invoicing Plan Req.
05/07/2021,SW CARE - CARE LVRS,Redacted Personal Data,Equipment,"1,003.95",Invoicing Plan Req.
05/07/2021,CWD CONTRACTS/SLA'S,Redacted Personal Data,Direct Payments - Carers of Disabled Children,300.00,Invoicing Plan Req.
05/07/2021,NW CWD NON-LAC CARE,Redacted Personal Data,Direct Payments - Carers of Disabled Children,"1,056.86",Individual - NEC
05/07/2021,NW CWD NON-LAC CARE,Redacted Personal Data,Direct Payments - Carers of Disabled Children,300.00,Individual - NEC
05/07/2021,CWD CONTRACTS/SLA'S,Redacted Personal Data,Direct Payments - Carers of Disabled Children,300.00,Invoicing Plan Req.
05/07/2021,CWD CONTRACTS/SLA'S,Redacted Personal Data,Direct Payments - Carers of Disabled Children,300.00,Invoicing Plan Req.
05/07/2021,NW FOSTERING CARE,Redacted Personal Data,Payments to F&F Foster Carers,449.55,Individual - NEC
05/07/2021,NULL,Reigate Priory Community Junior Sch,NULL,"84,408.56",Schools
05/07/2021,WAVERLEY CARE OP,Russettings Care Home Ltd,Nursing,"2,513.57",Residential - MH
05/07/2021,LD-AUT CNTR TM CARE,Sans Soucie Home Care Ltd,Home Base Care,771.32,Day Services
05/07/2021,LD-AUT CNTR TM CARE,Sans Soucie Home Care Ltd,Home Base Care,"2,454.20",Day Services
05/07/2021,LD-AUT CNTR TM CARE,Sans Soucie Home Care Ltd,Home Base Care,350.60,Day Services
05/07/2021,LD-AUT CNTR TM CARE,Sans Soucie Home Care Ltd,Home Base Care,350.60,Day Services
05/07/2021,LD-AUT CNTR TM CARE,Sans Soucie Home Care Ltd,Home Base Care,341.84,Day Services
05/07/2021,LD-AUT CNTR TM CARE,Sans Soucie Home Care Ltd,Home Base Care,"1,010.24",Day Services
05/07/2021,LD-AUT CNTR TM CARE,Sans Soucie Home Care Ltd,Home Base Care,"2,454.20",Day Services
05/07/2021,LD-AUT CNTR TM CARE,Sans Soucie Home Care Ltd,Home Base Care,341.84,Day Services
05/07/2021,LD-AUT CNTR TM CARE,Sans Soucie Home Care Ltd,Home Base Care,252.56,Day Services
05/07/2021,LD-AUT CNTR TM CARE,Sans Soucie Home Care Ltd,Home Base Care,771.32,Day Services
05/07/2021,LD-AUT CNTR TM CARE,Sans Soucie Home Care Ltd,Home Base Care,683.67,Day Services
05/07/2021,LD-AUT CNTR TM CARE,Sans Soucie Home Care Ltd,Home Base Care,683.67,Day Services
05/07/2021,NULL,SCC All Saints COE (A) School,NULL,"6,498.15",Schools
05/07/2021,NULL,SCC Ash Grange Primary School,NULL,"89,045.68",Schools
05/07/2021,NULL,SCC Ash Manor School,NULL,"334,706.74",Schools
05/07/2021,NULL,SCC Ashford COE Primary School,NULL,"17,052.95",Grants-Member Allocs
05/07/2021,NULL,SCC Ashford Park Primary School,NULL,"249,404.88",Schools
05/07/2021,NULL,SCC Audley Primary School,NULL,"31,573.75",Schools
05/07/2021,NULL,SCC Bagshot Infant School,NULL,"84,241.52",Schools
05/07/2021,NULL,SCC Banstead Community Junior Schoo,NULL,"6,422.90",Schools
05/07/2021,NULL,SCC Barnett Wood Infant School,NULL,"59,295.51",Schools
05/07/2021,NULL,SCC Beacon Hill Community School,NULL,"11,323.39",Schools
05/07/2021,NULL,SCC Bell Farm Junior School,NULL,"188,838.32",Schools
05/07/2021,NULL,SCC Bisley COE Primary School,NULL,"104,094.79",Schools
05/07/2021,NULL,SCC Bramley COE (VA) Infant,NULL,"8,064.36",Schools
05/07/2021,NULL,SCC Brooklands School,NULL,"263,621.02",Schools
05/07/2021,NULL,SCC Busbridge COE (A) Junior School,NULL,"16,178.97",Schools
05/07/2021,NULL,SCC Busbridge Infant School,NULL,"48,196.41",Schools
05/07/2021,NULL,SCC Chandler COE (A) Junior School,NULL,"19,395.18",Schools
05/07/2021,NULL,SCC Chandlers Field Primary School,NULL,"84,811.22",Schools
05/07/2021,NULL,SCC Charlwood Village Primary Schoo,NULL,"9,026.22",Schools
05/07/2021,NULL,SCC Chennestone Primary Community S,NULL,"91,999.88",Schools
05/07/2021,NULL,SCC Chobham St Lawrence COE (A) Pri,NULL,"58,431.16",Schools
05/07/2021,NULL,SCC Christ Church COE (A) Infant Sc,NULL,"14,285.52",Schools
05/07/2021,NULL,SCC Clandon COE (A) Infant School,NULL,"3,873.82",Schools
05/07/2021,NULL,SCC Claygate Primary School,NULL,"116,047.54",Schools
05/07/2021,NULL,SCC Clifton Hill School,NULL,"241,636.41",Schools
05/07/2021,NULL,SCC Cranleigh COE Primary School,NULL,"111,925.90",Schools
05/07/2021,NULL,SCC Cranmere Primary School,NULL,"27,364.96",Schools
05/07/2021,NULL,SCC Dawnay School,NULL,"117,017.94",Schools
05/07/2021,NULL,SCC Earlswood Infant & Nursery Scho,NULL,"176,185.66",Schools
05/07/2021,NULL,SCC Epsom Downs Primary School &,NULL,"37,365.87",Schools
05/07/2021,NULL,SCC Epsom Primary School,NULL,"20,672.65",Schools
05/07/2021,NULL,SCC Epsom Primary School,NULL,"83,772.51",Schools
05/07/2021,NULL,SCC Ewell Grove Infant & Nursery Sc,NULL,"90,927.87",Schools
05/07/2021,NULL,SCC Ewell Grove Infant & Nursery Sc,NULL,"4,882.00",Schools
05/07/2021,NULL,SCC Farncombe COE (C) Infant School,NULL,"35,044.88",Schools
05/07/2021,NULL,SCC Felbridge Primary School,NULL,"12,711.70",Schools
05/07/2021,NULL,SCC Fetcham Village Infant School,NULL,"24,092.35",Grants-Member Allocs
05/07/2021,NULL,SCC Folly Hill Infants School,NULL,"18,972.44",Schools
05/07/2021,NULL,SCC Freemantles School,NULL,"229,900.10",Schools
05/07/2021,NULL,SCC Furzefield Community Primary Sc,NULL,"40,700.99",Schools
05/07/2021,NULL,SCC Furzefield Community Primary Sc,NULL,"4,079.80",Schools
05/07/2021,NULL,SCC Glebelands School,NULL,"33,840.83",Schools
05/07/2021,ACTIVE SURREY,SCC Glebelands School,Grants-Public Bodies and Statutory Partnerships,"8,433.00",Schools
05/07/2021,NULL,SCC Godalming Junior School,NULL,"107,921.15",Schools
05/07/2021,NULL,SCC Gosden House School,NULL,"342,285.02",Schools
05/07/2021,NULL,SCC Greville Primary School,NULL,"75,860.56",Grants-Member Allocs
05/07/2021,NULL,SCC Holland Junior School,NULL,"67,534.29",Schools
05/07/2021,NULL,SCC Horley Infant School,NULL,"95,404.89",Schools
05/07/2021,NULL,SCC Horsell COE (A) Junior School,NULL,"22,002.41",Schools
05/07/2021,NULL,SCC Langshott Infant School,NULL,"160,853.01",Schools
05/07/2021,NULL,SCC Limpsfield COE Infant School,NULL,"84,705.26",Schools
05/07/2021,NULL,SCC Limpsfield Grange School,NULL,"149,168.89",Schools
05/07/2021,NULL,SCC Long Ditton Infant & Nursery Sc,NULL,"59,420.22",Schools
05/07/2021,NULL,SCC Manby Lodge Infant School,NULL,"17,842.31",Schools
05/07/2021,NULL,SCC Manor Mead School,NULL,"4,769.40",Schools
05/07/2021,NULL,SCC Manor Mead School,NULL,"189,056.69",Schools
05/07/2021,NULL,SCC Manorcroft Primary School,NULL,"109,121.22",Schools
05/07/2021,NULL,SCC Manorfield Primary & Nursery Sc,NULL,"54,756.51",Schools
05/07/2021,NULL,SCC Mead Infant School,NULL,"65,660.28",Schools
05/07/2021,NULL,SCC Meadowcroft Community Infant Sc,NULL,"23,761.47",Schools
05/07/2021,NULL,SCC Meath Green Infant School,NULL,"2,978.01",Schools
05/07/2021,NULL,SCC Meath Green Junior School,NULL,"93,143.92",Schools
05/07/2021,NULL,SCC Merrow COE (C) Infant School,NULL,"20,171.90",Schools
05/07/2021,NULL,SCC Milford School,NULL,"7,585.08",Schools
05/07/2021,NULL,SCC Moss Lane School,NULL,"20,683.08",Schools
05/07/2021,NULL,SCC Nutfield Church COE Primary Sch,NULL,"64,725.81",Schools
05/07/2021,NULL,SCC Oakfield Junior School,NULL,"29,641.29",Schools
05/07/2021,NULL,SCC Oakwood School,NULL,"263,702.77",Schools
05/07/2021,NULL,SCC Ongar Place Primary School,NULL,"2,403.74",Schools
05/07/2021,NULL,SCC Our Lady Of The Rosary RC Prima,NULL,"44,288.40",Schools
05/07/2021,NULL,SCC Philip Southcote School,NULL,"344,044.10",Schools
05/07/2021,NULL,SCC Portesbery School,NULL,"21,901.67",Schools
05/07/2021,NULL,SCC Powell Corderoy Primary School,NULL,"42,236.18",Schools
05/07/2021,NULL,SCC Prior Heath Community Infant Sc,NULL,"41,379.77",Schools
05/07/2021,NULL,SCC Reigate Parish COE(A) Primary S,NULL,"20,453.72",Schools
05/07/2021,NULL,SCC Riverview COE Primary School &,NULL,"6,967.94",Grants-Member Allocs
05/07/2021,NULL,SCC Scott Broadwood COE(A) Infant S,NULL,"3,379.38",Schools
05/07/2021,NULL,SCC Shawfield Primary School,NULL,"71,842.48",Schools
05/07/2021,NULL,SCC Shawley Community Primary Schoo,NULL,"30,982.81",Schools
05/07/2021,NULL,SCC Shottermill Infant School,NULL,"41,021.40",Schools
05/07/2021,NULL,SCC St Andrews Catholic Secondary S,NULL,"287,230.51",Schools
05/07/2021,NULL,SCC St Annes Catholic Primary Schoo,NULL,"128,454.73",Schools
05/07/2021,NULL,SCC St Anns Heath Junior School,NULL,"13,359.67",Schools
05/07/2021,NULL,SCC St Bedes School,NULL,"377,479.75",School Support Serv
05/07/2021,NULL,SCC St Clements Catholic Primary Sc,NULL,"95,075.61",Schools
05/07/2021,NULL,SCC St Cuthberts Catholic Primary S,NULL,"44,919.85",Schools
05/07/2021,NULL,SCC St Dunstan's Catholic Primary S,NULL,"68,796.69",Schools
05/07/2021,NULL,SCC St Giles COE (A) Infant School,NULL,"32,706.37",Schools
05/07/2021,NULL,SCC St Ignatius RC Primary School,NULL,"53,018.20",Schools
05/07/2021,NULL,SCC St James COE (A) Primary School,NULL,"59,826.13",Schools
05/07/2021,NULL,SCC St Johns COE (A) Infant School,NULL,"1,068.31",Schools
05/07/2021,NULL,SCC St Johns COE (A) Primary School,NULL,"56,631.81",Schools
05/07/2021,NULL,SCC St Joseph's Catholic Primary Sc,NULL,"80,341.99",Schools
05/07/2021,NULL,SCC St Joseph's Catholic Primary Sc,NULL,"70,546.08",Schools
05/07/2021,NULL,SCC St Lawrence COE (A) Junior Scho,NULL,"32,856.71",Schools
05/07/2021,NULL,SCC St Mary's COE (A) Infant School,NULL,"28,523.71",Schools
05/07/2021,NULL,SCC St Marys COE (C) Primary School,NULL,"86,735.70",Schools
05/07/2021,NULL,SCC St Marys COE (VC) Infant School,NULL,"10,731.89",Schools
05/07/2021,NULL,SCC St Matthews COE (A) Infant Scho,NULL,"32,096.64",Schools
05/07/2021,NULL,SCC St Michael's RC School,NULL,"28,926.51",Extra Care
05/07/2021,NULL,SCC St Nicholas COE (A) Infant Scho,NULL,"7,656.21",Schools
05/07/2021,NULL,SCC St Nicholas COE Primary School,NULL,"192,277.39",Schools
05/07/2021,NULL,SCC St Pauls COE Primary School,NULL,"39,543.05",Schools
05/07/2021,NULL,SCC St Pauls RC Primary School,NULL,"52,387.76",Schools
05/07/2021,NULL,SCC St Peters COE Infant School,NULL,"57,132.18",Schools
05/07/2021,NULL,SCC St Peter's RC Primary School,NULL,"120,728.12",Schools
05/07/2021,NULL,SCC Stamford Green Primary School,NULL,"24,603.29",Schools
05/07/2021,NULL,SCC Stepgates Community School,NULL,"56,514.86",School Trips
05/07/2021,NULL,SCC Sunnydown School,NULL,"205,042.05",Schools
05/07/2021,NULL,SCC Thames Ditton Infant School,NULL,"66,639.37",Schools
05/07/2021,NULL,SCC Thames Ditton Junior School,NULL,"83,173.99",Schools
05/07/2021,NULL,SCC The Grange Community Infant Sch,NULL,"95,231.44",Schools
05/07/2021,NULL,SCC The Hythe Primary School,NULL,"19,250.39",Schools
05/07/2021,NULL,SCC The Hythe Primary School,NULL,550.09,Schools
05/07/2021,NULL,SCC The Orchard Infant School,NULL,"34,869.61",Schools
05/07/2021,NULL,SCC The Priory COE (VA) School,NULL,"63,119.47",Schools
05/07/2021,NULL,SCC Thorpe COE (A) Primary School,NULL,"12,530.43",Schools
05/07/2021,NULL,SCC Thorpe Lea Primary School,NULL,"35,661.97",Schools
05/07/2021,NULL,SCC Tillingbourne Junior School,NULL,"41,011.33",Schools
05/07/2021,NULL,SCC Valley End COE Infant School,NULL,"52,534.49",Schools
05/07/2021,NULL,SCC Walsh COE Junior School,NULL,"139,864.95",Schools
05/07/2021,NULL,SCC Walsh Memorial COE (C) Infant S,NULL,"51,913.06",Schools
05/07/2021,NULL,SCC Walton On The Hill Primary Scho,NULL,"50,143.75",Schools
05/07/2021,NULL,SCC West Ashtead Primary School,NULL,"51,095.77",Schools
05/07/2021,NULL,SCC West Byfleet Community Infant S,NULL,"31,211.97",Schools
05/07/2021,NULL,SCC West Byfleet Junior School,NULL,"100,285.99",Schools
05/07/2021,NULL,SCC William Cobbett Primary School,NULL,"55,501.40",Schools
05/07/2021,NULL,SCC Witley COE (C) Infant School,NULL,"12,990.49",Schools
05/07/2021,NULL,SCC Wonersh & Shamley Green COE (A),NULL,"117,702.91",Schools
05/07/2021,NULL,SCC Wood Street Infant School,NULL,"28,494.54",Schools
05/07/2021,NULL,SCC Woodfield School,NULL,"323,803.84",Schools
05/07/2021,NULL,SCC Woodlands School,NULL,"122,560.55",Schools
05/07/2021,NULL,SCC Worplesdon Primary School,NULL,"67,337.81",Schools
05/07/2021,NULL,Send COE Primary School,NULL,"24,351.57",Schools
05/07/2021,NULL,Southfield Park Primary School,NULL,"112,801.61",Schools
05/07/2021,NULL,St James COE Primary School,NULL,"97,833.17",Schools
05/07/2021,NULL,St Martins COE Junior School,NULL,"12,454.42",Grants-Member Allocs
05/07/2021,NULL,St Mary's COE Junior School,NULL,"26,633.46",Schools
05/07/2021,NULL,St Pauls Catholic College,NULL,"138,807.06",Schools
05/07/2021,WAVERLEY CMHRS CARE,Stuart House,Supported Living,"6,383.16",Residential - OP
05/07/2021,NULL,Sunninghill Construction Ltd,NULL,"277,042.80",General Build Maint
05/07/2021,LD-AUT CNTR TM CARE,Surrey & Borders Partnership NHS Tr,Day Care,"1,629.04",Residential - MH
05/07/2021,LD-AUT CNTR TM CARE,Surrey & Borders Partnership NHS Tr,Day Care,"2,036.30",Residential - MH
05/07/2021,LD-AUT CNTR TM CARE,Surrey Choices Ltd,Supported Living,"1,940.14",Day Care - PSD
05/07/2021,LD-AUT CNTR TM CARE,Surrey Choices Ltd,Supported Living,"1,787.14",Day Care - PSD
05/07/2021,LD-AUT CNTR TM CARE,Surrey Choices Ltd,Supported Living,"1,787.14",Day Care - PSD
05/07/2021,LD-AUT CNTR TM CARE,Surrey Choices Ltd,Supported Living,"1,940.14",Day Care - PSD
05/07/2021,LD-AUT CNTR TM CARE,Surrey Choices Ltd,Supported Living,"1,612.29",Day Care - PSD
05/07/2021,LD-AUT CNTR TM CARE,Surrey Choices Ltd,Supported Living,"2,486.57",Day Care - PSD
05/07/2021,WAVERLEY CMHRS CARE,Surrey Choices Ltd,Supported Living,"2,093.14",Day Care - PSD
05/07/2021,LD-AUT CNTR TM CARE,Surrey Choices Ltd,Supported Living,"1,612.29",Day Care - PSD
05/07/2021,LD-AUT CNTR TM CARE,Surrey Choices Ltd,Supported Living,"2,093.14",Day Care - PSD
05/07/2021,LD-AUT CNTR TM CARE,Surrey Choices Ltd,Supported Living,"2,093.14",Day Care - PSD
05/07/2021,LD-AUT CNTR TM CARE,Surrey Choices Ltd,Supported Living,"1,437.43",Day Care - PSD
05/07/2021,LD-AUT CNTR TM CARE,Surrey Choices Ltd,Supported Living,"1,940.14",Day Care - PSD
05/07/2021,LD-AUT CNTR TM CARE,Surrey Choices Ltd,Supported Living,"2,093.14",Day Care - PSD
05/07/2021,COVID COMF FUND,Surrey Heath Borough Council,Grants-Public Bodies and Statutory Partnerships,"440,146.07",Grants-Member Allocs
05/07/2021,COVID COMF EDI spend,Surrey Minority Ethnic Forum Ltd,Grants-Third Sector and Voluntary Orgs/Charities,"25,000.00",Grants - Community
05/07/2021,NULL,SYCC North East Surrey Secondary Sh,NULL,"110,178.22",After School Clubs
05/07/2021,NULL,SYCC St Peters Centre,NULL,"13,723.64",After School Clubs
05/07/2021,RED-ALL FEB 06 ONWDS,Teachers Pensions,Pension Fund Strain,403.77,Pensions
05/07/2021,WAVERLEY CARE PD,Team Brain Injury Support,Home Base Care,"8,166.79",Dom Care - Adults
05/07/2021,ACTIVE SURREY,The Bishop Wand Church of England S,Grants-Public Bodies and Statutory Partnerships,"8,780.00",Schools
05/07/2021,MOLE VALLEY CARE PD,The Grange Centre,Day Care,316.32,Grants-Member Allocs
05/07/2021,LD-AUT CNTR TM CARE,The Grange Centre,Day Care,"1,581.60",Grants-Member Allocs
05/07/2021,MOLE VALLEY CARE PD,The Grange Centre,Day Care,948.96,Grants-Member Allocs
05/07/2021,LD-AUT CNTR TM CARE,The Grange Centre,Day Care,"1,034.72",Grants-Member Allocs
05/07/2021,WAVERLEY CARE PD,The Grange Centre,Day Care,948.96,Grants-Member Allocs
05/07/2021,ACTIVE SURREY,The Phoenix Project,Grants-Third Sector and Voluntary Orgs/Charities,"1,315.00",Non Trade
05/07/2021,NULL,The Surrey Teaching Centre,NULL,"11,401.19",After School Clubs
05/07/2021,LD-AUT CNTR TM CARE,THF Care Estates Ltd,Day Care,699.60,Residential - MH
05/07/2021,LD-AUT CNTR TM CARE,Thrive,Day Care,456.96,Day Care - PSD
05/07/2021,LD-AUT CNTR TM CARE,Transparent Care Ltd,Supported Living,"6,883.08",Residential - OP
05/07/2021,LD-AUT CNTR TM CARE,Transparent Care Ltd,Supported Living,"5,790.75",Residential - OP
05/07/2021,LD-AUT CNTR TM CARE,Transparent Care Ltd,Supported Living,965.13,Residential - OP
05/07/2021,LD-AUT CNTR TM CARE,Transparent Care Ltd,Supported Living,"6,755.88",Residential - OP
05/07/2021,LD-AUT CNTR TM CARE,Transparent Care Ltd,Supported Living,"4,007.20",Residential - OP
05/07/2021,NE CARE - CPCRT NONL,Redacted Personal Data,Foster Care Placements,370.22,Invoicing Plan Req.
05/07/2021,NULL,Wallace Fields Junior School,NULL,"23,353.70",Schools
05/07/2021,LD-AUT CNTR TM CARE,Westhill Care Home,Day Care,347.76,Residential - MH
05/07/2021,WOKING CARE PD,Whitestone Care Ltd,Home Base Care,938.42,Supp Living - MH
05/07/2021,WOKING CMHRS CARE,Whitestone Care Ltd,Supported Living,"1,536.52",Supp Living - MH
05/07/2021,WOKING CMHRS CARE,Whitestone Care Ltd,Supported Living,"3,498.00",Supp Living - MH
05/07/2021,PLD TRANSITION,Whitestone Care Ltd,Supported Living,"20,098.68",Supp Living - MH
05/07/2021,WOKING CARE PD,Whitestone Care Ltd,Home Base Care,938.42,Supp Living - MH
05/07/2021,WOKING CARE OP,Whitestone Care Ltd,Home Base Care,693.00,Supp Living - MH
05/07/2021,WOKING CARE OP,Whitestone Care Ltd,Home Base Care,693.00,Supp Living - MH
05/07/2021,PLD TRANSITION,Whitestone Care Ltd,Supported Living,"3,816.32",Supp Living - MH
05/07/2021,GUILDFORD CARE OP,Whitestone Care Ltd,Home Base Care,476.42,Supp Living - MH
05/07/2021,RUNNYMEDE CARE PD,Whitestone Care Ltd,Home Base Care,"2,091.12",Supp Living - MH
05/07/2021,RUNNYMEDE CARE PD,Whitestone Care Ltd,Home Base Care,"2,091.12",Supp Living - MH
05/07/2021,WOKING CARE PD,Whitestone Care Ltd,Home Base Care,"1,062.14",Supp Living - MH
05/07/2021,SURREY HEATH CARE OP,Whitestone Care Ltd,Home Base Care,707.42,Supp Living - MH
05/07/2021,SURREY HEATH CARE OP,Whitestone Care Ltd,Home Base Care,707.42,Supp Living - MH
05/07/2021,LD-AUT CNTR TM CARE,Whitestone Care Ltd,Supported Living,"4,899.60",Supp Living - MH
05/07/2021,SPELTHORNE CARE OP,Whitestone Care Ltd,Home Base Care,981.68,Supp Living - MH
05/07/2021,SY HEATH CMHRS CARE,Whitestone Care Ltd,Supported Living,"4,620.00",Supp Living - MH
05/07/2021,WOKING CMHRS CARE,Whitestone Care Ltd,Supported Living,"4,982.32",Supp Living - MH
05/07/2021,WOKING CARE PD,Whitestone Care Ltd,Home Base Care,"1,062.14",Supp Living - MH
05/07/2021,WOKING CARE PD,Whitestone Care Ltd,Home Base Care,"1,062.14",Supp Living - MH
05/07/2021,SPELTHORNE CARE OP,Whitestone Care Ltd,Home Base Care,981.68,Supp Living - MH
05/07/2021,GUILDFORD CARE OP,Whitestone Care Ltd,Home Base Care,476.42,Supp Living - MH
05/07/2021,NULL,Winston Churchill School,NULL,"58,893.00",Schools
05/07/2021,NULL,Yattendon Junior School,NULL,"35,595.40",Schools
06/07/2021,WAVERLEY CARE OP,Age Abode Ltd,Home Base Care,"2,216.20",Residential - OP
06/07/2021,WAVERLEY CARE OP,Age Abode Ltd,Home Base Care,"2,216.20",Residential - OP
06/07/2021,WAVERLEY CARE OP,Age Abode Ltd,Home Base Care,"2,216.20",Residential - OP
06/07/2021,WAVERLEY CARE OP,Age Abode Ltd,Home Base Care,"2,366.40",Residential - OP
06/07/2021,WAVERLEY CARE OP,Alde Care Ltd t/a Right at Home,Home Base Care,270.00,Grants-Member Allocs
06/07/2021,WAVERLEY CARE OP,Alde Care Ltd t/a Right at Home,Home Base Care,378.00,Grants-Member Allocs
06/07/2021,WAVERLEY CARE OP,Alde Care Ltd t/a Right at Home,Home Base Care,"3,024.00",Grants-Member Allocs
06/07/2021,GUILDFORD CARE PD,Alde Care Ltd t/a Right at Home,Home Base Care,"3,192.00",Grants-Member Allocs
06/07/2021,GUILDFORD CARE PD,Alina Homecare Guildford,Home Base Care,299.03,Dom Care - Adults
06/07/2021,GUILDFORD CARE OP,Alina Homecare Guildford,Home Base Care,"1,732.36",Dom Care - Adults
06/07/2021,GUILDFORD CARE OP,Alina Homecare Guildford,Home Base Care,360.92,Dom Care - Adults
06/07/2021,GUILDFORD CARE PD,Alina Homecare Guildford,Home Base Care,"1,154.72",Dom Care - Adults
06/07/2021,GUILDFORD CARE OP,Alina Homecare Guildford,Home Base Care,433.02,Dom Care - Adults
06/07/2021,GUILDFORD CARE PD,Alina Homecare Guildford,Home Base Care,268.07,Dom Care - Adults
06/07/2021,GUILDFORD CARE PD,Alina Homecare Guildford,Home Base Care,288.68,Dom Care - Adults
06/07/2021,GUILDFORD CARE PD,Alina Homecare Guildford,Home Base Care,288.68,Dom Care - Adults
06/07/2021,GUILDFORD CARE PD,Alina Homecare Guildford,Home Base Care,288.68,Dom Care - Adults
06/07/2021,GUILDFORD CARE OP,Alina Homecare Guildford,Home Base Care,433.02,Dom Care - Adults
06/07/2021,LD-AUT CNTR TM CARE,Alina Homecare Guildford,Home Base Care,309.30,Dom Care - Adults
06/07/2021,LD-AUT CNTR TM CARE,Alina Homecare Guildford,Home Base Care,288.68,Dom Care - Adults
06/07/2021,LD-AUT CNTR TM CARE,Alina Homecare Guildford,Home Base Care,886.66,Dom Care - Adults
06/07/2021,LD-AUT CNTR TM CARE,Alina Homecare Guildford,Home Base Care,288.68,Dom Care - Adults
06/07/2021,GUILDFORD CARE PD,Alina Homecare Guildford,Home Base Care,"1,154.72",Dom Care - Adults
06/07/2021,GUILDFORD CARE OP,Alina Homecare Guildford,Home Base Care,360.92,Dom Care - Adults
06/07/2021,LD-AUT CNTR TM CARE,Alina Homecare Guildford,Home Base Care,793.87,Dom Care - Adults
06/07/2021,LD-AUT CNTR TM CARE,Alina Homecare Guildford,Home Base Care,371.16,Dom Care - Adults
06/07/2021,LD-AUT CNTR TM CARE,Alina Homecare Guildford,Home Base Care,618.60,Dom Care - Adults
06/07/2021,LD-AUT CNTR TM CARE,Alina Homecare Guildford,Home Base Care,721.70,Dom Care - Adults
06/07/2021,LD-AUT CNTR TM CARE,Alina Homecare Guildford,Home Base Care,577.36,Dom Care - Adults
06/07/2021,LD-AUT CNTR TM CARE,Alina Homecare Guildford,Home Base Care,659.84,Dom Care - Adults
06/07/2021,LD-AUT CNTR TM CARE,Alina Homecare Guildford,Home Base Care,474.26,Dom Care - Adults
06/07/2021,MOLE VALLEY CARE OP,Alina Homecare Horley,Home Base Care,"1,732.23",Dom Care - Adults
06/07/2021,LD-AUT CNTR TM CARE,Alina Homecare Specialist - Surrey,Supported Living,"4,667.04",Residential - OP
06/07/2021,LD-AUT CNTR TM CARE,Alina Homecare Specialist - Surrey,Other Community Care,636.27,Residential - OP
06/07/2021,LD-AUT CNTR TM CARE,Alina Homecare Specialist - Surrey,Other Community Care,588.84,Residential - OP
06/07/2021,LD-AUT CNTR TM CARE,Alina Homecare Specialist - Surrey,Other Community Care,530.23,Residential - OP
06/07/2021,LD-AUT CNTR TM CARE,Alina Homecare Specialist - Surrey,Other Community Care,630.90,Residential - OP
06/07/2021,LD-AUT CNTR TM CARE,Alina Homecare Specialist - Surrey,Other Community Care,"1,519.99",Residential - OP
06/07/2021,LD-AUT CNTR TM CARE,Alina Homecare Specialist - Surrey,Other Community Care,"1,803.54",Residential - OP
06/07/2021,LD-AUT CNTR TM CARE,Alina Homecare Specialist - Surrey,Other Community Care,494.88,Residential - OP
06/07/2021,LD-AUT CNTR TM CARE,Alina Homecare Specialist - Surrey,Other Community Care,378.54,Residential - OP
06/07/2021,LD-AUT CNTR TM CARE,Alina Homecare Specialist - Surrey,Supported Living,"4,636.28",Residential - OP
06/07/2021,LD-AUT CNTR TM CARE,Alina Homecare Specialist - Surrey,Other Community Care,757.08,Residential - OP
06/07/2021,LD-AUT CNTR TM CARE,Alina Homecare Specialist - Surrey,Other Community Care,754.98,Residential - OP
06/07/2021,LD-AUT CNTR TM CARE,Alina Homecare Specialist - Surrey,Other Community Care,"1,060.46",Residential - OP
06/07/2021,LD-AUT CNTR TM CARE,Alina Homecare Specialist - Surrey,Other Community Care,336.48,Residential - OP
06/07/2021,LD-AUT CNTR TM CARE,Alina Homecare Specialist - Surrey,Other Community Care,336.48,Residential - OP
06/07/2021,LD-AUT CNTR TM CARE,Alina Homecare Specialist - Surrey,Other Community Care,494.88,Residential - OP
06/07/2021,LD-AUT CNTR TM CARE,Alina Homecare Specialist - Surrey,Other Community Care,587.20,Residential - OP
06/07/2021,LD-AUT CNTR TM CARE,Alina Homecare Specialist - Surrey,Other Community Care,630.90,Residential - OP
06/07/2021,LD-AUT CNTR TM CARE,Alina Homecare Specialist - Surrey,Other Community Care,258.37,Residential - OP
06/07/2021,LD-AUT CNTR TM CARE,Alina Homecare Specialist - Surrey,Supported Living,"4,636.28",Residential - OP
06/07/2021,LD-AUT CNTR TM CARE,Alina Homecare Specialist - Surrey,Supported Living,"4,667.04",Residential - OP
06/07/2021,LD-AUT CNTR TM CARE,Alina Homecare Specialist - Surrey,Supported Living,"4,636.28",Residential - OP
06/07/2021,LD-AUT CNTR TM CARE,Alina Homecare Specialist - Surrey,Supported Living,"4,667.04",Residential - OP
06/07/2021,LD-AUT CNTR TM CARE,Alina Homecare Specialist - Surrey,Other Community Care,"1,258.28",Residential - OP
06/07/2021,LD-AUT CNTR TM CARE,Alina Homecare Specialist - Surrey,Other Community Care,"1,131.15",Residential - OP
06/07/2021,LD-AUT CNTR TM CARE,Alina Homecare Specialist - Surrey,Other Community Care,"1,300.12",Residential - OP
06/07/2021,LD-AUT CNTR TM CARE,Alina Homecare Specialist - Surrey,Other Community Care,"1,177.68",Residential - OP
06/07/2021,LD-AUT CNTR TM CARE,Alina Homecare Specialist - Surrey,Other Community Care,"1,808.58",Residential - OP
06/07/2021,LD-AUT CNTR TM CARE,Alina Homecare Specialist - Surrey,Other Community Care,"1,177.68",Residential - OP
06/07/2021,LD-AUT CNTR TM CARE,Alina Homecare Specialist - Surrey,Other Community Care,"1,177.68",Residential - OP
06/07/2021,LD-AUT CNTR TM CARE,Alina Homecare Specialist - Surrey,Other Community Care,"1,472.10",Residential - OP
06/07/2021,LD-AUT CNTR TM CARE,Alina Homecare Specialist - Surrey,Other Community Care,813.02,Residential - OP
06/07/2021,LD-AUT CNTR TM CARE,Alina Homecare Specialist - Surrey,Other Community Care,"1,614.82",Residential - OP
06/07/2021,LD-AUT CNTR TM CARE,Alina Homecare Specialist - Surrey,Supported Living,"4,651.66",Residential - OP
06/07/2021,LD-AUT CNTR TM CARE,Alina Homecare Specialist - Surrey,Supported Living,"4,651.66",Residential - OP
06/07/2021,LD-AUT CNTR TM CARE,Alina Homecare Specialist - Surrey,Other Community Care,"2,137.92",Residential - OP
06/07/2021,LD-AUT CNTR TM CARE,Alina Homecare Specialist - Surrey,Other Community Care,587.20,Residential - OP
06/07/2021,LD-AUT CNTR TM CARE,Alina Homecare Specialist - Surrey,Other Community Care,378.54,Residential - OP
06/07/2021,LD-AUT CNTR TM CARE,Alina Homecare Specialist - Surrey,Other Community Care,"1,237.20",Residential - OP
06/07/2021,LD-AUT CNTR TM CARE,Alina Homecare Specialist - Surrey,Supported Living,"4,651.66",Residential - OP
06/07/2021,LD-AUT CNTR TM CARE,Alina Homecare Specialist - Surrey,Other Community Care,"1,060.46",Residential - OP
06/07/2021,LD-AUT CNTR TM CARE,Alina Homecare Specialist - Surrey,Other Community Care,"1,261.80",Residential - OP
06/07/2021,LD-AUT CNTR TM CARE,Alina Homecare Specialist - Surrey,Other Community Care,967.38,Residential - OP
06/07/2021,LD-AUT CNTR TM CARE,Alina Homecare Specialist - Surrey,Other Community Care,"2,355.36",Residential - OP
06/07/2021,LD-AUT CNTR TM CARE,Alina Homecare Specialist - Surrey,Other Community Care,"1,261.80",Residential - OP
06/07/2021,LD-AUT CNTR TM CARE,Alina Homecare Specialist - Surrey,Other Community Care,"1,261.80",Residential - OP
06/07/2021,LD-AUT CNTR TM CARE,Alina Homecare Specialist - Surrey,Other Community Care,282.79,Residential - OP
06/07/2021,LD-AUT CNTR TM CARE,Alina Homecare Specialist - Surrey,Other Community Care,989.76,Residential - OP
06/07/2021,LD-AUT CNTR TM CARE,Alina Homecare Specialist - Surrey,Other Community Care,588.84,Residential - OP
06/07/2021,LD-AUT CNTR TM CARE,Alina Homecare Specialist - Surrey,Other Community Care,318.14,Residential - OP
06/07/2021,LD-AUT CNTR TM CARE,Alina Homecare Specialist - Surrey,Other Community Care,"1,360.92",Residential - OP
06/07/2021,LD-AUT CNTR TM CARE,Alina Homecare Specialist - Surrey,Other Community Care,"1,619.31",Residential - OP
06/07/2021,LD-AUT CNTR TM CARE,Alina Homecare Specialist - Surrey,Other Community Care,"1,468.00",Residential - OP
06/07/2021,LD-AUT CNTR TM CARE,Alina Homecare Specialist - Surrey,Other Community Care,964.68,Residential - OP
06/07/2021,LD-AUT CNTR TM CARE,Alina Homecare Specialist - Surrey,Supported Living,"4,651.66",Residential - OP
06/07/2021,LD-AUT CNTR TM CARE,Alina Homecare Specialist - Surrey,Supported Living,"4,651.66",Residential - OP
06/07/2021,LD-AUT CNTR TM CARE,Alina Homecare Specialist - Surrey,Supported Living,"4,651.66",Residential - OP
06/07/2021,LD-AUT CNTR TM CARE,Alina Homecare Specialist - Surrey,Other Community Care,577.36,Residential - OP
06/07/2021,LD-AUT CNTR TM CARE,Alina Homecare Specialist - Surrey,Other Community Care,336.48,Residential - OP
06/07/2021,LD-AUT CNTR TM CARE,Alina Homecare Specialist - Surrey,Other Community Care,"2,355.36",Residential - OP
06/07/2021,LD-AUT CNTR TM CARE,Alina Homecare Specialist - Surrey,Other Community Care,618.60,Residential - OP
06/07/2021,WAVERLEY CARE OP,Angel Touch Care Agency,Home Base Care,384.16,Dom Care - Adults
06/07/2021,GUILDFORD CARE OP,Angel Touch Care Agency,Home Base Care,429.99,Dom Care - Adults
06/07/2021,WAVERLEY CARE OP,Angel Touch Care Agency,Home Base Care,618.36,Dom Care - Adults
06/07/2021,WAVERLEY CARE PD,Angel Touch Care Agency,Home Base Care,410.08,Dom Care - Adults
06/07/2021,WAVERLEY CARE PD,Angel Touch Care Agency,Home Base Care,413.32,Dom Care - Adults
06/07/2021,WAVERLEY CARE OP,Angel Touch Care Agency,Home Base Care,390.64,Dom Care - Adults
06/07/2021,WAVERLEY CARE OP,Angel Touch Care Agency,Home Base Care,"1,014.20",Dom Care - Adults
06/07/2021,WAVERLEY CARE PD,Angel Touch Care Agency,Home Base Care,384.16,Dom Care - Adults
06/07/2021,WAVERLEY CARE OP,Angel Touch Care Agency,Home Base Care,621.60,Dom Care - Adults
06/07/2021,REIGATE & BD CARE OP,Anvil Court,Extra Care Housing,"2,498.89",Residential - LD
06/07/2021,REIGATE & BD CARE OP,Anvil Court,Extra Care Housing,"2,651.99",Residential - LD
06/07/2021,REIGATE & BD CARE PD,Anvil Court,Extra Care Housing,639.36,Residential - LD
06/07/2021,LD-AUT CNTR TM CARE,Anvil Court,Extra Care Housing,382.72,Residential - LD
06/07/2021,LD-AUT CNTR TM CARE,Anvil Court,Extra Care Housing,959.03,Residential - LD
06/07/2021,REIGATE & BD CARE OP,Anvil Court,Extra Care Housing,954.53,Residential - LD
06/07/2021,REIGATE & BD CARE OP,Anvil Court,Extra Care Housing,796.95,Residential - LD
06/07/2021,REIGATE & BD CARE PD,Anvil Court,Extra Care Housing,864.49,Residential - LD
06/07/2021,REIGATE & BD CARE OP,Anvil Court,Extra Care Housing,"1,040.09",Residential - LD
06/07/2021,REIGATE & BD CARE OP,Anvil Court,Extra Care Housing,"1,760.48",Residential - LD
06/07/2021,REIGATE & BD CARE OP,Anvil Court,Extra Care Housing,891.50,Residential - LD
06/07/2021,REIGATE & BD CARE OP,Anvil Court,Extra Care Housing,490.78,Residential - LD
06/07/2021,REIGATE & BD CARE OP,Anvil Court,Extra Care Housing,"1,458.82",Residential - LD
06/07/2021,REIGATE & BD CARE OP,Anvil Court,Extra Care Housing,"1,107.61",Residential - LD
06/07/2021,LD-AUT CNTR TM CARE,Anvil Court,Extra Care Housing,"1,413.79",Residential - LD
06/07/2021,REIGATE & BD CARE OP,Anvil Court,Extra Care Housing,"1,706.46",Residential - LD
06/07/2021,REIGATE & BD CARE PD,Anvil Court,Extra Care Housing,607.85,Residential - LD
06/07/2021,REIGATE & BD CARE OP,Anvil Court,Extra Care Housing,"2,764.55",Residential - LD
06/07/2021,NULL,Arnold Clark Finance Ltd,NULL,445.60,Staff Benefits
06/07/2021,GROWTH ACADS PR AA,Ashley COE (A) Primary School,Agency Placement Expenditure,"8,535.53",Schools
06/07/2021,GUILDFORD CARE OP,Ashley Park Nursing Home,Nursing Respite,"1,450.00",Residential - LD
06/07/2021,SEN Centres,Auriol Junior School,Agency Placement Expenditure,"5,192.27",Schools
06/07/2021,PRI GROWING SCHS,Aurora Academies Trust,Agency Placement Expenditure,"1,916.56",Schools
06/07/2021,PRI GROWING SCHS,Aurora Academies Trust,Agency Placement Expenditure,"6,093.75",Schools
06/07/2021,NURSERY CLASS CTGCY,Aurora Academies Trust,Agency Placement Expenditure,"6,744.58",Schools
06/07/2021,NURSERY CLASS CTGCY,Barnsbury Primary School Academy,Agency Placement Expenditure,"5,758.71",Schools
06/07/2021,ADDITIONAL SEN,Beaufort Primary School,Agency Placement Expenditure,"3,141.40",Grants-Member Allocs
06/07/2021,NURSERY CLASS CTGCY,Beaufort Primary School,Agency Placement Expenditure,"12,923.49",Grants-Member Allocs
06/07/2021,SPELTHORNE CARE OP,Beechwood Court,Extra Care Housing,690.04,Extra Care
06/07/2021,SPELTHORNE CARE OP,Beechwood Court,Extra Care Housing,353.40,Extra Care
06/07/2021,LD-AUT CNTR TM CARE,Beechwood Court,Extra Care Housing,555.40,Extra Care
06/07/2021,SPELTHORNE CARE OP,Beechwood Court,Extra Care Housing,475.44,Extra Care
06/07/2021,SPELTHORNE CARE OP,Beechwood Court,Extra Care Housing,706.84,Extra Care
06/07/2021,SPELTHORNE CARE OP,Beechwood Court,Extra Care Housing,711.05,Extra Care
06/07/2021,SPELTHORNE CARE OP,Beechwood Court,Extra Care Housing,828.86,Extra Care
06/07/2021,SPELTHORNE CARE PD,Beechwood Court,Extra Care Housing,315.53,Extra Care
06/07/2021,SPELTHORNE CARE OP,Beechwood Court,Extra Care Housing,913.00,Extra Care
06/07/2021,WAVERLEY CARE OP,Berkeley Home Health,Home Base Care,"1,134.00",Dom Care - Adults
06/07/2021,LSUs,Bishop David Brown School,Agency Placement Expenditure,"3,441.25",Grants-Member Allocs
06/07/2021,P16 MSTRM SEND PLACE,Blenheim High School,Agency Placement Expenditure,500.00,Schools
06/07/2021,NURSERY CLASS CTGCY,Bletchingley Village Primary School,Agency Placement Expenditure,"7,993.15",Schools
06/07/2021,SEN Centres,Bletchingley Village Primary School,Agency Placement Expenditure,"6,370.13",Schools
06/07/2021,SPECIAL SCHOOLS CORE,Bramley Oak Academy,Agency Placement Expenditure,"135,815.36",Schools
06/07/2021,SPECIAL SCHOOLS CORE,Bramley Oak Academy,Agency Placement Expenditure,"5,000.00",Schools
06/07/2021,SPECIAL SCHOOLS CORE,Bramley Oak Academy,Agency Placement Expenditure,"2,890.36",Schools
06/07/2021,ELMBRIDGE CARE OP,Brighter Care,Home Base Care,383.55,Residential - MH
06/07/2021,NURSERY CLASS CTGCY,Broadmere Primary Academy,Agency Placement Expenditure,"9,102.89",Schools
06/07/2021,PRI GROWING SCHS,Broadmere Primary Academy,Agency Placement Expenditure,"5,982.41",Schools
06/07/2021,SEN Centres,Broadwater School,Agency Placement Expenditure,"4,365.29",Schools
06/07/2021,WOKING CARE OP,Brockhill,Extra Care Housing,642.60,Residential - OP
06/07/2021,WOKING CARE OP,Brockhill,Extra Care Housing,749.72,Residential - OP
06/07/2021,WOKING CARE OP,Brockhill,Extra Care Housing,"1,338.75",Residential - OP
06/07/2021,WOKING CARE PD,Brockhill,Extra Care Housing,535.48,Residential - OP
06/07/2021,WOKING CARE OP,Brockhill,Extra Care Housing,960.08,Residential - OP
06/07/2021,WOKING CARE PD,Brockhill,Extra Care Housing,535.48,Residential - OP
06/07/2021,WOKING CARE OP,Brockhill,Extra Care Housing,"1,178.12",Residential - OP
06/07/2021,WOKING CARE PD,Brockhill,Extra Care Housing,428.40,Residential - OP
06/07/2021,WOKING CARE OP,Brockhill,Extra Care Housing,703.81,Residential - OP
06/07/2021,WOKING CARE PD,Brockhill,Extra Care Housing,"1,927.80",Residential - OP
06/07/2021,WOKING CARE OP,Brockhill,Extra Care Housing,275.40,Residential - OP
06/07/2021,WOKING CARE OP,Brockhill,Extra Care Housing,"1,392.28",Residential - OP
06/07/2021,WOKING CARE OP,Brockhill,Extra Care Housing,"1,243.13",Residential - OP
06/07/2021,LINDEN FARM,BT UK Business Accounts,Telecommunication Charges,267.60,Telecare
06/07/2021,RUNNYMEDE CARE OP,Caremark(Runnymede & Spelthorne),Home Base Care,495.86,Dom Care - Adults
06/07/2021,SPECIAL SCHOOLS OUTR,Carwarden House Community School,Agency Placement Expenditure,"4,482.00",Schools
06/07/2021,SPECIAL SCHOOLS CORE,Carwarden House Community School,Agency Placement Expenditure,"55,712.37",Schools
06/07/2021,SPECIAL SCHOOLS CORE,Carwarden House Community School,Agency Placement Expenditure,"7,293.40",Schools
06/07/2021,NE TRANSPORT,Cascade Cars,Hire of Vehicles,"2,028.00",Taxi Hire (SEN Only)
06/07/2021,NW TRANSPORT,Cascade Cars,Hire of Vehicles,"1,278.73",Taxi Hire (SEN Only)
06/07/2021,NE TRANSPORT,Cascade Cars,Hire of Vehicles,401.27,Taxi Hire (SEN Only)
06/07/2021,SE TRANSPORT,Cascade Cars,Coach Escorts Contracted,436.80,Taxi Hire (SEN Only)
06/07/2021,NE TRANSPORT,Cascade Cars,Coach Escorts Contracted,436.80,Taxi Hire (SEN Only)
06/07/2021,NE TRANSPORT,Cascade Cars,Coach Escorts Contracted,468.00,Taxi Hire (SEN Only)
06/07/2021,NE TRANSPORT,Cascade Cars,Hire of Vehicles,"1,119.43",Taxi Hire (SEN Only)
06/07/2021,NW TRANSPORT,Cascade Cars,Hire of Vehicles,"2,429.59",Taxi Hire (SEN Only)
06/07/2021,NW TRANSPORT,Cascade Cars,Coach Escorts Contracted,684.00,Taxi Hire (SEN Only)
06/07/2021,SE TRANSPORT,Cascade Cars,Hire of Vehicles,"2,143.20",Taxi Hire (SEN Only)
06/07/2021,SE TRANSPORT,Cascade Cars,Coach Escorts Contracted,638.40,Taxi Hire (SEN Only)
06/07/2021,SE TRANSPORT,Cascade Cars,Coach Escorts Contracted,638.40,Taxi Hire (SEN Only)
06/07/2021,NE TRANSPORT,Cascade Cars,Coach Escorts Contracted,684.00,Taxi Hire (SEN Only)
06/07/2021,NW TRANSPORT,Cascade Cars,Coach Escorts Contracted,638.40,Taxi Hire (SEN Only)
06/07/2021,NE TRANSPORT,Cascade Cars,Hire of Vehicles,762.41,Taxi Hire (SEN Only)
06/07/2021,NW TRANSPORT,Cascade Cars,Hire of Vehicles,279.77,Taxi Hire (SEN Only)
06/07/2021,NW TRANSPORT,Cascade Cars,Coach Escorts Contracted,369.60,Taxi Hire (SEN Only)
06/07/2021,SE TRANSPORT,Cascade Cars,Hire of Vehicles,"1,015.20",Taxi Hire (SEN Only)
06/07/2021,SE TRANSPORT,Cascade Cars,Coach Escorts Contracted,302.40,Taxi Hire (SEN Only)
06/07/2021,SE TRANSPORT,Cascade Cars,Hire of Vehicles,"2,599.20",Taxi Hire (SEN Only)
06/07/2021,NE TRANSPORT,Cascade Cars,Coach Escorts Contracted,638.40,Taxi Hire (SEN Only)
06/07/2021,SE TRANSPORT,Cascade Cars,Hire of Vehicles,"1,778.40",Taxi Hire (SEN Only)
06/07/2021,NE TRANSPORT,Cascade Cars,Hire of Vehicles,"2,246.40",Taxi Hire (SEN Only)
06/07/2021,NW TRANSPORT,Cascade Cars,Coach Escorts Contracted,360.00,Taxi Hire (SEN Only)
06/07/2021,NE TRANSPORT,Cascade Cars,Hire of Vehicles,"3,283.20",Taxi Hire (SEN Only)
06/07/2021,NE TRANSPORT,Cascade Cars,Hire of Vehicles,"2,964.00",Taxi Hire (SEN Only)
06/07/2021,NE TRANSPORT,Cascade Cars,Hire of Vehicles,"1,933.57",Taxi Hire (SEN Only)
06/07/2021,NW TRANSPORT,Cascade Cars,Hire of Vehicles,483.23,Taxi Hire (SEN Only)
06/07/2021,SPECIAL SCHOOLS CORE,Chart Wood School,Agency Placement Expenditure,"105,124.17",Schools
06/07/2021,SPECIAL SCHOOLS CORE,Chart Wood School,Agency Placement Expenditure,"5,733.06",Schools
06/07/2021,SPECIAL SCHOOLS,Chart Wood School,Agency Placement Expenditure,"13,833.00",Schools
06/07/2021,SPECIAL SCHOOLS CORE,Chart Wood School,Agency Placement Expenditure,"7,522.00",Schools
06/07/2021,SPECIAL SCHOOLS CORE,Chart Wood School,Agency Placement Expenditure,"15,613.00",Schools
06/07/2021,SPELTHORNE CARE OP,Chestnut Court,Extra Care Housing,428.99,Residential - LD
06/07/2021,SPELTHORNE CARE PD,Chestnut Court,Extra Care Housing,"1,791.10",Residential - LD
06/07/2021,SPELTHORNE CARE PD,Chestnut Court,Extra Care Housing,"2,967.50",Residential - LD
06/07/2021,SPELTHORNE CARE OP,Chestnut Court,Extra Care Housing,371.52,Residential - LD
06/07/2021,LD-AUT CNTR TM CARE,Chestnut Court,Extra Care Housing,309.58,Residential - LD
06/07/2021,SPELTHORNE CARE PD,Chestnut Court,Extra Care Housing,999.49,Residential - LD
06/07/2021,SPELTHORNE CARE PD,Chestnut Court,Extra Care Housing,371.52,Residential - LD
06/07/2021,SPELTHORNE CARE PD,Chestnut Court,Extra Care Housing,919.88,Residential - LD
06/07/2021,SPELTHORNE CARE OP,Chestnut Court,Extra Care Housing,318.40,Residential - LD
06/07/2021,SPELTHORNE CARE OP,Chestnut Court,Extra Care Housing,278.60,Residential - LD
06/07/2021,LD-AUT CNTR TM CARE,Chestnut Court,Extra Care Housing,"2,724.28",Residential - LD
06/07/2021,SPELTHORNE CARE OP,Chestnut Court,Extra Care Housing,"2,971.92",Residential - LD
06/07/2021,SPELTHORNE CARE OP,Chestnut Court,Extra Care Housing,486.48,Residential - LD
06/07/2021,SPELTHORNE CARE OP,Chestnut Court,Extra Care Housing,619.12,Residential - LD
06/07/2021,SPELTHORNE CARE OP,Chestnut Court,Extra Care Housing,619.12,Residential - LD
06/07/2021,SPELTHORNE CARE PD,Chestnut Court,Extra Care Housing,"4,188.10",Residential - LD
06/07/2021,SPELTHORNE CARE PD,Chestnut Court,Extra Care Housing,"1,185.20",Residential - LD
06/07/2021,SPELTHORNE CARE OP,Chestnut Court,Extra Care Housing,513.00,Residential - LD
06/07/2021,SPELTHORNE CARE PD,Chestnut Court,Extra Care Housing,804.89,Residential - LD
06/07/2021,SPELTHORNE CARE PD,Chestnut Court,Extra Care Housing,"2,498.71",Residential - LD
06/07/2021,SPELTHORNE CARE PD,Chestnut Court,Extra Care Housing,866.80,Residential - LD
06/07/2021,HQ PYMNT OF INS CLMS,Claims Management - OTV BACS,Ins Claims Other Insured Paid,"2,300.00",NULL
06/07/2021,NULL,Claims Management - OTV BACS,NULL,899.00,NULL
06/07/2021,ADDITIONAL SEN,Cobham Free School,Agency Placement Expenditure,"1,255.25",Grants-Member Allocs
06/07/2021,P16 MSTRM SEND PLACE,Collingwood College,Agency Placement Expenditure,"1,500.00",Schools
06/07/2021,Thameside Centre,Crown Workspace,Removal Expenses,"2,392.50",Property Management
06/07/2021,SEN Centres,Cuddington Community Primary School,Agency Placement Expenditure,"7,730.40",Schools
06/07/2021,NURSERY CLASS CTGCY,Cuddington Community Primary School,Agency Placement Expenditure,"7,185.79",Schools
06/07/2021,NURSERY CLASS CTGCY,Cuddington Croft Primary School,Agency Placement Expenditure,"10,790.85",Schools
06/07/2021,NULL,Currie & Brown UK Ltd,NULL,"3,300.00",M-D (Property)
06/07/2021,GROWTH ACADS PR AA,Danetree Junior School,Agency Placement Expenditure,"17,396.07",Schools
06/07/2021,NURSERY CLASS CTGCY,Danetree Junior School,Agency Placement Expenditure,"25,793.64",Schools
06/07/2021,SEN Centres,Darley Dene Primary School,Agency Placement Expenditure,"4,850.08",Schools
06/07/2021,NURSERY CLASS CTGCY,Darley Dene Primary School,Agency Placement Expenditure,"6,335.20",Schools
06/07/2021,EPSOM & EWELL CARE O,Day & Nite Services Ltd,Home Base Care,385.77,Dom Care - Adults
06/07/2021,GUILDFORD CARE OP,Day & Nite Services Ltd,Home Base Care,359.10,Dom Care - Adults
06/07/2021,GUILDFORD CARE OP,Day & Nite Services Ltd,Home Base Care,696.12,Dom Care - Adults
06/07/2021,GUILDFORD CARE OP,Day & Nite Services Ltd,Home Base Care,305.34,Dom Care - Adults
06/07/2021,MOLE VALLEY CARE OP,Day & Nite Services Ltd,Home Base Care,380.38,Dom Care - Adults
06/07/2021,MOLE VALLEY CARE OP,Day & Nite Services Ltd,Home Base Care,380.38,Dom Care - Adults
06/07/2021,MOLE VALLEY CARE OP,Day & Nite Services Ltd,Home Base Care,380.38,Dom Care - Adults
06/07/2021,GROWTH ACADS SEC AA,De Stafford School,Agency Placement Expenditure,"4,015.62",Schools
06/07/2021,SEN Centres,De Stafford School,Agency Placement Expenditure,"1,526.76",Schools
06/07/2021,SEN Centres,Dovers Green School,Agency Placement Expenditure,"9,162.06",Schools
06/07/2021,LD-AUT CNTR TM CARE,Elmbridge Borough Council,Day Care,500.00,Local Government
06/07/2021,LD-AUT CNTR TM CARE,Enham Trust,Supported Living,"5,116.00",Residential - MH
06/07/2021,NULL,Enterprise Rent A Car,NULL,375.00,Insurance Services
06/07/2021,LSUs,Epsom & Ewell High School,Agency Placement Expenditure,"3,441.25",Staff Training
06/07/2021,P16 MSTRM SEND PLACE,Epsom & Ewell High School,Agency Placement Expenditure,500.00,Staff Training
06/07/2021,SEN Centres,Epsom & Ewell High School,Agency Placement Expenditure,"4,482.81",Staff Training
06/07/2021,PRI GROWING SCHS,Esher COE High School,Agency Placement Expenditure,"6,844.87",Schools
06/07/2021,GROWTH ACADS SEC AA,Farnham Heath End School,Agency Placement Expenditure,"12,832.55",Schools
06/07/2021,ELMBRIDGE CARE OP,Flow Healthcare Ltd,Home Base Care,496.58,Dom Care - Adults
06/07/2021,REIGATE & BD CARE OP,Flow Healthcare Ltd,Home Base Care,589.12,Dom Care - Adults
06/07/2021,GUILDFORD CARE OP,Flow Healthcare Ltd,Home Base Care,294.56,Dom Care - Adults
06/07/2021,GUILDFORD CARE OP,Flow Healthcare Ltd,Home Base Care,294.56,Dom Care - Adults
06/07/2021,GUILDFORD CARE OP,Flow Healthcare Ltd,Home Base Care,294.56,Dom Care - Adults
06/07/2021,GUILDFORD CARE OP,Flow Healthcare Ltd,Home Base Care,294.56,Dom Care - Adults
06/07/2021,GUILDFORD CARE OP,Flow Healthcare Ltd,Home Base Care,736.40,Dom Care - Adults
06/07/2021,GUILDFORD CARE OP,Flow Healthcare Ltd,Home Base Care,659.80,Dom Care - Adults
06/07/2021,REIGATE & BD CARE OP,Flow Healthcare Ltd,Home Base Care,589.12,Dom Care - Adults
06/07/2021,REIGATE & BD CARE OP,Flow Healthcare Ltd,Home Base Care,589.12,Dom Care - Adults
06/07/2021,GUILDFORD CARE OP,Flow Healthcare Ltd,Home Base Care,346.36,Dom Care - Adults
06/07/2021,GUILDFORD CARE OP,Flow Healthcare Ltd,Home Base Care,577.36,Dom Care - Adults
06/07/2021,GUILDFORD CARE OP,Flow Healthcare Ltd,Home Base Care,319.62,Dom Care - Adults
06/07/2021,GUILDFORD CARE OP,Flow Healthcare Ltd,Home Base Care,534.10,Dom Care - Adults
06/07/2021,GUILDFORD CARE PD,Flow Healthcare Ltd,Home Base Care,525.80,Dom Care - Adults
06/07/2021,GUILDFORD CARE OP,Flow Healthcare Ltd,Home Base Care,734.04,Dom Care - Adults
06/07/2021,GUILDFORD CARE OP,Flow Healthcare Ltd,Home Base Care,482.54,Dom Care - Adults
06/07/2021,GUILDFORD CARE PD,Flow Healthcare Ltd,Home Base Care,519.54,Dom Care - Adults
06/07/2021,GUILDFORD CARE OP,Flow Healthcare Ltd,Home Base Care,404.18,Dom Care - Adults
06/07/2021,GUILDFORD CARE OP,Flow Healthcare Ltd,Home Base Care,692.72,Dom Care - Adults
06/07/2021,ELMBRIDGE CARE OP,Flow Healthcare Ltd,Home Base Care,275.13,Dom Care - Adults
06/07/2021,GUILDFORD CARE OP,Flow Healthcare Ltd,Home Base Care,294.56,Dom Care - Adults
06/07/2021,GUILDFORD CARE OP,Flow Healthcare Ltd,Home Base Care,294.56,Dom Care - Adults
06/07/2021,GUILDFORD CARE OP,Flow Healthcare Ltd,Home Base Care,"1,098.21",Dom Care - Adults
06/07/2021,RUNNYMEDE CARE OP,Flow Healthcare Ltd,Home Base Care,490.84,Dom Care - Adults
06/07/2021,GUILDFORD CARE PD,Flow Healthcare Ltd,Home Base Care,519.54,Dom Care - Adults
06/07/2021,GUILDFORD CARE OP,Flow Healthcare Ltd,Home Base Care,346.36,Dom Care - Adults
06/07/2021,GUILDFORD CARE OP,Flow Healthcare Ltd,Home Base Care,"1,501.08",Dom Care - Adults
06/07/2021,GUILDFORD CARE PD,Flow Healthcare Ltd,Home Base Care,577.36,Dom Care - Adults
06/07/2021,GUILDFORD CARE OP,Flow Healthcare Ltd,Home Base Care,375.24,Dom Care - Adults
06/07/2021,GUILDFORD CARE OP,Flow Healthcare Ltd,Home Base Care,371.14,Dom Care - Adults
06/07/2021,GUILDFORD CARE OP,Flow Healthcare Ltd,Home Base Care,"1,609.65",Dom Care - Adults
06/07/2021,GUILDFORD CARE OP,Flow Healthcare Ltd,Home Base Care,577.36,Dom Care - Adults
06/07/2021,GUILDFORD CARE OP,Flow Healthcare Ltd,Home Base Care,577.36,Dom Care - Adults
06/07/2021,GUILDFORD CARE OP,Flow Healthcare Ltd,Home Base Care,750.54,Dom Care - Adults
06/07/2021,GUILDFORD CARE OP,Flow Healthcare Ltd,Home Base Care,750.54,Dom Care - Adults
06/07/2021,GUILDFORD CARE OP,Flow Healthcare Ltd,Home Base Care,"1,546.52",Dom Care - Adults
06/07/2021,GUILDFORD CARE PD,Flow Healthcare Ltd,Home Base Care,"2,381.82",Dom Care - Adults
06/07/2021,GUILDFORD CARE OP,Flow Healthcare Ltd,Home Base Care,404.18,Dom Care - Adults
06/07/2021,LD-AUT CNTR TM CARE,Focus Care Agency Ltd,Supported Living,"13,923.20",Supp Living - MH
06/07/2021,PLD TRANSITION,Focus Care Agency Ltd,Supported Living,"10,010.00",Supp Living - MH
06/07/2021,PLD TRANSITION,Focus Care Agency Ltd,Supported Living,"18,060.00",Supp Living - MH
06/07/2021,P16 MSTRM SEND PLACE,Fullbrook School,Agency Placement Expenditure,"1,000.00",Staff Training
06/07/2021,MOLE VALLEY CARE OP,Genesis International Solutions,Home Base Care,"1,807.96",Residential - LD
06/07/2021,LD-AUT CNTR TM CARE,Geneva Road Ltd,Day Care,"2,040.00",Day Care - PSD
06/07/2021,ELMBRIDGE CARE PD,Geneva Road Ltd,Day Care,320.00,Day Care - PSD
06/07/2021,EPSOM & EWELL CARE P,Geneva Road Ltd,Day Care,250.01,Day Care - PSD
06/07/2021,ELMBRIDGE CARE PD,Geneva Road Ltd,Day Care,867.21,Day Care - PSD
06/07/2021,SEN Centres,George Abbot School -Academy,Agency Placement Expenditure,"4,263.36",Schools
06/07/2021,P16 MSTRM SEND PLACE,Glyn School,Agency Placement Expenditure,"2,000.00",Info Advice Guidance
06/07/2021,ADDITIONAL SEN,Goldsworth Primary School,Agency Placement Expenditure,"2,425.99",Schools
06/07/2021,P16 MSTRM SEND PLACE,Gordons School Academy Trust,Agency Placement Expenditure,"1,000.00",Schools
06/07/2021,ADDITIONAL SEN,Gordons School Academy Trust,Agency Placement Expenditure,"2,383.88",Schools
06/07/2021,GROWTH ACADS SEC AA,Guildford County School,Agency Placement Expenditure,"8,295.36",Schools
06/07/2021,P16 MSTRM SEND PLACE,Guildford County School,Agency Placement Expenditure,"1,500.00",Schools
06/07/2021,SEN Centres,Guildford Grove Primary School,Agency Placement Expenditure,"22,185.79",Schools
06/07/2021,NURSERY CLASS CTGCY,Guildford Grove Primary School,Agency Placement Expenditure,"8,243.75",Schools
06/07/2021,NURSERY CLASS CTGCY,Hale Primary School,Agency Placement Expenditure,"7,659.95",Schools
06/07/2021,NURSERY CLASS CTGCY,Hamsey Green Primary School,Agency Placement Expenditure,"6,598.79",Schools
06/07/2021,NULL,Harrow Green Ltd,NULL,752.38,Premise Removal Serv
06/07/2021,RUNNYMEDE CARE PD,Hfh Healthcare,Home Base Care,"2,982.84",Dom Care - Adults
06/07/2021,RUNNYMEDE CARE PD,Hfh Healthcare,Home Base Care,"3,955.52",Dom Care - Adults
06/07/2021,NURSERY CLASS CTGCY,Highfield South Farnham Primary Sch,Agency Placement Expenditure,"13,646.03",Schools
06/07/2021,NURSERY CLASS CTGCY,Hillcroft Primary School,Agency Placement Expenditure,"10,579.59",Schools
06/07/2021,SEN Centres,Hinchley Wood School,Agency Placement Expenditure,"33,150.15",Grants-Member Allocs
06/07/2021,GROWTH ACADS SEC AA,Hinchley Wood School,Agency Placement Expenditure,"1,627.71",Grants-Member Allocs
06/07/2021,GUILDFORD CARE OP,Home Instead Senior Care,Home Base Care,"1,114.00",Dom Care - Adults
06/07/2021,WOODHATCH,Hunter Communication Services South,Equipment,745.20,Access Control Serv
06/07/2021,ELMBRIDGE CARE OP,Industrial & Domestic Cleaning Serv,Other Community Care,255.00,Building Cleaning
06/07/2021,WAVERLEY CARE OP,Jaysh Care Services,Home Base Care,"1,736.00",Dom Care - Adults
06/07/2021,WAVERLEY CARE OP,Jaysh Care Services,Home Base Care,"1,736.00",Dom Care - Adults
06/07/2021,SEN Centres,Jubilee High Academy,Agency Placement Expenditure,"2,456.85",Schools
06/07/2021,NURSERY CLASS CTGCY,Kenyngton Manor Primary School,Agency Placement Expenditure,"14,023.28",Schools
06/07/2021,NULL,Keoghs LLP,NULL,865.50,Non-Staff Expenses
06/07/2021,NURSERY CLASS CTGCY,Kingfield Primary School & Nursery,Agency Placement Expenditure,"11,311.94",Schools
06/07/2021,NURSERY CLASS CTGCY,Kingfield Primary School & Nursery,Agency Placement Expenditure,"2,000.00",Schools
06/07/2021,LD-AUT CNTR TM CARE,Kingston Voluntary Action,Other Community Care,518.40,Web Design & Hosting
06/07/2021,LD-AUT CNTR TM CARE,Kingston Voluntary Action,Other Community Care,518.40,Web Design & Hosting
06/07/2021,NURSERY CLASS CTGCY,Knaphill Lower School,Agency Placement Expenditure,"13,769.04",Schools
06/07/2021,EIF 3 & 4 YR OLD,Knowle Green Day Nursery,Third Party Payments-Other Agencies,250.00,Nurseries
06/07/2021,NURSERY CLASS CTGCY,Lakeside Primary School,Agency Placement Expenditure,"9,034.20",Schools
06/07/2021,NURSERY CLASS CTGCY,Lime Tree Primary,Agency Placement Expenditure,"10,270.59",Schools
06/07/2021,SPECIAL SCHOOLS OTHE,Linden Bridge School,Agency Placement Expenditure,"31,569.41",Grants-Member Allocs
06/07/2021,SPECIAL SCHOOLS CORE,Linden Bridge School,Agency Placement Expenditure,"142,638.85",Grants-Member Allocs
06/07/2021,SPECIAL SCHOOLS CORE,Linden Bridge School,Agency Placement Expenditure,484.54,Grants-Member Allocs
06/07/2021,SPECIAL SCHOOLS CORE,Linden Bridge School,Agency Placement Expenditure,"6,666.67",Grants-Member Allocs
06/07/2021,SPECIAL SCHOOLS OUTR,Linden Bridge School,Agency Placement Expenditure,"8,829.42",Grants-Member Allocs
06/07/2021,SPECIAL SCHOOLS CORE,Linden Bridge School,Agency Placement Expenditure,"9,187.04",Grants-Member Allocs
06/07/2021,SE TRANSPORT,London Borough of Bromley,Hire of Vehicles,314.50,SEN Specialist Supp
06/07/2021,SE TRANSPORT,London Borough of Bromley,Hire of Vehicles,393.12,SEN Specialist Supp
06/07/2021,SE TRANSPORT,London Borough of Bromley,Hire of Vehicles,366.91,SEN Specialist Supp
06/07/2021,SE TRANSPORT,London Borough of Bromley,Hire of Vehicles,576.58,SEN Specialist Supp
06/07/2021,SPELTHORNE CARE OP,London Care Plc,Home Base Care,440.80,Dom Care - Adults
06/07/2021,GUILDFORD CARE PD,Longdene Homecare,Home Base Care,389.76,Dom Care - Adults
06/07/2021,RUNNYMEDE CARE OP,Longdene Homecare,Home Base Care,566.32,Dom Care - Adults
06/07/2021,GUILDFORD CARE OP,Longdene Homecare,Home Base Care,"1,559.04",Dom Care - Adults
06/07/2021,GUILDFORD CARE PD,Longdene Homecare,Home Base Care,"1,559.04",Dom Care - Adults
06/07/2021,RUNNYMEDE CARE OP,Longdene Homecare,Home Base Care,424.40,Dom Care - Adults
06/07/2021,ELMBRIDGE CARE OP,Longdene Homecare,Home Base Care,795.42,Dom Care - Adults
06/07/2021,ELMBRIDGE CARE PD,Longdene Homecare,Home Base Care,577.99,Dom Care - Adults
06/07/2021,ELMBRIDGE CARE OP,Longdene Homecare,Home Base Care,833.70,Dom Care - Adults
06/07/2021,ELMBRIDGE CARE OP,Longdene Homecare,Home Base Care,279.96,Dom Care - Adults
06/07/2021,ELMBRIDGE CARE OP,Longdene Homecare,Home Base Care,570.72,Dom Care - Adults
06/07/2021,ELMBRIDGE CARE OP,Longdene Homecare,Home Base Care,"1,992.48",Dom Care - Adults
06/07/2021,ELMBRIDGE CARE OP,Longdene Homecare,Home Base Care,606.92,Dom Care - Adults
06/07/2021,GROWTH ACADS PR AA,Loseley Fields Primary School,Agency Placement Expenditure,"4,568.66",Schools
06/07/2021,SEN Centres,Loseley Fields Primary School,Agency Placement Expenditure,"5,254.72",Schools
06/07/2021,PRI GROWING SCHS,Loseley Fields Primary School,Agency Placement Expenditure,"5,612.79",Schools
06/07/2021,PRI GROWING SCHS,Marden Lodge Primary School,Agency Placement Expenditure,"1,820.73",Schools
06/07/2021,NURSERY CLASS CTGCY,Marden Lodge Primary School,Agency Placement Expenditure,"9,861.28",Schools
06/07/2021,NURSERY CLASS CTGCY,Maybury Primary School,Agency Placement Expenditure,"13,879.49",Schools
06/07/2021,SEN Centres,Meadhurst Primary School,Agency Placement Expenditure,"3,614.27",Grants-Member Allocs
06/07/2021,NURSERY CLASS CTGCY,Meadhurst Primary School,Agency Placement Expenditure,"17,873.75",Grants-Member Allocs
06/07/2021,LD-AUT CNTR TM CARE,Mental Aid Projects,Day Care,623.40,Day Care - PSD
06/07/2021,NURSERY CLASS CTGCY,Merstham Primary School,Agency Placement Expenditure,"8,042.35",Schools
06/07/2021,LD-AUT CNTR TM CARE,Millsted Care Services,Respite Residential,500.00,Residential - MH
06/07/2021,LD-AUT CNTR TM CARE,Millsted Care Services,Respite Residential,500.00,Residential - MH
06/07/2021,WAVERLEY CARE OP,Mnara Health Ltd,Home Base Care,"1,165.50",Residential - LD
06/07/2021,WAVERLEY CARE OP,Mnara Health Ltd,Home Base Care,840.00,Residential - LD
06/07/2021,NURSERY CLASS CTGCY,Mytchett Primary School,Agency Placement Expenditure,"10,454.11",Schools
06/07/2021,NURSERY CLASS CTGCY,New Monument School,Agency Placement Expenditure,"7,919.84",Schools
06/07/2021,SEN Centres,Northmead Junior School,Agency Placement Expenditure,"4,144.43",Schools
06/07/2021,NURSERY CLASS CTGCY,Ottershaw COE School,Agency Placement Expenditure,"11,692.64",Non-Staff Expenses
06/07/2021,SEN Centres,Oxted School,Agency Placement Expenditure,"25,164.40",Schools
06/07/2021,P16 MSTRM SEND PLACE,Oxted School,Agency Placement Expenditure,"1,000.00",Schools
06/07/2021,NULL,Pelling LLP,NULL,"1,836.00",M-D (Property)
06/07/2021,NULL,Pelling LLP,NULL,"11,343.60",M-D (Property)
06/07/2021,Schools Projects Rev,Pelling LLP,Consultants,"21,528.00",M-D (Property)
06/07/2021,ADDITIONAL SEN,Pirbright Village Primary School,Agency Placement Expenditure,908.69,Schools
06/07/2021,SPECIAL SCHOOLS CORE,Pond Meadow School,Agency Placement Expenditure,"3,333.33",Short break
06/07/2021,SPECIAL SCHOOLS CORE,Pond Meadow School,Agency Placement Expenditure,"8,156.22",Short break
06/07/2021,SPECIAL SCHOOLS CORE,Pond Meadow School,Agency Placement Expenditure,"159,655.90",Short break
06/07/2021,NURSERY CLASS CTGCY,Pyrcroft Grange Primary School,Agency Placement Expenditure,"10,911.61",Schools
06/07/2021,SEN Centres,Pyrcroft Grange Primary School,Agency Placement Expenditure,"11,903.60",Schools
06/07/2021,NURSERY CLASS CTGCY,Pyrford COE (A) Primary School,Agency Placement Expenditure,"9,550.44",Schools
06/07/2021,MOLE VALLEY CARE OP,Redacted Personal Data,Direct Payments - Independent Sector,"6,795.93",Individual - NEC
06/07/2021,ADOPTION SUPP FUND,Redacted Personal Data,New GR/IR Account,540.00,Occupational Therapy
06/07/2021,ADOPTION SUPP FUND,Redacted Personal Data,New GR/IR Account,270.00,Occupational Therapy
06/07/2021,NURSERY CLASS CTGCY,Riverbridge Primary School,Agency Placement Expenditure,"14,763.79",Schools
06/07/2021,SEN Centres,Rodborough School Academy,Agency Placement Expenditure,"29,534.10",Schools
06/07/2021,P16 MSTRM SEND PLACE,Rosebery School,Agency Placement Expenditure,"1,500.00",Schools
06/07/2021,LD-AUT CNTR TM CARE,Royal Mencap Society,Supported Living,"3,027.36",Residential - MH
06/07/2021,LD-AUT CNTR TM CARE,Royal Mencap Society,Supported Living,514.62,Residential - MH
06/07/2021,LD-AUT CNTR TM CARE,Royal Mencap Society,Supported Living,"3,602.52",Residential - MH
06/07/2021,LD-AUT CNTR TM CARE,Royal Mencap Society,Supported Living,"3,602.52",Residential - MH
06/07/2021,GROWTH ACADS SEC AA,Salesian School,Agency Placement Expenditure,"15,678.06",Schools
06/07/2021,P16 MSTRM SEND PLACE,Salesian School,Agency Placement Expenditure,"1,500.00",Schools
06/07/2021,SEN Centres,Salesian School,Agency Placement Expenditure,"30,563.25",Schools
06/07/2021,PRI GROWING SCHS,Salfords Primary School,Agency Placement Expenditure,"1,820.73",Nursery
06/07/2021,NURSERY CLASS CTGCY,Salfords Primary School,Agency Placement Expenditure,"8,921.50",Nursery
06/07/2021,PRI GROWING SCHS,Sandcross Primary School,Agency Placement Expenditure,"11,225.58",Schools
06/07/2021,NURSERY CLASS CTGCY,Sandcross Primary School,Agency Placement Expenditure,"10,382.16",Schools
06/07/2021,NURSERY CLASS CTGCY,Sandringham School & Little Badgers,Agency Placement Expenditure,"8,342.80",Schools
06/07/2021,NURSERY CLASS CTGCY,Sayes Court School,Agency Placement Expenditure,"8,771.30",Schools
06/07/2021,NULL,SCC Manor Mead School,NULL,"11,025.00",Schools
06/07/2021,SPELTHORNE CARE PD,Sense,Supported Living,"7,720.70",Residential - MH
06/07/2021,REIGATE & BD CARE PD,Seraphim Group Ltd,Other Community Care,504.00,Subscriptions
06/07/2021,NURSERY CLASS CTGCY,Shalford Infant School,Agency Placement Expenditure,"5,456.62",Schools
06/07/2021,LD-AUT CNTR TM CARE,Sheiling Residential Care Home,Respite Residential,496.30,Residential - MH
06/07/2021,LD-AUT CNTR TM CARE,Sheiling Residential Care Home,Respite Residential,"1,985.20",Residential - MH
06/07/2021,NURSERY CLASS CTGCY,South Camberley Primary & Nursery S,Agency Placement Expenditure,"17,387.25",Schools
06/07/2021,WAVERLEY CMHRS CARE,Sparrow Medical Services Ltd,Home Base Care,396.00,Residential - OP
06/07/2021,WAVERLEY CMHRS CARE,Sparrow Medical Services Ltd,Home Base Care,462.00,Residential - OP
06/07/2021,WAVERLEY CMHRS CARE,Sparrow Medical Services Ltd,Home Base Care,495.00,Residential - OP
06/07/2021,NURSERY CLASS CTGCY,Springfield Primary School & Nurser,Agency Placement Expenditure,"9,894.60",Schools
06/07/2021,ADDITIONAL SEN,St Albans Catholic Primary School,Agency Placement Expenditure,"1,325.13",Schools
06/07/2021,GROWTH ACADS PR AA,St Albans Catholic Primary School,Agency Placement Expenditure,"8,506.76",Schools
06/07/2021,ADDITIONAL SEN,St Charles Borromeo Catholic Primar,Agency Placement Expenditure,727.57,Schools
06/07/2021,NURSERY CLASS CTGCY,St Charles Borromeo Catholic Primar,Agency Placement Expenditure,"9,990.20",Schools
06/07/2021,ADDITIONAL SEN,St Hugh of Lincoln Catholic Primary,Agency Placement Expenditure,"1,023.95",Schools
06/07/2021,P16 MSTRM SEND PLACE,St John The Baptist School,Agency Placement Expenditure,500.00,Schools
06/07/2021,GROWTH ACADS SEC AA,St John The Baptist School,Agency Placement Expenditure,"18,708.25",Schools
06/07/2021,NUTURE GROUPS,St Johns COE Primary School,Agency Placement Expenditure,"2,968.60",Schools
06/07/2021,NURSERY CLASS CTGCY,St Johns COE Primary School,Agency Placement Expenditure,"6,962.07",Schools
06/07/2021,NURSERY CLASS CTGCY,St Johns Primary School,Agency Placement Expenditure,"8,451.18",Schools
06/07/2021,NULL,St Judes COE Junior School,NULL,614.17,Schools
06/07/2021,ADDITIONAL SEN,St Lawrence Primary School,Agency Placement Expenditure,725.14,Grants-Member Allocs
06/07/2021,NURSERY CLASS CTGCY,St Marks & All Saints COFE Primary,Agency Placement Expenditure,"2,282.45",Schools
06/07/2021,SEN Centres,St Matthews School Redhill,Agency Placement Expenditure,"8,546.06",Grants-Member Allocs
06/07/2021,NURSERY CLASS CTGCY,St Matthews School Redhill,Agency Placement Expenditure,"10,014.10",Grants-Member Allocs
06/07/2021,P16 MSTRM SEND PLACE,St Peters Catholic School,Agency Placement Expenditure,"2,000.00",Grants-Member Allocs
06/07/2021,GROWTH ACADS SEC AA,St Peters Catholic School,Agency Placement Expenditure,"12,247.20",Grants-Member Allocs
06/07/2021,SEN Centres,St Stephens COE Primary School,Agency Placement Expenditure,"8,648.20",Schools
06/07/2021,NURSERY CLASS CTGCY,St Stephens COE Primary School,Agency Placement Expenditure,"6,870.02",Schools
06/07/2021,ADDITIONAL SEN,St Stephens COE Primary School,Agency Placement Expenditure,754.37,Schools
06/07/2021,ADDITIONAL SEN,St Thomas of Canterbury RC Primary,Agency Placement Expenditure,343.62,Schools
06/07/2021,NURSERY CLASS CTGCY,Stanwell Fields COE Primary School,Agency Placement Expenditure,"9,189.55",Schools
06/07/2021,GROWTH ACADS PR AA,Stanwell Fields COE Primary School,Agency Placement Expenditure,"1,675.45",Schools
06/07/2021,PRI GROWING SCHS,Stanwell Fields COE Primary School,Agency Placement Expenditure,"6,160.38",Schools
06/07/2021,NURSERY CLASS CTGCY,Stoughton Infant School,Agency Placement Expenditure,"16,845.73",Schools
06/07/2021,SEN Centres,Sunbury Manor School,Agency Placement Expenditure,"2,819.67",Schools
06/07/2021,GROWTH ACADS SEC AA,Sunbury Manor School,Agency Placement Expenditure,"13,200.90",Schools
06/07/2021,NULL,Sure Consulting Ltd,NULL,"6,720.00",M-D (Property)
06/07/2021,NULL,Sure Consulting Ltd,NULL,"11,520.00",M-D (Property)
06/07/2021,LD-AUT CNTR TM CARE,Surrey Choices Ltd,Supported Living,"2,093.14",Day Care - PSD
06/07/2021,LD-AUT CNTR TM CARE,Surrey Choices Ltd,Supported Living,"2,093.14",Day Care - PSD
06/07/2021,PLD TRANSITION,Surrey Choices Ltd,Respite Residential,724.20,Day Care - PSD
06/07/2021,PLD TRANSITION,Surrey Choices Ltd,Respite Residential,"1,248.48",Day Care - PSD
06/07/2021,PLD TRANSITION,Surrey Choices Ltd,Respite Residential,"1,234.20",Day Care - PSD
06/07/2021,LD-AUT CNTR TM CARE,Surrey Choices Ltd,Respite Residential,"3,060.00",Day Care - PSD
06/07/2021,TANDRIDGE CARE PD,Surrey Choices Ltd,Respite Residential,"1,020.00",Day Care - PSD
06/07/2021,LD-AUT CNTR TM CARE,Surrey Choices Ltd,Respite Residential,"1,020.00",Day Care - PSD
06/07/2021,PLD TRANSITION,Surrey Choices Ltd,Respite Residential,"5,520.24",Day Care - PSD
06/07/2021,PLD TRANSITION,Surrey Choices Ltd,Respite Residential,"1,279.08",Day Care - PSD
06/07/2021,LD-AUT CNTR TM CARE,Surrey Choices Ltd,Respite Residential,"3,402.72",Day Care - PSD
06/07/2021,PLD TRANSITION,Surrey Choices Ltd,Respite Residential,"1,785.00",Day Care - PSD
06/07/2021,LD-AUT CNTR TM CARE,Surrey Choices Ltd,Supported Living,"2,486.57",Day Care - PSD
06/07/2021,SEN Centres,Sythwood Primary School,Agency Placement Expenditure,"7,475.32",Schools
06/07/2021,NURSERY CLASS CTGCY,Sythwood Primary School,Agency Placement Expenditure,"22,810.30",Schools
06/07/2021,PENDELL CAMP GRT,Tandridge District Council,Term Contract Inspections,"1,920.50",Local Government
06/07/2021,NULL,Tetra Tech Environment Planning,NULL,684.00,Env Consultancy
06/07/2021,SPECIAL SCHOOLS CORE,The Abbey School,Agency Placement Expenditure,"66,715.88",School Support Serv
06/07/2021,SPECIAL SCHOOLS OUTR,The Abbey School,Agency Placement Expenditure,"4,482.00",School Support Serv
06/07/2021,SPECIAL SCHOOLS CORE,The Abbey School,Agency Placement Expenditure,"5,000.00",School Support Serv
06/07/2021,SPECIAL SCHOOLS CORE,The Abbey School,Agency Placement Expenditure,"6,205.31",School Support Serv
06/07/2021,P16 MSTRM SEND PLACE,The Ashcombe School,Agency Placement Expenditure,"1,500.00",Schools
06/07/2021,LSUs,The Beacon School,Agency Placement Expenditure,"3,441.25",Schools
06/07/2021,P16 MSTRM SEND PLACE,The Beacon School,Agency Placement Expenditure,500.00,Schools
06/07/2021,P16 MSTRM SEND PLACE,The Bishop Wand Church of England S,Agency Placement Expenditure,"1,500.00",Schools
06/07/2021,SEN Centres,The Eastwick Schools,Agency Placement Expenditure,"26,254.18",Grants-Member Allocs
06/07/2021,NURSERY CLASS CTGCY,The Federation Of Pine Ridge & Lorr,Agency Placement Expenditure,"16,999.12",Grants-Member Allocs
06/07/2021,LD-AUT CNTR TM CARE,The Grange Centre,Day Care,632.64,Grants-Member Allocs
